Cogmind - Beta 17 @@@ ROGUE MODE // 2026.06.25 @ 10:25:22 // Winter2019/RPGLIKE Player: Gallgagger Result: Destroyed by Combat Programmer with EMDS Performance ------------- Evolutions (8) 4000 Regions Visited (35) 7000 Robots Destroyed (2956) 14780 Value Destroyed (194333) 194333 Prototype IDs (314) 6280 Alien Tech Used (4) 800 Bonus (249055) 249055 TOTAL SCORE: 476248 Bonus ------- Triggered High Security 4500 High Alert Combat Kills 139455 Follower Combat Kills 1445 Prayed to X0-1V1 5000 Major X0-1V1 Interference 38200 Aligned with FarCom 300 Met Data Miner 300 Used Data Conduit 3000 Met Imprinter 300 Destroyed Z-Imprinter 1000 Met Zhirov 300 Met Warlord at Base 500 MAIN.C Attacked Warlord 500 Warlord Defense Kills 33956 Scanned by Researcher 500 Pursued by Intercept 4000 Met Sigix 2000 Destroyed Superfortress 15000 Friendly Fire -1201 Cogmind --------- Core Integrity 0/850 Matter 1536/1750 Energy 2940/2940 System Corruption 16% Temperature Cool (-200) Movement Hovering (136) Ox2 Location -2/Protoforge Parts ------- > --- POWER (4) -------- Hybrid Graviton Reactor (fused) Hybrid Graviton Reactor Concept Zero-point Core (fused) Concept Zero-point Core (fused) > --- PROPULSION (6) --- Concept Combat Aerolev Unit (fused) Concept Gyrokinetic System Concept Gyrokinetic System Concept Gyrokinetic System (fused) Concept Gyrokinetic System > --- UTILITY (9) ------ Advanced Cryofiber Web Concept Phasing Heat Sink Concept Thermoelectric Network Concept NT7 Matterbank Seismic Detector (fused) Advanced Launcher Guidance Computer Experimental Weapon Cycler (fused) Concept Matter Streamer (fused) X0-1V1's Piety Tracker > --- WEAPON (7) ------- Linked Autogun (fused) Linked Autogun (fused) Concept Tactical Fusion Warhead (fused) Concept Tactical Fusion Warhead > --- INVENTORY (6) ---- Protomatter-75 Concept NT7 Matterbank (750) Transdimensional Reconstructor Chaos Jack (35) Peak State ------------ > --- POWER ------------ Experimental Antimatter Reactor Experimental Antimatter Reactor Concept Zero-point Core Concept Zero-point Core > --- PROPULSION ------- Concept Combat Aerolev Unit Concept Gyrokinetic System Concept Gyrokinetic System Concept Gyrokinetic System Concept Gyrokinetic System > --- UTILITY ---------- Advanced Cryofiber Web Concept Phasing Heat Sink Advanced Quantum Shading Machine Seismic Detector Experimental Weapon Cycler Concept Matter Streamer Crosscalibrator X0-1V1's Piety Tracker > --- WEAPON ----------- Cooled Directed Potential Cannon Cooled Directed Potential Cannon Linked Autogun > --- INVENTORY -------- Biometal Leg Biometal Leg Biometal Leg Linked Autogun [Rating: 276] Favorites ----------- Power Concept Zero-point Core Engine Improved Ion Engine Power Core Concept Zero-point Core Reactor Hybrid Graviton Reactor Propulsion Concept Gyrokinetic System Treads Biometal Medium Treads Leg Centrium Leg Wheel Wheel Hover Unit Concept Gyrokinetic System Flight Unit Cooled VTOL Module Utility Seismic Detector Device Seismic Detector Storage Concept NT7 Matterbank Processor Improved Armor Integrity Analyzer Hackware Concept Network Penetrator Protection Reactive Plating Weapon Linked Autogun Energy Gun Particle Gun Energy Cannon Cooled Directed Potential Cannon Ballistic Gun Linked Autogun Launcher Concept Tactical Fusion Warhead Special Weapon Improved Remote Datajack Impact Weapon Thunder Hammer Slashing Weapon Master Tearclaws Piercing Weapon Enhanced Force Lance Special Melee Weapon Chaos Jack Build | -11 -10 -10 -9 -9 -9 -8 -8 -7 -7 -7 -7 -7 -7 -6 -6 -6 -6 -6 -6 -5 -5 -5 -5 -5 -4 -4 -4 -4 -4 -3 -3 -3 -2 -2 -2 ------- Run | Yrd Mat Min Mat Min Exi Min Mat Fac Was Fac Low Low Dat Pro Fac Low Low Zio Dee Pro Fac Upp Upp Zhi Pro Fac Upp Upp War Pro Res Tes Res Qua Frg Slots Evolved 21 | 2 6 . 1 1 . . 3 1 . 2 . . . . 1 . . . 1 . 1 . . . . 1 . . 1 . . . . . . Power 1 | . . . . . . . . . . 1 . . . . . . . . . . . . . . . . . . . . . . . . . Propulsion 5 | . 2 . 1 . . . . . . . . . . . 1 . . . . . . . . . . . . . 1 . . . . . . Utility 9 | 1 3 . . 1 . . 2 . . 1 . . . . . . . . 1 . . . . . . . . . . . . . . . . Weapon 6 | 1 1 . . . . . 1 1 . . . . . . . . . . . . 1 . . . . 1 . . . . . . . . . Parts Attached 191 | 7 13 3 6 1 7 1 7 10 . 5 2 2 1 . 7 1 . 1 6 1 5 2 . . 3 14 . . 16 . 10 4 . 3 53 Power 31 | 1 2 . 1 . 2 . . . . 2 . . . . . . . . 1 . 2 . . . . 2 . . 7 . 1 2 . . 8 Engine 5 | 1 2 . 1 . . . . . . . . . . . . . . . . . . . . . . . . . . . 1 . . . . Core 12 | . . . . . 1 . . . . 2 . . . . . . . . . . 2 . . . . 1 . . 4 . . . . . 2 Reactor 14 | . . . . . 1 . . . . . . . . . . . . . 1 . . . . . . 1 . . 3 . . 2 . . 6 Propulsion 38 | 1 4 . 1 . . . 3 5 . . . . . . 3 . . . . 1 . . . . 2 1 . . 1 . 4 . . 1 11 Treads 1 | . . . . . . . . . . . . . . . . . . . . . . . . . . . . . . . 1 . . . . Leg 1 | . . . . . . . . . . . . . . . . . . . . . . . . . . . . . . . 1 . . . . Wheel 1 | 1 . . . . . . . . . . . . . . . . . . . . . . . . . . . . . . . . . . . Hover 6 | . . . . . . . . . . . . . . . . . . . . . . . . . . . . . . . . . . . 6 Flight 29 | . 4 . 1 . . . 3 5 . . . . . . 3 . . . . 1 . . . . 2 1 . . 1 . 2 . . 1 5 Utility 78 | 3 2 1 . 1 5 . 4 2 . 3 . 1 1 . 3 1 . . 4 . 1 2 . . . 7 . . 6 . 4 1 . 2 24 Device 56 | 3 1 1 . 1 3 . 2 . . 1 . 1 . . 3 . . . 3 . 1 2 . . . 6 . . 5 . 4 . . 1 18 Storage 3 | . . . . . . . . . . . . . . . . . . . . . . . . . . . . . . . . . . 1 2 Processor 8 | . . . . . 1 . . 1 . . . . . . . 1 . . . . . . . . . 1 . . 1 . . . . . 3 Hackware 1 | . . . . . . . . . . . . . . . . . . . . . . . . . . . . . . . . . . . 1 Protection 10 | . 1 . . . 1 . 2 1 . 2 . . 1 . . . . . 1 . . . . . . . . . . . . 1 . . . Artifact . | . . . . . . . . . . . . . . . . . . . . . . . . . . . . . . . . . . . . Weapon 44 | 2 5 2 4 . . 1 . 3 . . 2 1 . . 1 . . 1 1 . 2 . . . 1 4 . . 2 . 1 1 . . 10 Energy Gun 12 | 1 4 1 1 . . . . 1 . . . . . . . . . 1 1 . . . . . . . . . 2 . . . . . . Energy Cannon 3 | . . . . . . . . . . . . . . . . . . . . . . . . . . . . . . . . 1 . . 2 Ballistic Gun 14 | 1 1 1 3 . . 1 . . . . . . . . 1 . . . . . 1 . . . . 1 . . . . 1 . . . 3 Ballistic Cannon . | . . . . . . . . . . . . . . . . . . . . . . . . . . . . . . . . . . . . Launcher 5 | . . . . . . . . . . . . . . . . . . . . . . . . . . . . . . . . . . . 5 Special Weapon 2 | . . . . . . . . . . . 1 . . . . . . . . . 1 . . . . . . . . . . . . . . Impact Weapon 1 | . . . . . . . . 1 . . . . . . . . . . . . . . . . . . . . . . . . . . . Slashing Weapon 4 | . . . . . . . . 1 . . 1 1 . . . . . . . . . . . . . 1 . . . . . . . . . Piercing Weapon . | . . . . . . . . . . . . . . . . . . . . . . . . . . . . . . . . . . . . Special Melee Weapon 3 | . . . . . . . . . . . . . . . . . . . . . . . . . 1 2 . . . . . . . . . Unidentified Prototypes 39 | . 1 . 2 1 4 . 1 4 . 1 2 1 . . 1 . . . 3 . . . . 1 . 4 . 1 2 . 1 3 . 2 4 Parts Lost 8 | . 1 . . . . . 1 . . 1 . . . . 1 . . . 1 . 1 . . . . 1 . . . . . . . . 1 Power 2 | . . . . . . . . . . 1 . . . . . . . . . . 1 . . . . . . . . . . . . . . Propulsion 1 | . 1 . . . . . . . . . . . . . . . . . . . . . . . . . . . . . . . . . . Utility 5 | . . . . . . . 1 . . . . . . . 1 . . . 1 . . . . . . 1 . . . . . . . . 1 Weapon . | . . . . . . . . . . . . . . . . . . . . . . . . . . . . . . . . . . . . Highest Loss Streak 1 | . 1 . . . . . 1 . . 1 . . . . 1 . . . 1 . 1 . . . . 1 . . . . . . . . 1 To Critical Strikes . | . . . . . . . . . . . . . . . . . . . . . . . . . . . . . . . . . . . . Average Backups 2 | . . 2 2 2 1 2 2 3 3 3 4 3 3 3 2 1 2 2 2 4 3 4 4 3 2 2 2 3 1 2 1 2 3 4 2 Power . | . . . . . . . . . . . . . . . . . . . . . . 1 1 1 1 . . . . . . . . . . Propulsion . | . . . . . . . . . . . . 1 1 1 . . . . . . . . . . . . . 1 . . . . . . . Utility . | . . . . 1 . . . . . . . 1 1 1 . . 1 1 1 3 2 2 2 1 1 . 1 1 . 1 1 . . . 1 Weapon . | . . 2 2 1 . 1 1 . 1 . . . . . . . . . . . . . . . . . . . . . . . . . . Tool/Special . | . . . . . . . . . . . . . . . . . . . . . . . . . . . . . . . . . . . . Unused Backups 122 | . . . 4 . 6 . 2 1 1 2 2 1 . . 1 1 2 . . 3 4 3 . 1 5 4 2 . 7 . 3 5 1 7 54 Power 14 | . . . . . 3 . 1 . . . . . . . . . . . . . . . . . 1 . . . . . 1 . 1 1 6 Propulsion 32 | . . . . . . . . . . . . . . . . . . . . 3 . . . . 4 . . . . . . 4 . 4 17 Utility 42 | . . . . . 3 . . . 1 1 1 . . . . 1 2 . . . 4 . . 1 . 3 . . 5 . . 1 . . 19 Weapon 28 | . . . 4 . . . 1 1 . 1 1 . . . 1 . . . . . . 3 . . . . 2 . 2 . 2 . . . 10 Tool/Special 6 | . . . . . . . . . . . . 1 . . . . . . . . . . . . . 1 . . . . . . . 2 2 Average Slot Usage (%) 86 | . 81 84 84 88 90 100 95 96 100 99 93 86 90 90 92 90 90 90 90 95 87 81 82 82 85 84 79 77 78 84 85 87 88 88 84 Engine 1 | . 11 8 7 7 5 . . . . . . . . . . . . . . . . . . . . . . . . . 1 2 3 3 . Core 5 | . . . . . 1 7 5 5 5 5 7 10 10 10 9 9 9 9 9 9 8 8 8 8 8 6 4 4 3 7 4 2 3 3 6 Reactor 3 | . . . . . . . . . . . . . . . . . . . 1 4 1 . . . . 1 4 4 3 7 7 7 7 7 6 Hover 5 | . . . . . . . . . . . . . . . . . . . . . . . . . . . . . . . . . . . 15 Flight 16 | . 16 25 26 29 28 28 29 27 27 26 21 20 20 20 26 28 28 28 27 27 26 21 21 21 21 20 16 16 17 23 22 23 23 23 5 Device 30 | . 23 25 23 22 23 24 26 27 27 28 29 23 25 25 26 28 28 28 28 31 32 38 39 39 39 36 37 36 34 34 31 34 34 34 29 Processor 3 | . . . . . 1 7 5 7 11 10 10 10 10 10 9 9 9 9 9 9 6 4 4 4 4 4 4 4 3 3 3 3 3 3 1 Protection 1 | . 2 6 7 7 9 7 3 4 5 4 5 3 5 5 . . . . . . . . . . . . . . 1 . . . . . . Ballistic Gun 12 | . . 14 19 22 21 24 23 20 22 21 19 17 18 20 17 14 14 13 13 13 11 8 8 8 8 9 12 12 10 7 9 10 11 11 9 Launcher 1 | . . . . . . . . . . . . . . . . . . . . . . . . . . . . . . . . . . . 3 Peak Build Rating 276 | 8 32 40 44 53 67 70 84 102 100 110 108 112 106 96 116 117 117 119 136 134 151 142 140 140 154 172 172 179 210 198 216 217 209 213 276 Average Rating 174 | 6 21 35 39 43 49 67 76 95 99 100 98 99 98 95 108 115 116 116 119 132 138 138 140 139 150 163 165 166 172 192 202 208 208 210 251 On Entrance 117 | . 8 32 35 43 43 67 70 84 100 99 104 93 106 96 96 115 117 117 117 132 134 132 140 140 140 154 172 165 165 192 198 209 209 209 204 Avg Prop Armor Cover (%) 1 | 7 7 . . . . . . . . . . . . . 1 . . . . . . . . . . . . . . . 1 1 1 1 1 Naked Turns . | . . . . . . . . . . . . . . . . . . . . . . . . . . . . . . . . . . . . Heaviest Build 136 | 10 32 30 34 34 44 32 36 39 34 49 48 56 45 35 50 37 37 37 54 52 52 53 53 53 54 67 67 81 94 77 82 94 81 81 136 Greatest Support 130 | 20 22 31 35 35 38 38 48 50 47 52 62 55 47 47 58 58 58 58 66 60 66 55 55 59 59 72 72 65 80 80 82 94 82 83 130 Greatest Overweight (x) 5 | . 1 . 1 . 1 . . . . 1 1 1 . . . . . . . . 1 . . . . 1 1 1 1 . 1 1 1 1 5 Average Overweight (x) . | . . . . . . . . . . . . . . . . . . . . . . . . . . . . 1 . . . . . . . Largest Inventory Capacity 6 | 2 3 3 3 4 4 4 4 4 4 4 4 4 4 4 4 4 4 4 4 4 4 4 4 4 4 4 4 4 4 4 4 4 4 5 6 Average Capacity 4 | 2 2 3 3 3 4 4 4 4 4 4 4 4 4 4 4 4 4 4 4 4 4 4 4 4 4 4 4 4 4 4 4 4 4 4 5 Most Carried 6 | . 3 3 3 4 4 4 4 4 4 4 4 4 4 4 4 4 4 4 4 4 4 4 4 4 4 4 4 4 4 4 4 4 4 5 6 Average Carried 3 | . 1 2 2 3 2 3 3 3 4 3 3 3 3 3 3 4 3 3 2 3 3 3 4 4 3 3 3 4 3 4 3 3 3 4 3 Final Capacity 6 | 2 3 3 3 4 4 4 4 4 4 4 4 4 4 4 4 4 4 4 4 4 4 4 4 4 4 4 4 4 4 4 4 4 4 5 6 Final Carried 4 | . 3 3 3 4 4 4 4 4 4 4 4 4 3 4 4 4 4 3 4 4 4 4 4 4 4 3 4 4 4 4 4 4 4 4 4 Transmogrified Parts 4 | . . . . . . . . . . . . . . . . . . . . . . . . . . . . . 4 . . . . . . Integrity Recovered 4 | . . . . . . . . . . . . . . . . . . . . . . . . . . . . . 4 . . . . . . Class Distribution -------------------- 47% | Scavenger-Sprinter 27% | Generator-Executioner 7% | Scavenger-Executioner 5% | Generator-Sprinter 4% | Scavenger-Scout Dominant Class ---------------- Mutant | -10/Materials Scavenger-Sprinter | -10/Mines Sprinter | -9/Materials Sprinter | -9/Mines Scavenger-Sprinter | -9/Exiles Scavenger-Sprinter | -8/Mines Scavenger-Sprinter | -8/Materials Scavenger-Sprinter | -7/Factory Scavenger-Sprinter | -7/Waste Scavenger-Sprinter | -7/Factory Scavenger-Sprinter | -7/Lower Caves Scavenger-Gladiator | -7/Lower Caves Scavenger-Sprinter | -7/Data Miner Scavenger-Sprinter | -6/Proximity Caves Scavenger-Sprinter | -6/Factory Scavenger-Sprinter | -6/Lower Caves Scavenger-Sprinter | -6/Lower Caves Scavenger-Sprinter | -6/Zion Scavenger-Sprinter | -6/Deep Caves Scavenger-Sprinter | -5/Proximity Caves Scavenger-Sprinter | -5/Factory Scavenger-Sprinter | -5/Upper Caves Scavenger-Scout | -5/Upper Caves Scavenger-Scout | -5/Zhirov Scavenger-Scout | -4/Proximity Caves Scavenger-Scout | -4/Factory Scavenger-Executioner | -4/Upper Caves Scavenger-Executioner | -4/Upper Caves Scavenger-Sprinter | -4/Warlord Scavenger-Sprinter | -3/Proximity Caves Scavenger-Sprinter | -3/Research Scavenger-Sprinter | -3/Testing Scavenger-Sprinter | -2/Research Scavenger-Sprinter | -2/Quarantine Generator-Executioner | -2/Protoforge Resources | -11 -10 -10 -9 -9 -9 -8 -8 -7 -7 -7 -7 -7 -7 -6 -6 -6 -6 -6 -6 -5 -5 -5 -5 -5 -4 -4 -4 -4 -4 -3 -3 -3 -2 -2 -2 ----------- Run | Yrd Mat Min Mat Min Exi Min Mat Fac Was Fac Low Low Dat Pro Fac Low Low Zio Dee Pro Fac Upp Upp Zhi Pro Fac Upp Upp War Pro Res Tes Res Qua Frg Matter Collected 166668 | 290 1048 297 627 432 1378 356 2104 1267 117 6689 764 3017 271 600 6622 414 602 154 2062 476 6423 462 1270 840 250 9264 1610 786 12974 320 7075 8117 6670 8165 72855 Remotely 125062 | 290 . . . . . . . . . . . . . . . . . . . . 3594 457 1270 776 250 9111 1523 786 12014 . 2045 8071 6538 7645 70692 Salvage Created 210323 | 107 1364 210 688 406 337 664 2354 1883 . 7086 862 948 . 576 8344 512 791 98 2043 386 9474 481 635 1028 456 10640 1652 955 19242 877 7735 10166 9754 11637 95932 Parts 8719 | 11 114 35 53 29 46 21 146 122 4 484 68 80 7 33 436 32 43 6 78 57 417 27 53 40 26 560 74 61 725 47 400 456 406 326 3196 Haulers Intercepted 22 | . 2 . 1 . . . 3 3 . 3 . . . . 2 . . . . . 1 . . . . 4 . 1 . . 1 . 1 . . Recyclers Shooed 8 | 1 . . . . . 1 1 . . 2 . . . . . . . . . . . . . . . 3 . . . . . . . . . Parts Field Recycled . | . . . . . . . . . . . . . . . . . . . . . . . . . . . . . . . . . . . . Retrieved Matter . | . . . . . . . . . . . . . . . . . . . . . . . . . . . . . . . . . . . . Parts Self-Destructed 583 | . . . . . . . . . . . 54 68 . 39 . 32 43 . . 57 . 26 54 2 26 . 74 61 . 47 . . . . . Prevented 5 | . . . . . . . . . . . 1 . . . . 1 . . . . . . 3 . . . . . . . . . . . . Parts Restored 9 | . . . . . . . . . . . . . . . . . . . . . . . . . . . . . . . . . . . 9 Faulty 9 | . . . . . . . . . . . . . . . . . . . . . . . . . . . . . . . . . . . 9 Kills | -11 -10 -10 -9 -9 -9 -8 -8 -7 -7 -7 -7 -7 -7 -6 -6 -6 -6 -6 -6 -5 -5 -5 -5 -5 -4 -4 -4 -4 -4 -3 -3 -3 -2 -2 -2 ------- Run | Yrd Mat Min Mat Min Exi Min Mat Fac Was Fac Low Low Dat Pro Fac Low Low Zio Dee Pro Fac Upp Upp Zhi Pro Fac Upp Upp War Pro Res Tes Res Qua Frg Combat Hostiles Destroyed 3893 | . 49 17 21 10 4 12 56 33 . 136 19 17 1 11 146 13 21 . 84 26 148 12 29 9 9 162 30 22 317 15 120 158 134 172 1880 Guns 2842 | . 48 15 21 10 4 12 56 33 . 136 19 16 1 11 146 13 21 . 84 26 148 12 29 9 9 159 30 22 314 15 119 158 134 171 841 Cannons 22 | . . . . . . . . . . . . . . . . . . . . . . . . . . . . . . . . . . . 22 AOE 1022 | . . 2 . . . . . . . . . . . . . . . . . . . . . . . 3 . . 3 . . . . . 1014 Classes Destroyed 42 | 2 7 2 2 . 2 1 2 2 . 2 3 2 . 1 1 . 1 . 2 . . . . . . 2 . . 2 . . 2 . 2 2 Worker 31 | . 1 . . . . . 2 4 . 4 . . . . . . . . . . 4 . . . . 11 . . . . 1 2 . . 2 Builder 22 | . . 1 . . . . . 2 . . . . . . 3 . . . . . 2 . . . . 6 . . . . 3 3 . . 2 Tunneler 5 | 2 . . . . . . . 1 . 1 . . . . . . . . . . . . . . . 1 . . . . . . . . . Hauler 22 | . 2 . 1 . . . 3 3 . 3 . . . . 2 . . . . . 1 . . . . 4 . 1 . . 1 . 1 . . Recycler 23 | 1 . . 2 . . 1 . 1 . 1 . . . . 2 . . . . . 5 . . . . 5 . . . . 3 2 . . . Carrier 74 | . . . . . . . . . . . . . . . . . . . . . . . . . . . . . . . . . . 4 70 Mechanic 138 | . . . . . . . . . . 1 . . . . 1 . . . . . 1 . . . . 1 . . 3 . . 7 1 . 123 Operator 21 | . . . 1 . . . . 3 . 4 . . . . . . . . . . . . . . . 1 . . . . 1 3 3 2 3 Drone 11 | . . . . . . . . . . . . . . 2 . . . . . 2 . . . . . . . . . . . . . . 7 Turret 1 | . . . . . 1 . . . . . . . . . . . . . . . . . . . . . . . . . . . . . . Watcher 48 | . 1 . . . . . 2 2 . 2 . . . . 5 . . . . . 3 . . . . 12 . . . . 6 3 6 1 5 Swarmer 253 | . 6 9 13 4 . 4 3 10 . 13 4 2 . 1 26 7 5 . . 13 16 3 17 . 3 13 11 6 16 6 18 1 13 . 10 Cutter 13 | . . . . . . . 2 . . . . . . . 3 . . . . . . . . . . 3 . . . . 1 . 4 . . Saboteur 180 | . . . . . . . . . . . . . . . 6 . . . . . 4 . . . . 4 . . 12 . 2 15 6 6 125 Grunt 1063 | . 40 5 4 6 . 5 37 11 . 61 . 3 . 6 41 4 9 . . 8 52 3 5 . 2 49 10 7 110 5 32 42 48 44 414 Brawler 194 | . . . . . . . . 1 . 8 . . . . 5 . . . . . 10 2 1 . 1 6 . 2 20 . 2 11 13 8 104 Duelist 177 | . . . . . . 2 1 . . 4 . . . . 8 . 1 . . . 9 . . . . 6 3 1 9 . 2 10 10 2 109 Protector 185 | . . . . . . . . . . 6 . . . . 3 . . . . . 6 . . . . 7 . . 18 . 4 8 1 12 120 Researcher 14 | . . . . . . . . . . . . . . . . . . . . . . . . . . . . . . . . 8 . 1 5 Sentry 199 | . . . 4 . . . 9 7 . 11 . 1 . 1 22 . 2 . . 2 16 2 2 . 1 23 3 3 1 2 15 8 14 9 41 Demolisher 12 | . . . . . . . . . . . . . . . . . . . . . . . . . . . . . 11 . 1 . . . . Specialist 29 | . . . . . . . . . . . 6 3 . . . . . . . . . . . . . 3 . . 6 . 2 . . 6 3 Hunter 346 | . 2 . . . . . 3 1 . 19 3 . . . 14 1 3 . . . 21 2 2 . 2 23 2 . 7 2 9 21 11 14 184 Programmer 499 | . . . . . . . . 2 . 11 1 4 . . 12 . . . . . 8 . 2 . . 9 . 3 19 . 8 16 1 33 370 Heavy 16 | . . . . . . . 1 1 . 3 . . . . 1 . . . . . 2 . . . . 3 . . . . 2 . 3 . . Q-Series 3 | . . . . . . . . . . . . . . . . . . . . . . . . . . . . . . . . . . . 3 Behemoth 19 | . . . . . . . . . . . . 1 . 1 1 1 . . . 1 . . . . . 2 1 . 6 . 3 . 1 . 1 Quarantine Guard 8 | . . . . . . . . . . . . . . . . . . . . . . . . . . . . . . . . . . 8 . Enhanced Grunt 10 | . . . . . . . . . . . . . 1 . . . . . . . . . . 9 . . . . . . . . . . . Lightning 3 | . . . . . . . . . . . . . . . . . . . . . . . . . . . . . . . . . . 3 . Hotshot 19 | . . . . . . . . . . . . . . . . . . . . . . . . . . . . . . . . . . . 19 Decapitator 16 | . . . . . . . . . . . . . . . . . . . . . . . . . . . . . . . . . . . 16 Immortal 4 | . . . . . . . . . . . . . . . . . . . . . . . . . . . . . . . . . . . 4 Overlord 1 | . . . . . . . . . . . . . . . . . . . . . . . . . . . . . . . . . . . 1 Tracker 87 | . . . . . . . . . . . . . . . 2 . . . . . 2 . . . . 5 . . . . 9 5 4 4 56 Combat Programmer 66 | . . . . . . . . . . . . . . . 2 . . . . . 2 . . . . 4 . . . . 8 3 4 4 39 Investigator 13 | . . . . . . . . . . . . . . . . . . . . . . . . . . . . . . . . 2 2 1 8 Striker 160 | . . . . . . . . . . . . . . . . . . . . . . . . . . 1 . . 15 . 1 9 . 5 129 Executioner 136 | . . . . . . . . . . . . . . . . . . . . . . . . . . 1 . . 8 . 1 8 . 8 110 Alpha 7 5 | . . . . . . . . . . . . . . . . . . . . . . . . . . . . . . . . 1 . 1 3 Fortress 1 | . . . . . . . . . . . . . . . . . . . . . . . . . . . . . . . . . . 1 . V-Series 9 | . . . . . . . . . . . . . . . . . . . . . . . . . . . . . . . . . . . 9 Subdweller 1 | . 1 . . . . . . . . . . . . . . . . . . . . . . . . . . . . . . . . . . Zionite 4 | . . . . . 3 . . . . . . . . . . . . 1 . . . . . . . . . . . . . . . . . Z-Technician 5 | . . . . . . . . . . . . . . . . . . . 5 . . . . . . . . . . . . . . . . Z-Light 11 | . . . . . . . . . . . . . . . . . . . 11 . . . . . . . . . . . . . . . . Tinkerer 3 | . . . . . . . . . . . . 1 . . . . . . . . . . . . . . . . 1 . . . . . 1 Master Thief 4 | . . . . . . . . . . . 1 3 . . . . . . . . . . . . . . . . . . . . . . . Assembler 2 | . . . . . . . . . . . . . . . . . . . 2 . . . . . . . . . . . . . . . . Assembled 78 | . . 3 . . 3 . . . . . . . . . . . . . 72 . . . . . . . . . . . . . . . . Surgeon 2 | . . . . . . . . . . . . . . . . . . . . . . . . . . . . . 2 . . . . . . Thug 27 | . . 1 . . . . . . . . 1 . . . . . . . . . . . . . . . . . 21 . . . . 4 . Savage 2 | . . . . . . . . . . . . . . . . . . . . . . . . . . . . . 1 . . . 1 . . Butcher 3 | . . . . . . . . . . . . . . . . . . . . . . . . . . . . . 3 . . . . . . Bouncer 9 | . . . . . . . . . . . . . . . . . . . . . . . . . . . . . 9 . . . . . . Martyr 1 | . . . . . . . . . . . . . . . . . . . . . . . . . . . . . 1 . . . . . . Guerrilla 1 | . . . . . . . . . . . . . . . . . . . . . . . . . . . . . 1 . . . . . . Wizard 5 | . . . . . . . . . . . . . . . . . . . . . . . . . . . . . 5 . . . . . . Marauder 2 | . . . . . . . . . . . . . . . . . . . . . . . . . . . . . 2 . . . . . . Fireman 6 | . . . . . . . . . . . 3 . . . . . . . . . . . . . . . . . 1 . . . . . 2 Mutant 16 | . . . . . . . . . . . . . . . . . 1 1 . . . . . . . . . . 14 . . . . . . Commander 4 | . . . . . . . . . . . . . . . . . . . . . . . . . . . . . 4 . . . . . . Knight 2 | . . . . . . . . . . . . . . . . . . . . . . . . . . . . . 2 . . . . . . Best Kill Streak 168 | 2 7 10 14 7 6 5 17 27 . 18 9 4 1 5 54 7 13 1 58 9 44 11 13 9 9 33 10 7 67 9 20 48 34 50 168 Combat Bots Only 148 | . 7 10 7 7 3 4 16 7 . 14 9 4 1 5 53 7 13 . 56 9 43 11 13 9 9 20 10 7 65 9 20 45 33 48 148 Max Kills in Single Turn 65 | 1 2 2 2 2 2 2 2 3 . 2 2 1 1 2 3 3 2 1 5 2 3 2 2 1 2 5 5 4 7 2 5 6 4 5 65 Gunslinging 3 | . 1 1 1 1 . 1 1 1 . 1 1 . . 1 2 1 1 . 1 1 1 . 1 . 1 1 3 2 3 1 2 2 2 2 3 Exploded 59 | . . 2 . . . . . . . . . . . . . . . . . . . . . . . 3 . . 1 . . . . . 59 Melee . | . . . . . . . . . . . . . . . . . . . . . . . . . . . . . . . . . . . . Uniques/NPCs Destroyed 11 | . . . . . 4 1 . . . . . . . . . . . . 1 . . . . 2 . . . . 2 . . . . . 1 8R-AWN (-9/Exiles) EX-DEC (-9/Exiles) EX-BIN (-9/Exiles) EX-HEX (-9/Exiles) 7V-RTL (-8/Mines) Z-Imprinter (-6/Deep Caves) Zhirov (-5/Zhirov) Svarog (-5/Zhirov) Fake God Mode (-4/Warlord) Warlord (-4/Warlord) Superfortress (-2/Protoforge) Combat | -11 -10 -10 -9 -9 -9 -8 -8 -7 -7 -7 -7 -7 -7 -6 -6 -6 -6 -6 -6 -5 -5 -5 -5 -5 -4 -4 -4 -4 -4 -3 -3 -3 -2 -2 -2 -------- Run | Yrd Mat Min Mat Min Exi Min Mat Fac Was Fac Low Low Dat Pro Fac Low Low Zio Dee Pro Fac Upp Upp Zhi Pro Fac Upp Upp War Pro Res Tes Res Qua Frg Hostile Shots Fired 4903 | . 137 47 42 12 49 25 80 100 . 375 105 70 . 26 425 20 29 9 113 26 231 12 46 21 7 270 28 12 303 19 164 261 122 203 1514 Missed 2382 | . 61 18 18 5 6 8 23 45 . 175 45 36 . 12 200 4 13 7 48 7 106 6 17 11 2 121 13 3 157 14 108 154 59 149 731 Hits 2521 | . 76 29 24 7 43 17 57 55 . 200 60 34 . 14 225 16 16 2 65 19 125 6 29 10 5 149 15 9 146 5 56 107 63 54 783 Melee 20 | . . 1 . . . . 1 . . 1 1 1 . . 5 . . . . . . . . . . . . . . . 1 . 1 . 8 Projectile 2501 | . 76 28 24 7 43 17 56 55 . 199 59 33 . 14 220 16 16 2 65 19 125 6 29 10 5 149 15 9 146 5 55 107 62 54 775 AOE 32 | . . . . . . . 2 . . . . . . . 1 . . . . . . . . . . 2 . . 6 . 2 1 3 . 15 Critical Strikes 129 | . 1 . . . 12 . 2 1 . 8 1 1 . 2 10 . 1 . 2 . 9 . . . . 6 . . 11 . 5 9 1 3 44 Actively Blocked 40 | . . . . . . . . 1 . 8 1 1 . 2 10 . 1 . 2 . 9 . . . . 5 . . . . . . . . . Part Disruptions 32 | . 1 . . . . . 1 . . 4 4 . . 1 3 . 1 . 2 . . . . . . . . . 5 . . . . 2 8 Damage Taken 33867 | . 939 316 203 60 801 279 992 727 . 2633 506 336 . 295 2686 243 234 9 977 300 2155 86 330 480 66 2042 186 153 2487 26 963 1299 1015 925 9118 Core 26126 | . 738 174 103 24 536 201 765 456 . 1858 375 251 . 176 2080 195 195 7 765 241 1708 73 255 379 55 1616 146 117 1914 19 763 1035 806 744 7356 Absorbed by Shields 858 | . . . . . . . . . . . . . . . . . . . . . . . . . . . . . 99 23 59 385 63 . 229 Redirected to Core 22444 | . 537 174 87 24 327 161 638 418 . 1547 312 212 . 145 1854 161 137 7 721 202 1567 46 248 379 40 1425 127 117 1562 19 698 920 742 638 6252 Redirected to Shielding 94 | . . . . . . . . . . . . . . . . . . . . . . . . . . . . . 94 . . . . . . Ignored by Resistances 21475 | . . . . . 211 56 15 29 . 407 436 185 . 104 1004 113 63 9 330 104 668 22 171 . 40 819 107 25 1209 51 410 1021 603 440 12823 Core Remaining (%) 94 | 100 . 100 . . . 48 100 . . . . . . 100 . . . . . 100 . . . . 100 . . . . 100 . 100 . . . Volleys Fired 5591 | 10 97 32 35 9 52 38 114 84 3 353 54 54 13 29 330 23 46 11 122 34 291 21 34 41 11 330 34 26 441 16 198 250 195 271 1889 Largest 4 | 2 3 3 3 3 3 4 4 4 4 4 4 4 4 4 4 3 3 3 3 3 3 2 2 2 2 3 3 3 4 2 3 3 3 3 4 Hottest 360 | 60 195 158 75 75 75 100 100 100 100 100 100 100 100 100 100 80 80 225 80 80 85 60 60 60 60 90 90 90 180 60 90 200 90 90 360 Shots Fired 16672 | 20 224 72 96 27 154 133 431 308 13 1402 198 208 49 112 1137 68 139 25 332 98 720 42 67 82 22 736 101 78 1226 32 532 729 587 754 5718 Gun 16414 | 20 224 72 96 27 154 133 431 308 13 1402 198 208 49 112 1137 68 139 25 332 98 719 42 67 82 22 736 101 78 1226 32 532 727 587 754 5463 Cannon 119 | . . . . . . . . . . . . . . . . . . . . . . . . . . . . . . . . 2 . . 117 Launcher 138 | . . . . . . . . . . . . . . . . . . . . . . . . . . . . . . . . . . . 138 Special 1 | . . . . . . . . . . . . . . . . . . . . . 1 . . . . . . . . . . . . . . Kinetic 16154 | 10 7 56 96 27 154 133 431 308 13 1402 198 208 49 112 1137 68 139 21 332 98 719 42 67 82 22 736 101 78 1214 32 531 727 587 754 5463 Thermal 366 | 10 217 16 . . . . . . . . . . . . . . . 4 . . . . . . . . . . . . . 2 . . 117 Explosive 138 | . . . . . . . . . . . . . . . . . . . . . . . . . . . . . . . . . . . 138 Electromagnetic 1 | . . . . . . . . . . . . . . . . . . . . . . . . . . . . . . . 1 . . . . Entropic 12 | . . . . . . . . . . . . . . . . . . . . . . . . . . . . . 12 . . . . . . Robot Hit Streak 139 | 6 19 5 11 7 38 25 24 28 9 36 17 38 7 21 76 38 56 33 51 64 74 54 49 81 27 82 53 29 101 25 52 61 53 48 139 Robot Miss Streak 7 | 2 4 4 2 2 3 3 4 3 1 4 5 7 1 2 4 1 1 . 2 2 3 2 2 1 1 2 2 2 3 1 3 2 4 2 5 Penetration Max 1 | . 1 1 . . . . . . . . . . . . . . . . . . . . . . . . . . . . . . . . 1 Secondary Targets 927 | . 4 6 4 4 2 4 10 9 . 37 10 4 1 4 35 2 2 1 16 6 31 1 9 3 4 37 10 9 123 2 33 76 53 47 328 Max Gunslinging Chain 2 | . 1 1 1 2 1 2 1 1 . 1 2 1 1 1 2 1 1 1 1 1 1 1 1 1 1 1 2 2 2 1 2 2 2 1 2 Capacitor 31 | . . . . . . . . . . . . . . . . . . . . . . . . . . . . . . . . . . . 31 Shots Hit Robots 13272 | 13 154 45 58 18 127 101 302 194 9 990 137 131 34 89 869 61 116 12 282 84 628 38 60 75 23 644 86 59 1072 17 475 646 514 642 4467 Core Hits 10301 | 4 65 24 27 11 39 36 126 93 2 392 42 43 12 30 377 26 50 4 164 41 376 21 42 59 18 494 56 40 798 26 332 484 407 491 5049 Critical Kills 61 | . . . . 1 . . 1 . . 3 . 1 . 1 5 1 1 . 2 . 3 . . . . 3 2 1 6 1 2 2 2 4 19 Critical Parts Destroyed 87 | . . . . . . . 1 . . 4 2 . . . 4 . . . . . 3 . . . . 3 . 1 10 1 7 8 4 9 30 Critical Strikes 173 | . 5 . . 1 2 . 2 . . 7 2 1 . 1 9 1 1 . 3 . 6 . . . . 6 2 2 18 2 9 10 7 14 62 Burn 5 | . 5 . . . . . . . . . . . . . . . . . . . . . . . . . . . . . . . . . . Meltdown 3 | . . . . . . . . . . . . . . . . . . . . . . . . . . . . . . . . . . . 3 Destroy 165 | . . . . 1 2 . 2 . . 7 2 1 . 1 9 1 1 . 3 . 6 . . . . 6 2 2 18 2 9 10 7 14 59 Melee Attacks 29 | . . . . . . . . . . 1 . . 1 . . . . . . . . . . . 1 . . . 9 . 17 . . . . Impact . | . . . . . . . . . . . . . . . . . . . . . . . . . . . . . . . . . . . . Slashing 11 | . . . . . . . . . . 1 . . 1 . . . . . . . . . . . . . . . 9 . . . . . . Piercing 18 | . . . . . . . . . . . . . . . . . . . . . . . . . 1 . . . . . 17 . . . . Sneak Attacks 11 | . . . . . . . . . . . . . 1 . . . . . . . . . . . 1 . . . 1 . 8 . . . . Combat Hostiles 2 | . . . . . . . . . . . . . . . . . . . . . . . . . . . . . . . 2 . . . . Follow-up Attacks . | . . . . . . . . . . . . . . . . . . . . . . . . . . . . . . . . . . . . Damage Inflicted 962357 | 152 2510 981 1137 362 2070 1809 5290 3947 196 18605 2530 2447 608 1811 21210 1709 3055 329 10064 2783 28509 1941 3202 3997 952 35940 4744 3328 61820 1501 26144 37956 29850 36658 602210 Guns 585086 | 152 2510 849 1137 362 2070 1809 5290 3489 196 18331 2530 2447 594 1811 21210 1709 3055 329 7944 2783 28509 1941 3202 3997 950 34442 4744 3328 60904 1501 26096 37635 29850 36658 230722 Cannons 9365 | . . 47 . . . . . . . . . . . . . . . . . . . . . . . . . . . . . 283 . . 9035 Explosions 367623 | . . 85 . . . . . 458 . 274 . . . . . . . . 2120 . . . . . . 1498 . . 816 . . 38 . . 362334 Melee 164 | . . . . . . . . . . . . . 14 . . . . . . . . . . . 2 . . . 100 . 48 . . . . Ramming 119 | . . . . . . . . . . . . . . . . . . . . . . . . . . . . . . . . . . . 119 Kinetic 582439 | 75 120 701 1137 362 2070 1809 5290 3489 196 18331 2530 2447 594 1811 21210 1709 3055 329 7944 2783 28509 1941 3202 3997 950 34442 4744 3328 60904 1501 26064 37635 29850 36658 230722 Thermal 32593 | 77 2390 280 . . . . . . . . . . . . . . . . 2120 . . . . . . 1238 . . . . . 321 . . 26167 Explosive 347010 | . . . . . . . . 458 . 274 . . . . . . . . . . . . . . . 260 . . 816 . . . . . 345202 Electromagnetic 32 | . . . . . . . . . . . . . . . . . . . . . . . . . . . . . . . 32 . . . . Impact . | . . . . . . . . . . . . . . . . . . . . . . . . . . . . . . . . . . . . Slashing 114 | . . . . . . . . . . . . . 14 . . . . . . . . . . . . . . . 100 . . . . . . Piercing 50 | . . . . . . . . . . . . . . . . . . . . . . . . . 2 . . . . . 48 . . . . Highest Corruption 28 | . 2 . . . . 4 . . . 4 15 25 17 17 19 1 . . . . 19 19 3 . . 25 25 . 10 . 7 4 4 28 28 Average Corruption 8 | . 2 . . . . 3 . . . 1 13 14 17 17 9 1 . . . . 1 15 2 . . 22 25 . 2 . 2 2 2 7 8 Corruption Purged . | . . . . . . . . . . . . . . . . . . . . . . . . . . . . . . . . . . . . Corruption Blocked . | . . . . . . . . . . . . . . . . . . . . . . . . . . . . . . . . . . . . Effects 549 | . 14 . . . . 3 . . . 3 10 16 6 24 41 1 . . . . 8 17 2 . . 99 2 . 16 . 5 17 9 47 209 Message Errors 105 | . 6 . . . . 2 . . . . 1 2 2 7 9 1 . . . . . 4 . . . 9 . . 2 . 1 1 2 7 49 Matter Fused 87 | . 2 . . . . 1 . . . 1 2 . 1 2 6 . . . . . 1 3 . . . 12 . . 4 . 1 7 . 9 35 Heat Flow Errors 46 | . 1 . . . . . . . . . 1 1 . 4 5 . . . . . 1 . . . . 13 . . 2 . . . 2 4 12 Energy Discharges 39 | . 2 . . . . . . . . . 1 4 . 1 1 . . . . . . . 1 . . 9 . . 2 . . . 1 1 16 Parts Rejected 6 | . 2 . . . . . . . . . . . . . . . . . . . . . . . . 1 . . . . . . . 1 2 Parts Fused 3 | . . . . . . . . . . . . . . 1 . . . . . . . . . . . . . . . . . . . . 2 Data Loss (minor) 57 | . 1 . . . . . . . . 1 2 3 . 2 3 . . . . . 1 5 . . . 7 1 . . . 2 1 1 9 18 Data Loss (major) 16 | . . . . . . . . . . . 2 1 . 1 2 . . . . . 1 2 . . . . . . . . . 1 . . 6 Misfires 14 | . . . . . . . . . . . . 1 . . . . . . . . . 1 . . . 3 . . . . . 2 2 1 4 Alerts 13 | . . . . . . . . . . . . . . 1 . . . . . . 1 1 . . . 3 . . 2 . . 1 . 1 3 Misdirections 14 | . . . . . . . . . . . . 2 . . 1 . . . . . . . . . . 9 . . . . . . . . 2 Weapon Failures 149 | . . . . . . . . . . 1 1 2 3 5 14 . . . . . 3 1 1 . . 33 1 . 4 . 1 4 1 14 60 Overload Shots 5 | . . . . . . . . . . . . . . . . . . 4 . . . . . . . . . . . . . . . . 1 Overflow Damage 24373 | . . 27 . . . . . . . . . . . . . . . . 475 . . . . . . 8 . . 62 . . . . . 23801 Projectiles 2035 | . . 27 . . . . . . . . . . . . . . . . . . . . . . . . . . . . . . . . 2008 Explosions 22263 | . . . . . . . . . . . . . . . . . . . 475 . . . . . . 8 . . 2 . . . . . 21778 Melee 75 | . . . . . . . . . . . . . . . . . . . . . . . . . . . . . 60 . . . . . 15 Knockbacks 1 | . . 1 . . . . . . . . . . . . . . . . . . . . . . . . . . . . . . . . . Impact . | . . . . . . . . . . . . . . . . . . . . . . . . . . . . . . . . . . . . Kinetic 1 | . . 1 . . . . . . . . . . . . . . . . . . . . . . . . . . . . . . . . . Secondary . | . . . . . . . . . . . . . . . . . . . . . . . . . . . . . . . . . . . . Self-Inflicted Damage 389 | . . . . . . . . . . . . . . . . . . . . . . . . . . . . . 123 . . . . . 266 Shots 5 | . . . . . . . . . . . . . . . . . . . . . . . . . . . . . 3 . . . . . 2 Rammed 2 | . . . . . . . . . . . . . . . . . . . . . . . . . . . . . . . . . . . 2 Targets Rammed 2 | . . . . . . . . . . . . . . . . . . . . . . . . . . . . . . . . . . . 2 Kicked . | . . . . . . . . . . . . . . . . . . . . . . . . . . . . . . . . . . . . Crushed . | . . . . . . . . . . . . . . . . . . . . . . . . . . . . . . . . . . . . Highest Temperature 728 | . 280 . . . 23 128 124 120 68 334 265 265 84 212 229 123 101 484 308 303 328 . 29 9 9 728 . . 253 . 242 337 237 368 206 Average Temperature 64 | . 47 . . . 16 44 44 40 38 64 63 54 42 61 62 57 37 169 67 90 75 . 24 9 9 85 . . 105 . 82 122 149 117 63 Received Heat Transfer 5476 | . 276 60 15 9 40 45 405 138 . 468 120 27 . 51 414 60 83 . 276 93 348 27 54 20 9 255 9 39 472 6 39 193 87 108 1230 Thermoelectric Energy+ 2409 | . . . . . . . . . . . . . . . . . . . . . . . . . . . . . . . . . . . 2409 Effects 9 | . . . . . . . . . . 2 . . . . . . . 1 . . 3 . . . . 1 . . . . . . 1 1 . Shutdowns 1 | . . . . . . . . . . . . . . . . . . 1 . . . . . . . . . . . . . . . . . Energy Bleed 3 | . . . . . . . . . . 2 . . . . . . . . . . . . . . . . . . . . . . 1 . . Interference 4 | . . . . . . . . . . . . . . . . . . . . . 3 . . . . . . . . . . . . 1 . Matter Decay 1 | . . . . . . . . . . . . . . . . . . . . . . . . . . 1 . . . . . . . . . Siege Activations . | . . . . . . . . . . . . . . . . . . . . . . . . . . . . . . . . . . . . Martial Activations . | . . . . . . . . . . . . . . . . . . . . . . . . . . . . . . . . . . . . Shielding Activations . | . . . . . . . . . . . . . . . . . . . . . . . . . . . . . . . . . . . . Robots Disrupted . | . . . . . . . . . . . . . . . . . . . . . . . . . . . . . . . . . . . . Combat Hostiles . | . . . . . . . . . . . . . . . . . . . . . . . . . . . . . . . . . . . . Robots Corrupted 1 | . . . . . . . . . . . . . . . . . . . . . . . . . . . . . . . . . . . 1 Combat Hostiles . | . . . . . . . . . . . . . . . . . . . . . . . . . . . . . . . . . . . . Parts Fried 8 | . . . . . . . . . . . . . . . . . . . . . 2 . . . . 2 . . 2 . . . . . 2 Impact Corruptions 2 | . . . . . . . . . . . . . . . . . . . . . . . . . . . . . . . . . . . 2 Robots Melted 3 | . . . . . . . . . . . . . . . . . . . . . . . . . . . . . . . . . . . 3 Combat Hostiles 3 | . . . . . . . . . . . . . . . . . . . . . . . . . . . . . . . . . . . 3 Parts Melted 236 | . 3 . . . . . . . . 1 . . . . . . . . . . 4 . . . . . . . . . . 1 . 219 8 Heat Transferred 21829 | 175 5920 544 . . . . . . . . . . . . . . . . . . . . . . . 850 . . . . . 180 . . 14160 Parts Sabotaged 1 | . . . . . . . . . . . . . . . . . . . . . . . . . . . . . . . . . . . 1 Parts Stolen 1 | . . . . . . . . . . . . 1 . . . . . . . . . . . . . . . . . . . . . . . Parts Stripped . | . . . . . . . . . . . . . . . . . . . . . . . . . . . . . . . . . . . . Power Chain Reactions 6 | . . . . . . . . . . 3 . . . . 2 . . . . . . . . . . . . . . . 1 . . . . Alert | -11 -10 -10 -9 -9 -9 -8 -8 -7 -7 -7 -7 -7 -7 -6 -6 -6 -6 -6 -6 -5 -5 -5 -5 -5 -4 -4 -4 -4 -4 -3 -3 -3 -2 -2 -2 ------- Run | Yrd Mat Min Mat Min Exi Min Mat Fac Was Fac Low Low Dat Pro Fac Low Low Zio Dee Pro Fac Upp Upp Zhi Pro Fac Upp Upp War Pro Res Tes Res Qua Frg Maximum Alert Level 5 | . 3 2 3 2 . 1 4 5 2 5 . . . . 5 . . . . . 5 . . . . 5 . . . . 5 5 5 5 5 Low Security (%) 3 | 100 39 . . . . 76 4 . . . . . . . . . . . . . . . . . . 7 . . . . 1 . . . . Level 1 4 | . 22 1 57 94 . 23 8 . . . . . . . 9 . . . . . 11 . . . . 3 . . . . 4 . . . . Level 2 5 | . 20 98 31 5 . . 22 18 100 10 . . . . 9 . . . . . 4 . . . . 2 . . . . 6 . . . . Level 3 5 | . 17 . 10 . . . 34 18 . 9 . . . . 17 . . . . . 5 . . . . 9 . . . . 22 . . . . Level 4 6 | . . . . . . . 30 48 . 11 . . . . 11 . . . . . 22 . . . . 22 . . . . 15 . . . . Level 5 14 | . . . . . . . . 14 . 58 . . . . 13 . . . . . 3 . . . . 24 . . . . 7 12 13 31 10 High Security 59 | . . . . . . . . . . 10 . . . . 38 . . . . . 52 . . . . 30 . . . . 42 87 86 68 89 Max Security . | . . . . . . . . . . . . . . . . . . . . . . . . . . . . . . . . . . . . Sterilizations 10 | . . . 1 . . . 1 . . 1 . . . . 1 . . . . . 1 . . . . 1 . . . . 1 1 1 1 . Peak Influence 53810 | 5 1002 611 733 471 . 270 1392 1657 577 3782 . . . . 3743 . . . . . 4157 . . . . 4560 . . . . 3777 6503 7278 9105 53810 Initial 5121 | . . 388 234 281 . . 97 623 577 382 . . . . 194 . . . . . 245 . . . . 3 . . . . 141 2124 3657 4093 5121 Average 14668 | 1 373 512 400 322 . 151 857 1176 563 2201 . . . . 1648 . . . . . 2026 . . . . 1974 . . . . 1869 4364 5394 6204 28777 Influence Increases 100937 | 15 1485 383 649 340 . 380 1639 1282 . 4266 420 430 . 261 4123 290 410 . . 530 4340 307 638 5 190 4993 660 546 5134 320 4054 4459 3721 5266 49401 Destroy 0b10 Robot/C 73420 | . 960 300 420 200 . 220 1120 660 . 2720 280 280 . 220 2980 260 400 . . 480 3000 240 580 . 180 3120 600 440 4920 300 2480 3220 2720 3320 36800 Destroy 0b10 Robot/NC 2610 | 15 20 5 25 . . 5 35 80 . 115 . . . 10 85 . . . . 10 145 . . 5 . 240 . 5 95 . 105 140 60 75 1335 Destroy Leader 11306 | . 196 40 102 30 . 30 300 180 . 540 20 30 . 20 504 30 10 . . 40 474 20 50 . 10 582 60 30 . 20 556 406 404 552 6070 Allied During Kill 1024 | . . 8 . . . . . . . 54 . . . 11 25 . . . . . 249 47 8 . . 13 . 71 74 . 168 109 100 . 87 Successful Hack 192 | . 6 . 5 . . . 7 36 . 85 . . . . 12 . . . . . . . . . . 5 . . . . 24 . 5 7 . Select Force Hacks 730 | . 130 . 80 . . . 110 . . 110 . . . . 200 . . . . . 50 . . . . . . . . . 50 . . . . Disable Machine 2475 | . . 15 . . . 15 60 180 . 90 . . . . 60 . . . . . 150 . . . . 195 . . . . 45 135 45 210 1275 Destroy Structure 3421 | . 8 15 2 . . . 7 41 . 47 . . . . 17 . . . . . 152 . . . . 552 . . . . 320 224 372 339 1325 Advance Influence 150 | . . . . . . . . . . . . . . . 150 . . . . . . . . . . . . . . . . . . . . Partial Spotted 465 | . 15 . . . . . . 15 . 45 . . . . 60 . . . . . 60 . . . . 45 . . . . . 45 15 15 150 Lose Combat Pursuer 2070 | . 150 . 15 . . . . 90 . 180 120 120 . . 30 . . . . . 60 . . . . 75 . . 45 . 120 180 . 180 705 Miscellaneous 3074 | . . . . 110 . 110 . . . 280 . . . . . . . . . . . . . . . 166 . . . . 186 . . 568 1654 Influence Decreases 47127 | 15 487 780 527 692 371 130 519 1001 1104 1031 1652 841 2139 190 451 1495 613 2335 . 140 573 1719 662 2726 184 439 2050 1013 3246 4701 487 1733 2946 3439 4696 Entered New Map 38435 | . . 610 367 442 371 . 153 747 1074 165 1400 485 2139 . 27 1385 483 2335 . . 145 1539 522 2721 . 3 1688 603 2703 4591 69 1653 2846 3185 3984 Time Decay 7522 | 15 477 170 160 100 . 130 356 254 30 556 222 356 . 190 374 110 130 . . 140 278 180 140 5 184 386 362 410 523 110 318 60 40 254 502 Lost Part 70 | . 10 . . . . . 10 . . 10 . . . . 10 . . . . . 10 . . . . 10 . . . . . . . . 10 Lost Ally 650 | . . . . . . . . . . . 30 . . . 40 . . . . . 140 . . . . 40 . . 20 . 100 20 60 . 200 Purge Threat 450 | . . . . 150 . . . . . 300 . . . . . . . . . . . . . . . . . . . . . . . . . Squads Dispatched 808 | . 13 . 3 1 . . 16 13 . 39 . . . . 41 . 1 . . 1 34 . . . . 26 . . . . 38 37 26 59 460 Investigation 65 | . 12 . 3 1 . . 10 6 . 8 . . . . 10 . 1 . . 1 1 . . . . 3 . . . . 5 . 1 . 3 Extermination 27 | . . . . . . . . 2 . 5 . . . . 4 . . . . . 2 . . . . 2 . . . . 3 1 . 3 5 Reinforcement 40 | . 1 . . . . . 4 4 . 8 . . . . 5 . . . . . 3 . . . . 5 . . . . 3 2 2 3 . Assault 602 | . . . . . . . . 1 . 9 . . . . 17 . . . . . 16 . . . . 9 . . . . 16 32 15 48 439 Garrison 44 | . . . . . . . 2 . . 9 . . . . 3 . . . . . 10 . . . . 4 . . . . 7 . 6 3 . Intercept 30 | . . . . . . . . . . . . . . . 2 . . . . . 2 . . . . 3 . . . . 4 2 2 2 13 Searches Triggered . | . . . . . . . . . . . . . . . . . . . . . . . . . . . . . . . . . . . . Construction Impeded 2 | . . . . . . . . . . . . . . . 1 . . . . . 1 . . . . . . . . . . . . . . Haulers Reinforced 4 | . . . . . . . . . . 1 . . . . 1 . . . . . 1 . . . . 1 . . . . . . . . . Active Scanning Responses . | . . . . . . . . . . . . . . . . . . . . . . . . . . . . . . . . . . . . Cargo Convoy Interrupts 3 | . . . . . . . . . . 1 . . . . . . . . . . . . . . . 1 . . . . 1 . . . . Stealth | -11 -10 -10 -9 -9 -9 -8 -8 -7 -7 -7 -7 -7 -7 -6 -6 -6 -6 -6 -6 -5 -5 -5 -5 -5 -4 -4 -4 -4 -4 -3 -3 -3 -2 -2 -2 --------- Run | Yrd Mat Min Mat Min Exi Min Mat Fac Was Fac Low Low Dat Pro Fac Low Low Zio Dee Pro Fac Upp Upp Zhi Pro Fac Upp Upp War Pro Res Tes Res Qua Frg Distress Signals 36 | . . . . . . . 4 . . 2 . . . . 2 . . . . . 1 . . . . 10 . . . . 5 1 5 . 6 Communications Jammed . | . . . . . . . . . . . . . . . . . . . . . . . . . . . . . . . . . . . . Distress Signals . | . . . . . . . . . . . . . . . . . . . . . . . . . . . . . . . . . . . . Times Spotted 3731 | . 69 24 29 7 15 11 69 41 . 193 29 27 2 13 166 10 21 4 80 19 183 10 29 12 9 179 29 20 316 11 134 228 161 203 1378 Peak Tracking Total 140 | . 7 11 5 4 9 4 15 5 . 12 9 9 3 5 8 4 11 4 23 6 10 5 6 5 7 14 7 7 19 4 16 35 15 29 140 Tactical Retreats 65 | . 4 2 1 . 3 1 . 3 . 7 2 3 . . 2 . . . 3 . 3 . . . . 3 . . 1 . 4 2 . 3 18 Traps | -11 -10 -10 -9 -9 -9 -8 -8 -7 -7 -7 -7 -7 -7 -6 -6 -6 -6 -6 -6 -5 -5 -5 -5 -5 -4 -4 -4 -4 -4 -3 -3 -3 -2 -2 -2 ------- Run | Yrd Mat Min Mat Min Exi Min Mat Fac Was Fac Low Low Dat Pro Fac Low Low Zio Dee Pro Fac Upp Upp Zhi Pro Fac Upp Upp War Pro Res Tes Res Qua Frg Traps Triggered 72 | . 2 . . . . . 3 4 . 4 . 1 . 1 6 . . . . . 5 . . . . 1 . . 4 . 4 1 4 2 30 Indirectly . | . . . . . . . . . . . . . . . . . . . . . . . . . . . . . . . . . . . . Trap Hack Attempts . | . . . . . . . . . . . . . . . . . . . . . . . . . . . . . . . . . . . . Triggered . | . . . . . . . . . . . . . . . . . . . . . . . . . . . . . . . . . . . . Disarmed . | . . . . . . . . . . . . . . . . . . . . . . . . . . . . . . . . . . . . Reprogrammed . | . . . . . . . . . . . . . . . . . . . . . . . . . . . . . . . . . . . . Reused . | . . . . . . . . . . . . . . . . . . . . . . . . . . . . . . . . . . . . Traps Extracted . | . . . . . . . . . . . . . . . . . . . . . . . . . . . . . . . . . . . . Installed . | . . . . . . . . . . . . . . . . . . . . . . . . . . . . . . . . . . . . Triggered . | . . . . . . . . . . . . . . . . . . . . . . . . . . . . . . . . . . . . Most Traps Carried 2 | . . . . . . . . . . . . . . 2 1 . . . . . . . . . . . . . . . . . . . . Time Bombs Activated 1 | . . . . . . . . . . . . . . . . . . . . . . . . . . . . . . . . 1 . . . Exploded 1 | . . . . . . . . . . . . . . . . . . . . . . . . . . . . . . . . 1 . . . Machines | -11 -10 -10 -9 -9 -9 -8 -8 -7 -7 -7 -7 -7 -7 -6 -6 -6 -6 -6 -6 -5 -5 -5 -5 -5 -4 -4 -4 -4 -4 -3 -3 -3 -2 -2 -2 ---------- Run | Yrd Mat Min Mat Min Exi Min Mat Fac Was Fac Low Low Dat Pro Fac Low Low Zio Dee Pro Fac Upp Upp Zhi Pro Fac Upp Upp War Pro Res Tes Res Qua Frg Machines Disabled 247 | . . 2 . . 8 1 4 12 . 6 1 1 . . 4 1 1 3 3 1 11 1 . 1 . 19 1 1 18 4 3 12 3 16 109 Max in Single Turn 13 | . . 1 . . 1 1 1 5 . 3 1 1 . . 1 1 1 1 2 1 1 1 . . . 3 1 1 3 2 1 1 1 4 13 Garrison Access 5 | . . . . . . . . 1 . 1 . . . . 1 . . . . . . . . . . . . . . . . . . 1 1 Machines Repaired . | . . . . . . . . . . . . . . . . . . . . . . . . . . . . . . . . . . . . Machines Dismantled . | . . . . . . . . . . . . . . . . . . . . . . . . . . . . . . . . . . . . Machines Sabotaged 5 | . 2 . 1 . . . 1 . . . . . . . 1 . . . . . . . . . . . . . . . . . . . . Overloaded Fab Kills 9 | . . . . . . . . . . 2 . . . . 6 . . . . . . . . . . . . . . . 1 . . . . Hacking | -11 -10 -10 -9 -9 -9 -8 -8 -7 -7 -7 -7 -7 -7 -6 -6 -6 -6 -6 -6 -5 -5 -5 -5 -5 -4 -4 -4 -4 -4 -3 -3 -3 -2 -2 -2 --------- Run | Yrd Mat Min Mat Min Exi Min Mat Fac Was Fac Low Low Dat Pro Fac Low Low Zio Dee Pro Fac Upp Upp Zhi Pro Fac Upp Upp War Pro Res Tes Res Qua Frg Machines Accessed 104 | . 9 1 5 2 1 . 11 9 . 17 . 1 4 . 13 2 2 . . 1 2 . 1 4 . 4 1 2 2 . 5 . 3 1 1 Terminals 52 | . 7 . 4 1 . . 7 7 . 11 . . . . 8 1 1 . . 1 1 . . . . . . . . . . . 2 1 . Fabricators 19 | . . . . . . . . 1 . 3 . . . . 5 . . . . . 1 . . . . 4 . . . . 4 . 1 . . Repair Stations 3 | . 1 . . . . . 2 . . . . . . . . . . . . . . . . . . . . . . . . . . . . Recycling Units 3 | . 1 . 1 . . . 1 . . . . . . . . . . . . . . . . . . . . . . . . . . . . Scanalyzers 3 | . . . . . . . 1 . . 2 . . . . . . . . . . . . . . . . . . . . . . . . . Garrison Access 4 | . . . . . . . . 1 . 1 . . . . . . . . . . . . . . . . . . . . 1 . . . 1 Total Hacks 245 | . 18 1 12 4 1 . 16 21 . 37 . 1 34 . 26 7 4 . . 5 4 . 1 13 . 9 1 6 3 . 10 . 8 1 2 Successful 157 | . 11 1 8 4 1 . 10 6 . 22 . 1 34 . 9 7 4 . . 5 1 . 1 13 . 1 1 6 3 . 2 . 4 1 1 Failed 87 | . 7 . 4 . . . 5 15 . 15 . . . . 17 . . . . . 3 . . . . 8 . . . . 8 . 4 . 1 Catastrophic 25 | . . . . . . . 1 4 . 5 . . . . 3 . . . . . 2 . . . . 3 . . . . 7 . . . . Database Lockouts 1 | . . . . . . . 1 . . . . . . . . . . . . . . . . . . . . . . . . . . . . Manual 146 | . 26 . 12 3 1 . 18 13 . 24 1 . . . 25 . . . . 2 4 . . . . 6 . . . . 7 . 4 . . Terminals 122 | . 15 . 9 3 . . 12 16 . 28 . . . . 16 6 3 . . 5 2 . . . . . . . . . . . 6 1 . Fabricators 35 | . . . . . . . . 2 . 3 . . . . 10 . . . . . 2 . . . . 9 . . . . 7 . 2 . . Repair Stations 3 | . 1 . . . . . 2 . . . . . . . . . . . . . . . . . . . . . . . . . . . . Recycling Units 6 | . 2 . 3 . . . 1 . . . . . . . . . . . . . . . . . . . . . . . . . . . . Scanalyzers 4 | . . . . . . . 1 . . 3 . . . . . . . . . . . . . . . . . . . . . . . . . Garrison Access 11 | . . . . . . . . 3 . 3 . . . . . . . . . . . . . . . . . . . . 3 . . . 2 Terminal Hacks 99 | . 3 1 2 3 1 . 1 1 . 9 . 1 34 . . 7 4 . . 5 . . 1 13 . . 1 6 3 . . . 2 1 . Record 37 | . . . . . . . . . . . . . 11 . . 6 3 . . 5 . . . 5 . . . 5 2 . . . . . . Part Schematic 17 | . . . . . . . . . . . . . 13 . . . . . . . . . . 4 . . . . . . . . . . . Robot Schematic 7 | . . . . . . . . . . . . . 7 . . . . . . . . . . . . . . . . . . . . . . Robot Analysis 7 | . 2 . 1 . . . 1 1 . 2 . . . . . . . . . . . . . . . . . . . . . . . . . Prototype ID Bank 7 | . . . . . . . . . . . . . 3 . . . . . . . . . . 4 . . . . . . . . . . . Open Door 11 | . . 1 . 1 . . . . . . . 1 . . . 1 1 . . . . . 1 . . . 1 1 1 . . . 1 1 . Level Access Points 1 | . . . . . . . . . . 1 . . . . . . . . . . . . . . . . . . . . . . . . . Branch Access Points 1 | . . . . . . . . . . 1 . . . . . . . . . . . . . . . . . . . . . . . . . Alert Level 5 | . 1 . . 1 . . . . . 2 . . . . . . . . . . . . . . . . . . . . . . 1 . . Unreport Threat 3 | . . . . 1 . . . . . 2 . . . . . . . . . . . . . . . . . . . . . . . . . Hauler Manifests 2 | . . . 1 . . . . . . 1 . . . . . . . . . . . . . . . . . . . . . . . . . Proto ID Catalog 1 | . . . . . 1 . . . . . . . . . . . . . . . . . . . . . . . . . . . . . . Fabricator Hacks . | . . . . . . . . . . . . . . . . . . . . . . . . . . . . . . . . . . . . Repair Station Hacks . | . . . . . . . . . . . . . . . . . . . . . . . . . . . . . . . . . . . . Recycling Unit Hacks . | . . . . . . . . . . . . . . . . . . . . . . . . . . . . . . . . . . . . Scanalyzer . | . . . . . . . . . . . . . . . . . . . . . . . . . . . . . . . . . . . . Garrison Access Hacks 3 | . . . . . . . . 1 . 1 . . . . . . . . . . . . . . . . . . . . . . . . 1 Seal Access 3 | . . . . . . . . 1 . 1 . . . . . . . . . . . . . . . . . . . . . . . . 1 Unauthorized Hacks 54 | . 8 . 5 1 . . 9 4 . 12 . . . . 9 . . . . . 1 . . . . 1 . . . . 2 . 2 . . Terminals 33 | . 6 . 4 1 . . 5 4 . 7 . . . . 5 . . . . . . . . . . . . . . . . . 1 . . Assimilate 5 | . . . . . . . . . . 3 . . . . 2 . . . . . . . . . . . . . . . . . . . . Botnet 10 | . . . 1 . . . . 4 . 4 . . . . . . . . . . . . . . . . . . . . . . 1 . . Sabotage 17 | . 5 . 3 1 . . 5 . . . . . . . 3 . . . . . . . . . . . . . . . . . . . . Search 1 | . 1 . . . . . . . . . . . . . . . . . . . . . . . . . . . . . . . . . . Fabricators 12 | . . . . . . . . . . 3 . . . . 4 . . . . . 1 . . . . 1 . . . . 2 . 1 . . Liberate 1 | . . . . . . . . . . 1 . . . . . . . . . . . . . . . . . . . . . . . . . Haulers 5 | . . . . . . . . . . 1 . . . . 1 . . . . . . . . . . 1 . . . . 1 . 1 . . Overload 6 | . . . . . . . . . . 1 . . . . 3 . . . . . 1 . . . . . . . . . 1 . . . . Repair Stations 3 | . 1 . . . . . 2 . . . . . . . . . . . . . . . . . . . . . . . . . . . . Patch 3 | . 1 . . . . . 2 . . . . . . . . . . . . . . . . . . . . . . . . . . . . Recycling Units 3 | . 1 . 1 . . . 1 . . . . . . . . . . . . . . . . . . . . . . . . . . . . Tunnel 3 | . 1 . 1 . . . 1 . . . . . . . . . . . . . . . . . . . . . . . . . . . . Scanalyzers 3 | . . . . . . . 1 . . 2 . . . . . . . . . . . . . . . . . . . . . . . . . Extract 3 | . . . . . . . 1 . . 2 . . . . . . . . . . . . . . . . . . . . . . . . . Garrison Access . | . . . . . . . . . . . . . . . . . . . . . . . . . . . . . . . . . . . . Data Cores Recovered 12 | . . . 1 . . . . 2 . 4 . . . . . . . . . . . . . . . . . . . . 1 1 2 1 . Used 1 | . . . . . . . . . . 1 . . . . . . . . . . . . . . . . . . . . . . . . . Hacking Detections 53 | . 3 . 3 1 . . 2 8 . 11 . . . . 8 1 1 . . 1 2 . . . . 4 . . . . 4 . 3 . 1 Full Trace Events 26 | . 1 . . . . . 2 4 . 5 . . . . 4 1 1 . . 1 . . . . . 3 . . . . 3 . 1 . . Feedback Events 1 | . . . . . . . . . . . . . . . . . . . . . . . . . . . . . . . . . 1 . . Corruption 1 | . . . . . . . . . . . . . . . . . . . . . . . . . . . . . . . . . 1 . . Feedback Blocked . | . . . . . . . . . . . . . . . . . . . . . . . . . . . . . . . . . . . . Robot Schematics Acquired 13 | . . . . . . . . . . . . . 7 . . . . 2 . . . . . . . . . . . . . 2 . . 2 Robots Built . | . . . . . . . . . . . . . . . . . . . . . . . . . . . . . . . . . . . . Authchips . | . . . . . . . . . . . . . . . . . . . . . . . . . . . . . . . . . . . . Time . | . . . . . . . . . . . . . . . . . . . . . . . . . . . . . . . . . . . . Total Robot Build Rating . | . . . . . . . . . . . . . . . . . . . . . . . . . . . . . . . . . . . . Part Schematics Acquired 84 | . . . . . . . 10 . . 3 . . 13 . . . . 12 . . . . . 4 . . . . . . . 28 . 4 10 Parts Built . | . . . . . . . . . . . . . . . . . . . . . . . . . . . . . . . . . . . . Authchips . | . . . . . . . . . . . . . . . . . . . . . . . . . . . . . . . . . . . . Time . | . . . . . . . . . . . . . . . . . . . . . . . . . . . . . . . . . . . . Total Part Build Rating . | . . . . . . . . . . . . . . . . . . . . . . . . . . . . . . . . . . . . Part Studies Acquired . | . . . . . . . . . . . . . . . . . . . . . . . . . . . . . . . . . . . . Parts Repaired . | . . . . . . . . . . . . . . . . . . . . . . . . . . . . . . . . . . . . Time . | . . . . . . . . . . . . . . . . . . . . . . . . . . . . . . . . . . . . Parts Recycled . | . . . . . . . . . . . . . . . . . . . . . . . . . . . . . . . . . . . . Recycled Matter . | . . . . . . . . . . . . . . . . . . . . . . . . . . . . . . . . . . . . Retrieved Matter . | . . . . . . . . . . . . . . . . . . . . . . . . . . . . . . . . . . . . Retrieved Components . | . . . . . . . . . . . . . . . . . . . . . . . . . . . . . . . . . . . . Parts Scanalyzed . | . . . . . . . . . . . . . . . . . . . . . . . . . . . . . . . . . . . . Part Schematics Acquired . | . . . . . . . . . . . . . . . . . . . . . . . . . . . . . . . . . . . . Parts Damaged . | . . . . . . . . . . . . . . . . . . . . . . . . . . . . . . . . . . . . Bothacking | -11 -10 -10 -9 -9 -9 -8 -8 -7 -7 -7 -7 -7 -7 -6 -6 -6 -6 -6 -6 -5 -5 -5 -5 -5 -4 -4 -4 -4 -4 -3 -3 -3 -2 -2 -2 ------------ Run | Yrd Mat Min Mat Min Exi Min Mat Fac Was Fac Low Low Dat Pro Fac Low Low Zio Dee Pro Fac Upp Upp Zhi Pro Fac Upp Upp War Pro Res Tes Res Qua Frg Used RIF Installer . | . . . . . . . . . . . . . . . . . . . . . . . . . . . . . . . . . . . . Robots Hacked 1 | . . . . . . . . . . . . . . . . . . . . . 1 . . . . . . . . . . . . . . Non-combat 1 | . . . . . . . . . . . . . . . . . . . . . 1 . . . . . . . . . . . . . . Combat . | . . . . . . . . . . . . . . . . . . . . . . . . . . . . . . . . . . . . Robot Hacks Applied 1 | . . . . . . . . . . . . . . . . . . . . . 1 . . . . . . . . . . . . . . find_chute 1 | . . . . . . . . . . . . . . . . . . . . . 1 . . . . . . . . . . . . . . Relay Couplers Released 5 | . . . . . . . . . . 2 . . . . 2 . . . . . . . . . . . . . . . . . . 1 . Machine Destruction 2 | . . . . . . . . . . . . . . . 1 . . . . . . . . . . . . . . . . . . 1 . Programmers 3 | . . . . . . . . . . 2 . . . . 1 . . . . . . . . . . . . . . . . . . . . Fabnet Peak Effective % . | . . . . . . . . . . . . . . . . . . . . . . . . . . . . . . . . . . . . Robots Rewired 11 | . . . . . . . . . . . . . . 1 . . . . . . . 1 2 . 2 . 2 2 . . . 1 . . . Allies Hacked 4 | . . . . . . . . . . . . . . . . . . . . . 1 . . . . . . . . . 2 . . . 1 Hacks Repelled . | . . . . . . . . . . . . . . . . . . . . . . . . . . . . . . . . . . . . Allies | -11 -10 -10 -9 -9 -9 -8 -8 -7 -7 -7 -7 -7 -7 -6 -6 -6 -6 -6 -6 -5 -5 -5 -5 -5 -4 -4 -4 -4 -4 -3 -3 -3 -2 -2 -2 -------- Run | Yrd Mat Min Mat Min Exi Min Mat Fac Was Fac Low Low Dat Pro Fac Low Low Zio Dee Pro Fac Upp Upp Zhi Pro Fac Upp Upp War Pro Res Tes Res Qua Frg Total Allies 56 | . . 1 . . . . . . . 4 . 1 . 1 3 . . . . . 12 1 2 . 2 . 2 2 2 . 6 1 6 . 10 Largest Group 8 | . . 1 1 . . . . . . 3 3 1 1 2 3 . . . . . 5 6 8 8 2 2 2 4 4 . 4 1 3 . 5 Highest-Rated Group 295 | . . 31 31 . . . . . . 90 46 99 99 126 162 . . . . . 270 169 228 228 97 97 77 154 154 . 295 145 180 . 290 Highest-Rated Ally 145 | . . 31 31 . . . . . . 90 26 99 99 97 142 . . . . . 54 29 30 30 49 49 47 47 47 . 142 145 64 . 119 Total Orders 4 | . . . . . . . . . . 2 1 . . . 1 . . . . . . . . . . . . . . . . . . . . STAY 3 | . . . . . . . . . . 1 1 . . . 1 . . . . . . . . . . . . . . . . . . . . FOLLOW 1 | . . . . . . . . . . 1 . . . . . . . . . . . . . . . . . . . . . . . . . Ally Attacks 245 | . . 9 2 . . . . . . 21 . . 9 1 14 . . . . . 46 . . 27 . 5 . 3 8 . 49 6 18 . 27 Total Damage 10490 | . . 102 42 . . . . . . 739 . . 739 58 742 . . . . . 1772 . . 494 . 83 . 88 2086 . 1657 245 603 . 1040 Kills 66 | . . 4 1 . . . . . . 7 . . 3 2 6 . . . . . 15 . . 2 . 1 . . 9 . 10 1 1 . 4 Allies Corrupted 8 | . . . . . . . . . . . . . . . . . . . . . . . . . . . . . 3 . 1 1 1 . 2 Allies Melted . | . . . . . . . . . . . . . . . . . . . . . . . . . . . . . . . . . . . . X0-1V1 Amusement Gains 1296 | . 29 20 5 . 60 . 79 20 . 50 . . 89 10 40 . 20 50 50 . 55 20 20 65 . 71 . . 81 . 72 34 26 49 281 Good Acts 524 | . 15 3 8 4 . 5 16 16 2 28 5 18 . 8 29 7 6 1 . 7 22 5 7 . 10 21 7 7 35 4 39 14 9 20 146 Bad Acts 331 | . 8 3 3 1 . 7 8 4 1 21 14 18 . 4 15 3 6 . . 1 19 5 . . . 21 4 1 10 . 8 13 12 20 101 Intel | -11 -10 -10 -9 -9 -9 -8 -8 -7 -7 -7 -7 -7 -7 -6 -6 -6 -6 -6 -6 -5 -5 -5 -5 -5 -4 -4 -4 -4 -4 -3 -3 -3 -2 -2 -2 ------- Run | Yrd Mat Min Mat Min Exi Min Mat Fac Was Fac Low Low Dat Pro Fac Low Low Zio Dee Pro Fac Upp Upp Zhi Pro Fac Upp Upp War Pro Res Tes Res Qua Frg Active Infowar (turns) 35238 | 55 1289 257 312 209 474 161 794 552 72 1803 462 806 69 389 1418 228 276 193 547 283 1248 373 299 227 447 1281 820 985 1812 221 1235 1023 620 1741 12257 A.S.S. 1 | . . . . . . . . . . . . . . . . . . . . . . . . . . . . . . . 1 . . . . Terrain 2640 | 55 378 48 . . . . . . . . . . . . . . . . . . . 229 299 227 447 957 . . . . . . . . . Seismic 35187 | 4 1289 257 312 209 474 161 794 552 72 1803 462 806 69 389 1418 228 276 193 547 283 1248 373 299 227 447 1281 820 985 1812 221 1235 1023 620 1741 12257 Decoding 2015 | . . . . . . . . . . . . . . . . 78 276 193 547 283 638 . . . . . . . . . . . . . . Cloaking 2 | . . . . . . . . . . . . . . . . . . . . . . . . . . . . . . . . . . . 2 Robot Analysis Total 154 | . 2 . 1 . . . 1 1 . 2 . . 147 . . . . . . . . . . . . . . . . . . . . . . Derelict Logs Recovered 28 | . . 3 . 1 . . . . . . 3 1 . 2 . 1 3 3 . 3 . 1 3 . 2 . 1 1 . . . . . . . Drone Launches . | . . . . . . . . . . . . . . . . . . . . . . . . . . . . . . . . . . . . Drone Recoveries . | . . . . . . . . . . . . . . . . . . . . . . . . . . . . . . . . . . . . Decoded 0b10 Intel 15 | . . . . . . . . . . . . . . . . . . . . . 15 . . . . . . . . . . . . . . Patrols 8 | . . . . . . . . . . . . . . . . . . . . . 8 . . . . . . . . . . . . . . Investigations 2 | . . . . . . . . . . . . . . . . . . . . . 2 . . . . . . . . . . . . . . Guards 5 | . . . . . . . . . . . . . . . . . . . . . 5 . . . . . . . . . . . . . . Exploration | -11 -10 -10 -9 -9 -9 -8 -8 -7 -7 -7 -7 -7 -7 -6 -6 -6 -6 -6 -6 -5 -5 -5 -5 -5 -4 -4 -4 -4 -4 -3 -3 -3 -2 -2 -2 ------------- Run | Yrd Mat Min Mat Min Exi Min Mat Fac Was Fac Low Low Dat Pro Fac Low Low Zio Dee Pro Fac Upp Upp Zhi Pro Fac Upp Upp War Pro Res Tes Res Qua Frg Turns Passed 35816 | 83 1289 346 335 209 474 290 808 552 72 1807 462 806 69 389 1418 228 276 193 547 283 1258 373 299 227 447 1309 820 985 1812 221 1235 1023 620 1741 12510 Spaces Moved 60647 | 36 1380 540 703 648 992 745 1620 1439 263 4029 1305 1678 116 859 3475 1002 1062 938 1592 1031 2569 1188 814 382 656 3213 875 794 3620 966 3323 1584 1366 2710 11134 Core 105 | 18 57 . . . . . . . . . . . . . . . . . . . . . . . . . . . . . . . . . 30 Treads . | . . . . . . . . . . . . . . . . . . . . . . . . . . . . . . . . . . . . Legs . | . . . . . . . . . . . . . . . . . . . . . . . . . . . . . . . . . . . . Wheels 18 | 18 . . . . . . . . . . . . . . . . . . . . . . . . . . . . . . . . . . . Hover 4323 | . . . . . . . . . . . . . . . . . . . . . . . . . . . . . . . . . . . 4323 Flight 56201 | . 1323 540 703 648 992 745 1620 1439 263 4029 1305 1678 116 859 3475 1002 1062 938 1592 1031 2569 1188 814 382 656 3213 875 794 3620 966 3323 1584 1366 2710 6781 Fastest Speed 5 | 50 29 29 27 27 27 27 25 23 23 23 5 14 26 26 18 18 18 18 6 18 7 22 22 16 22 16 24 97 20 20 20 20 20 20 6 Average Speed 27 | 65 48 29 30 27 27 27 27 23 23 24 24 36 26 26 19 18 18 18 17 18 19 22 22 21 22 25 81 97 27 20 23 22 26 22 32 Slowest Speed 300 | 80 112 29 109 27 107 27 28 28 23 88 91 91 26 26 30 18 18 18 18 19 90 22 22 22 24 97 97 97 97 20 96 94 94 94 300 Overloaded Moves 436 | . . . . . . . . . . . 33 49 . . . . . . 55 . 34 . . 28 . 81 . . . . . . . . 156 Propulsion Burnouts . | . . . . . . . . . . . . . . . . . . . . . . . . . . . . . . . . . . . . Robots Hopped 401 | . 17 1 5 14 1 11 67 12 3 55 7 5 . . 38 . . . 4 1 29 5 7 2 . 31 . . 3 1 23 9 14 10 26 Potential Cave-ins 7 | . . . . . . . . . . . . . . . . . . . . . 2 . . . . . . . 5 . . . . . . Cave-ins Triggered . | . . . . . . . . . . . . . . . . . . . . . . . . . . . . . . . . . . . . Teleports 110 | . . . . . . . . . . . . . . . . . . . . . . . . . . . . . . . . . . . 110 Time Travels 1 | . . . . . . . . . . . . . . . . . . . . . . . . . . . . . . . . . . 1 . Exploration Rate (%) 82 | 4 95 96 60 98 88 88 98 47 95 79 97 90 80 96 65 96 94 89 92 94 54 98 96 93 79 46 97 96 96 98 59 98 43 96 91 Regions Visited 35 Branch Regions 24 Pre-discovered Areas 40 | . 1 1 1 . . . 1 . . . 1 . 26 . . . . 2 . 2 . . . 3 2 . . . . . . . . . . Known Exits Taken 18 | . . . . 1 . 1 1 . . 1 1 1 . 1 1 1 1 . . 1 1 . . . 1 . . 1 . 1 1 . 1 1 . Unknown Exits Taken 15 | 1 1 1 1 . 1 . . . . . . . 1 . . . . 1 1 . . 1 1 1 . 1 1 . 1 . . 1 . . . Scrap Searched 48 | . . 1 . 3 . . . . . . 5 8 . 1 . 4 4 2 . 1 . 3 4 . 3 . 3 2 . 4 . . . . . Spaces Dug 269 | . . . . . . . . . . 1 . . . . . . . . . . . . . . . 7 . 6 13 1 . . . . 241 Terrain Destroyed 4501 | . . 19 . . . . . 37 . 42 . 1 . . 3 1 4 . 14 9 69 9 21 3 9 338 31 44 246 13 154 140 128 121 3045 Melee 1 | . . . . . . . . . . 1 . . . . . . . . . . . . . . . . . . . . . . . . . Projectile 1336 | . . 1 . . . . . . . . . 1 . . 3 1 4 . 3 9 69 9 21 3 9 145 31 44 176 13 154 127 128 121 264 AOE 3164 | . . 18 . . . . . 37 . 41 . . . . . . . . 11 . . . . . . 193 . . 70 . . 13 . . 2781 Terrain Rammed . | . . . . . . . . . . . . . . . . . . . . . . . . . . . . . . . . . . . . Walls Destroyed . | . . . . . . . . . . . . . . . . . . . . . . . . . . . . . . . . . . . . Machines Disabled . | . . . . . . . . . . . . . . . . . . . . . . . . . . . . . . . . . . . . Actions | -11 -10 -10 -9 -9 -9 -8 -8 -7 -7 -7 -7 -7 -7 -6 -6 -6 -6 -6 -6 -5 -5 -5 -5 -5 -4 -4 -4 -4 -4 -3 -3 -3 -2 -2 -2 --------- Run | Yrd Mat Min Mat Min Exi Min Mat Fac Was Fac Low Low Dat Pro Fac Low Low Zio Dee Pro Fac Upp Upp Zhi Pro Fac Upp Upp War Pro Res Tes Res Qua Frg Total 80696 | 71 1777 666 784 657 1156 801 1860 1594 272 4653 1421 1844 146 1011 4071 1048 1143 958 1831 1117 3359 1301 934 533 958 3803 1003 1029 4714 995 3869 2415 1759 4012 21131 Wait 11750 | 19 239 66 14 8 59 13 99 20 4 178 25 84 4 106 135 2 15 7 62 23 392 75 62 86 259 128 70 145 453 11 226 469 80 964 7148 Move 59845 | 35 1345 537 692 622 989 723 1495 1415 257 3923 1290 1668 115 858 3402 1001 1061 937 1584 1028 2511 1177 799 377 655 3152 874 793 3613 963 3277 1565 1338 2690 11084 Hop 366 | . 17 1 5 11 1 10 57 12 2 50 7 4 . . 34 . . . 3 1 28 5 7 2 . 29 . . 3 1 21 9 13 9 24 Pick Up 205 | . 4 1 5 1 16 1 6 3 3 4 3 . . 1 4 3 5 . 4 3 3 4 . 1 6 5 4 . 8 . 4 7 3 8 85 Fast Attach 153 | 6 7 1 4 3 5 2 6 3 . 5 3 6 . . 3 . . . 3 . 2 1 . 1 1 12 . 1 17 . 11 7 . 2 41 Attach 52 | . . 2 1 . 2 . 2 1 . 1 1 2 1 . 2 . . 1 1 . . . . . . 3 . . 1 . . . . . 31 Detach 36 | . 1 2 1 . . . . . . 1 1 3 . . . . . . . . 1 . . . . 3 . . 2 . 1 . . 1 19 Swap 117 | 1 8 1 2 . 2 1 2 8 . 3 3 1 1 . 4 1 . 1 4 1 4 1 . 1 2 4 . 1 3 . 5 3 . 4 45 Drop 341 | . 6 1 10 3 20 1 7 7 3 4 7 7 1 1 8 3 4 1 3 2 6 6 . 1 6 16 1 4 26 . 16 13 3 8 136 Fire 5591 | 10 97 32 35 9 52 38 114 84 3 353 54 54 13 29 330 23 46 11 122 34 291 21 34 41 11 330 34 26 441 16 198 250 195 271 1889 Melee 29 | . . . . . . . . . . 1 . . 1 . . . . . . . . . . . 1 . . . 9 . 17 . . . . Ram 2 | . . . . . . . . . . . . . . . . . . . . . . . . . . . . . . . . . . . 2 Kick . | . . . . . . . . . . . . . . . . . . . . . . . . . . . . . . . . . . . . Crush . | . . . . . . . . . . . . . . . . . . . . . . . . . . . . . . . . . . . . Escape Stasis 344 | . . . . . . . . 6 . . . . . . 4 . . . . . . . . . . . . . . . 29 28 66 . 211 Rewire 100 | . . . . . . . . . . . . . . 2 . . . . . . 13 3 14 . 13 . 5 49 . . . 1 . . . Trap 1 | . . . . . . . . . . . . . . . . . . . . . . . . . . . . . . . . 1 . . . Miscellaneous 1764 | . 53 22 15 . 10 12 72 35 . 130 27 15 10 14 145 15 12 . 45 25 108 8 18 23 4 121 15 10 138 4 64 62 61 55 416 Route ------- -11/Scrapyard -10/Materials (discovered 5 exits: *Mat x3 / *Min / [*Sub]) -10/Mines (discovered 2 exits: *Mat x2) -9/Materials (discovered 5 exits: *Mat x2 / *Min / *Sto x2) -9/Mines (discovered 3 exits: *Mat x2 / *Exi) -9/Exiles -8/Mines (discovered 2 exits: *Mat x2) -8/Materials (discovered 3 exits: *Fac x3) -7/Factory (discovered 2 exits: *Fac / *Low) -7/Waste -7/Factory (discovered 6 exits: *Fac x4 / *Low x2) -7/Lower Caves -7/Lower Caves (discovered 2 exits: *Fac / *Dat) -7/Data Miner -6/Proximity Caves -6/Factory (discovered 6 exits: *Fac x4 / *Low x2) -6/Lower Caves -6/Lower Caves (discovered 2 exits: *Fac / *Zio) -6/Zion (discovered 2 exits: [*Dee] / *Pro) -6/Deep Caves -5/Proximity Caves -5/Factory (discovered 5 exits: Fac x3 / *Upp x2) -5/Upper Caves -5/Upper Caves (discovered 2 exits: *Fac / *Zhi) -5/Zhirov -4/Proximity Caves -4/Factory (discovered 7 exits: *Res x3 / *Upp / *Ext x2 / *Arm) -4/Upper Caves -4/Upper Caves (discovered 2 exits: *Res / *War) -4/Warlord -3/Proximity Caves -3/Research (discovered 2 exits: *Tes x2) -3/Testing -2/Research (discovered 3 exits: [*Acc] / *Qua x2) -2/Quarantine (discovered 3 exits: [*Acc] / *Sec / *Frg) -2/Protoforge (discovered 1 exit: [*Acc]) History --------- Turn | Location | Event 1 | -11/Scrapyard | Upgraded with Utility slot (x1) 1 | -11/Scrapyard | Upgraded with Weapon slot (x1) 6 | -11/Scrapyard | Discovered new exit (range 15) 84 | -11/Scrapyard | Entered Materials 166 | -10/Materials | Discovered new exit (range 10) 287 | -10/Materials | Discovered new exit (range 6) 301 | -10/Materials | Discovered new exit (range 10) 315 | -10/Materials | Build established: Mutant 377 | -10/Materials | Prayed at D.C.S.S. Altar Unit 377 | -10/Materials | Reached level 2 377 | -10/Materials | Reached level 3 412 | -10/Materials | Discovered new exit (range 16) 416 | -10/Materials | Upgraded with Propulsion slot (x1) 416 | -10/Materials | Upgraded with Utility slot (x2) 438 | -10/Materials | X0-1V1 activates XOMVISION 441 | -10/Materials | Discovered new exit (range 13) 534 | -10/Materials | X0-1V1 enhanced Transport squad support 584 | -10/Materials | Derelicts attacked the area 617 | -10/Materials | Reached level 4 700 | -10/Materials | Core integrity fell below 50% 873 | -10/Materials | Reached level 5 898 | -10/Materials | Upgraded with Utility slot (x1) 898 | -10/Materials | Upgraded with Weapon slot (x1) 1223 | -10/Materials | Reached level 6 1242 | -10/Materials | Upgraded with Propulsion slot (x1) 1245 | -10/Materials | Build established: Scavenger-Gunner 1287 | -10/Materials | X0-1V1 activates XOMVISION 1290 | -10/Materials | X0-1V1 foreshadows a heat wave 1291 | -10/Materials | X0-1V1 sent hostile G-34 Mercenary (x5) 1294 | -10/Materials | X0-1V1 vaporized surrounding terrain (radius 16) 1373 | -10/Materials | Entered Mines 1388 | -10/Mines | Discovered new exit (range 14) 1396 | -10/Mines | Met a Derelict who couldn't figure out how to use a Trap Extractor 1404 | -10/Mines | Destroyed 10 combat bots 1457 | -10/Mines | Received a Mining Laser from a helpful Derelict 1475 | -10/Mines | Reached level 7 1487 | -10/Mines | Found a hidden stash of uninstalled traps 1508 | -10/Mines | X0-1V1 activates XOMVISION 1513 | -10/Mines | Learned Materials trap positions 1517 | -10/Mines | Learned location of Zion (-6) 1531 | -10/Mines | Assembled infested the area 1536 | -10/Mines | Assisted by a Guerilla fighting off Assembled 1557 | -10/Mines | Build established: Scavenger-Sprinter 1628 | -10/Mines | Sensors blinded by X0-1V1 1642 | -10/Mines | X0-1V1 sent hostile G-34 Mercenary (x4) 1671 | -10/Mines | Found a Scrap Suit stashed away for nefarious purposes 1688 | -10/Mines | Discovered new exit (range 6) 1719 | -10/Mines | Entered Materials 1719 | -9/Materials | Accompanied by 1 ally 1720 | -9/Materials | Identified exit to Storage 1721 | -9/Materials | Loaded intel: 21 trap records 1721 | -9/Materials | Reached level 8 1723 | -9/Materials | Upgraded with Propulsion slot (x1) 1732 | -9/Materials | X0-1V1 released a cloud of subatomizers 1736 | -9/Materials | X0-1V1 sent you to a vault 1797 | -9/Materials | X0-1V1 announced a LAN party 1885 | -9/Materials | X0-1V1 made a cryptic comment about sterilization and BL-4Z3 1885 | -9/Materials | Reached level 9 1935 | -9/Materials | Sterilization system engaged 1935 | -9/Materials | Non-combat units ordered to evacuate 1939 | -9/Materials | Discovered new exit (range 16) 1958 | -9/Materials | Destroyed 7 combat bots 1965 | -9/Materials | X0-1V1 activates XOMVISION 1965 | -9/Materials | Discovered exit to Storage (range 11) 1973 | -9/Materials | Discovered new exit (range 21) 2008 | -9/Materials | Discovered new exit (range 17) 2024 | -9/Materials | Reached level 10 2035 | -9/Materials | Combat units ordered to evacuate 2054 | -9/Materials | Entered Mines 2061 | -9/Mines | Learned Materials garrison access intel 2078 | -9/Mines | YI-UF0 nonchalantly dropped a Grenade Launcher on the ground 2087 | -9/Mines | Discovered new exit (range 15) 2125 | -9/Mines | Identified exit to Materials 2125 | -9/Mines | X0-1V1 revealed exit location to -8/Materials 2159 | -9/Mines | Found the Drone Emporium 2161 | -9/Mines | Found Prototype Device 2161 | -9/Mines | Identified Bomb Drone Bay 2166 | -9/Mines | Upgraded with Utility slot (x1) 2168 | -9/Mines | Identified exit to Exiles 2168 | -9/Mines | X0-1V1 revealed exit location to -9/Exiles 2202 | -9/Mines | X0-1V1 added 0b10 threat records associated with you (minor) 2232 | -9/Mines | Deemed a non-threat by the Exiles lab entrance 2263 | -9/Mines | Entered Exiles 2270 | -9/Exiles | Destroyed 7 combat bots 2271 | -9/Exiles | Met 8R-AWN 2276 | -9/Exiles | Met EX-HEX 2283 | -9/Exiles | Met EX-BIN 2286 | -9/Exiles | Aligned with FarCom system 2286 | -9/Exiles | Given EX-Vault access code 2293 | -9/Exiles | Opened EX-Vault 2300 | -9/Exiles | Warned to stay clear of 0b10 Research branches 2309 | -9/Exiles | Met EX-DEC 2356 | -9/Exiles | Build established: Sprinter 2439 | -9/Exiles | Attacked by the Exiles 2568 | -9/Exiles | Destroyed 8R-AWN 2599 | -9/Exiles | Core integrity fell below 50% 2629 | -9/Exiles | Destroyed EX-DEC 2634 | -9/Exiles | Destroyed EX-BIN 2639 | -9/Exiles | Destroyed EX-HEX 2652 | -9/Exiles | Found Prototype Device 2652 | -9/Exiles | Identified System Purifier 2708 | -9/Exiles | Found Chronowheel 2709 | -9/Exiles | Found AWS/Gauss 2734 | -9/Exiles | Discovered new exit (range 15) 2737 | -9/Exiles | Stole two prototypes: Chronowheel, AWS/Gauss 2737 | -9/Exiles | Entered Mines 2769 | -8/Mines | Reached level 11 2783 | -8/Mines | X0-1V1 added 0b10 threat records associated with you (minor) 2828 | -8/Mines | 7V-RTL came to Exiles' defense 2876 | -8/Mines | X0-1V1 mutated your Utility slot to Weapon slot 2897 | -8/Mines | X0-1V1 activates XOMVISION 2898 | -8/Mines | Build established: Scavenger-Sprinter 2912 | -8/Mines | Destroyed 7V-RTL 2921 | -8/Mines | Discovered exit to Materials (range 6) 2985 | -8/Mines | Discovered exit to Materials (range 10) 3027 | -8/Mines | Entered Materials 3028 | -8/Materials | Loaded intel: 1 garrison access location 3028 | -8/Materials | Core integrity fell below 50% 3029 | -8/Materials | Reached level 12 3041 | -8/Materials | Upgraded with Utility slot (x1) 3056 | -8/Materials | X0-1V1 mutated your Weapon slot to Utility slot 3099 | -8/Materials | X0-1V1 mutated your Utility slot to Propulsion slot 3115 | -8/Materials | X0-1V1 upgraded hostiles (x2) 3125 | -8/Materials | Garrison activated, responded to threat 3132 | -8/Materials | Upgraded with Weapon slot (x1) 3137 | -8/Materials | Reached level 13 3157 | -8/Materials | Identified exit to Factory 3157 | -8/Materials | X0-1V1 revealed exit location to -7/Factory 3185 | -8/Materials | Destroyed 16 combat bots 3194 | -8/Materials | Discovered exit to Factory (range 14) 3244 | -8/Materials | Discovered exit to Factory (range 17) 3263 | -8/Materials | X0-1V1 sent you to a vault 3293 | -8/Materials | X0-1V1 activates XOMVISION 3333 | -8/Materials | X0-1V1 downgraded hostiles (x1) 3368 | -8/Materials | Garrison activated, responded to threat 3596 | -8/Materials | Reached level 14 3608 | -8/Materials | Upgraded with Utility slot (x1) 3752 | -8/Materials | Sterilization system engaged 3752 | -8/Materials | Non-combat units ordered to evacuate 3759 | -8/Materials | Central database locked down 3786 | -8/Materials | X0-1V1 vaporized surrounding terrain (radius 17) 3795 | -8/Materials | X0-1V1 mutated your Weapon slot to Utility slot 3835 | -8/Materials | Entered Factory 3837 | -7/Factory | Reached level 15 3848 | -7/Factory | X0-1V1 activates XOMVISION 3969 | -7/Factory | Destroyed 7 combat bots 3993 | -7/Factory | Upgraded with Weapon slot (x1) 4100 | -7/Factory | Reached level 16 4148 | -7/Factory | Discovered new exit (range 4) 4177 | -7/Factory | X0-1V1 sent you to a vault 4178 | -7/Factory | Found Skeleton Box 4181 | -7/Factory | Found Prototype Slashing Weapon 4181 | -7/Factory | Identified Scimitar of Distortion 4216 | -7/Factory | X0-1V1 announced a LAN party 4235 | -7/Factory | First assault squad dispatched 4278 | -7/Factory | X0-1V1 redirected Transport squads to designated parking area 4287 | -7/Factory | Destroyed 7 combat bots 4355 | -7/Factory | Discovered new exit (range 9) 4362 | -7/Factory | X0-1V1 activates XOMVISION 4387 | -7/Factory | Sucked down chute 4387 | -7/Factory | Entered Waste 4387 | -7/Waste | The area was eerily silent 4423 | -7/Waste | Discovered new exit (range 13) 4459 | -7/Waste | Entered Factory 4562 | -7/Factory | Reached level 17 4573 | -7/Factory | Identified exit to Factory 4584 | -7/Factory | Destroyed 7 combat bots 4652 | -7/Factory | Discovered new exit (range 10) 4657 | -7/Factory | X0-1V1 announced a LAN party 4665 | -7/Factory | Identified exit to Lower Caves 4701 | -7/Factory | Garrison activated, responded to threat 4724 | -7/Factory | X0-1V1 redirected Transport squads to designated parking area 4842 | -7/Factory | X0-1V1 vaporized surrounding terrain (radius 21) 4845 | -7/Factory | Garrison activated, responded to threat 4859 | -7/Factory | First assault squad dispatched 4882 | -7/Factory | Destroyed 14 combat bots 4927 | -7/Factory | Cargo convoy interrupted 5001 | -7/Factory | Destroyed 11 combat bots 5023 | -7/Factory | Reached level 18 5063 | -7/Factory | X0-1V1 enhanced Transport squad support 5113 | -7/Factory | Sensors blinded by X0-1V1 5196 | -7/Factory | Destroyed 13 combat bots 5246 | -7/Factory | X0-1V1 sent allied Troll (x1) 5339 | -7/Factory | X0-1V1 added 0b10 threat records associated with you (major) 5508 | -7/Factory | X0-1V1 vaporized surrounding terrain (radius 24) 5521 | -7/Factory | Upgraded with Utility slot (x1) 5534 | -7/Factory | Destroyed 8 combat bots 5566 | -7/Factory | Weapon slot count temporarily expanded by X0-1V1 (+2) 5594 | -7/Factory | X0-1V1 activates XOMVISION 5785 | -7/Factory | Garrison activated, responded to threat 5797 | -7/Factory | X0-1V1 sent you to a vault 5803 | -7/Factory | Found Prototype Protection 5803 | -7/Factory | Identified Lgt. Regenerative Plating 5953 | -7/Factory | Reached level 19 6004 | -7/Factory | Destroyed 7 combat bots 6062 | -7/Factory | X0-1V1 upgraded hostiles (x1) 6084 | -7/Factory | High security lockdown imminent 6101 | -7/Factory | Sterilization system engaged 6101 | -7/Factory | Non-combat units ordered to evacuate 6109 | -7/Factory | Destroyed 9 combat bots 6125 | -7/Factory | Upgraded with Power slot (x1) 6201 | -7/Factory | Combat units ordered to evacuate 6201 | -7/Factory | Destroyed 13 combat bots 6266 | -7/Factory | Entered Lower Caves 6266 | -7/Lower Caves | Accompanied by 3 allies 6268 | -7/Lower Caves | Encountered a Master Thief 6269 | -7/Lower Caves | Encountered a Master Thief 6281 | -7/Lower Caves | Learned location of Extension (-4) 6282 | -7/Lower Caves | Identified exit to Lower Caves 6282 | -7/Lower Caves | X0-1V1 revealed exit location to -7/Lower Caves 6320 | -7/Lower Caves | Learned Factory security intel 6340 | -7/Lower Caves | X0-1V1 sent hostile X-57 Shotgunner (x3) 6412 | -7/Lower Caves | Destroyed 9 combat bots 6430 | -7/Lower Caves | X0-1V1 mutated your Propulsion slot to Power slot 6449 | -7/Lower Caves | Sensors blinded by X0-1V1 6452 | -7/Lower Caves | Learned Factory terminal intel 6458 | -7/Lower Caves | Encountered a Warlord checkpoint 6481 | -7/Lower Caves | Acquired the password to a Derelict Tinkerer's latest research 6484 | -7/Lower Caves | Found Prototype Special Weapon 6484 | -7/Lower Caves | Identified Molecular Deconstructor 6513 | -7/Lower Caves | X0-1V1 sent you into danger 6514 | -7/Lower Caves | Caught by Unaware searching for contraband prototypes 6514 | -7/Lower Caves | Caught by Unaware searching for contraband prototypes 6537 | -7/Lower Caves | System corruption reached 10% 6649 | -7/Lower Caves | Ambushed by wild Derelicts 6714 | -7/Lower Caves | X0-1V1 mutated your Utility slot to Weapon slot 6728 | -7/Lower Caves | Entered another Lower Caves area 6738 | -7/Lower Caves | Identified exit to Data Miner 6750 | -7/Lower Caves | X0-1V1 activates XOMVISION 6761 | -7/Lower Caves | X0-1V1 revealed exit location to -6/Factory 6807 | -7/Lower Caves | X0-1V1 vaporized surrounding terrain (radius 17) 6813 | -7/Lower Caves | Sensors blinded by X0-1V1 6841 | -7/Lower Caves | Attracted the attention of an 0b10 checkpoint 6874 | -7/Lower Caves | Encountered a Master Thief 6874 | -7/Lower Caves | Encountered a Master Thief 6874 | -7/Lower Caves | Encountered a Master Thief 6876 | -7/Lower Caves | Encountered a Master Thief 6885 | -7/Lower Caves | Encountered a Master Thief 6893 | -7/Lower Caves | X0-1V1 sent hostile S-27 Virus (x4) 6976 | -7/Lower Caves | Skeleton Box stolen by Master Thief 7159 | -7/Lower Caves | Sensors blinded by X0-1V1 7218 | -7/Lower Caves | Spotted B-75 Beast 7227 | -7/Lower Caves | Destroyed B-75 Beast 7238 | -7/Lower Caves | X0-1V1 sent hostile X-57 Shotgunner (x3) 7265 | -7/Lower Caves | Found Prototype Device 7265 | -7/Lower Caves | Identified Heart of Steel 7299 | -7/Lower Caves | X0-1V1 sent hostile P-60 Hacker (x3) 7414 | -7/Lower Caves | Core integrity restored by X0-1V1 (+184) 7419 | -7/Lower Caves | Build established: Scavenger-Gladiator 7467 | -7/Lower Caves | Heart of Steel transformed into Warbot 7534 | -7/Lower Caves | Entered Data Miner 7534 | -7/Data Miner | Accompanied by 1 ally (Warbot) 7534 | -7/Data Miner | Discovered new exit (range 6) 7539 | -7/Data Miner | Met Data Miner 7546 | -7/Data Miner | Learned location of Section 7 (-2) 7546 | -7/Data Miner | Acquired the access code to Warlord's prototype stash 7548 | -7/Data Miner | Received God Mode back door access code from Data Miner 7553 | -7/Data Miner | Interfaced with the Data Conduit 7603 | -7/Data Miner | Entered Proximity Caves 7603 | -6/Proximity Caves | Accompanied by 1 ally (Warbot) 7605 | -6/Proximity Caves | Reached level 20 7667 | -6/Proximity Caves | Spotted B-75 Beast 7676 | -6/Proximity Caves | Spotter reported a threat 7684 | -6/Proximity Caves | Destroyed B-75 Beast 7709 | -6/Proximity Caves | X0-1V1 activates XOMVISION 7738 | -6/Proximity Caves | Attracted the attention of an 0b10 outpost 7767 | -6/Proximity Caves | X0-1V1 revealed exit location to -6/Factory 7793 | -6/Proximity Caves | X0-1V1 activates XOMVISION 7802 | -6/Proximity Caves | Learned 8 Factory zone layouts 7820 | -6/Proximity Caves | Build established: Scavenger-Sprinter 7870 | -6/Proximity Caves | X0-1V1 activates XOMVISION 7969 | -6/Proximity Caves | X0-1V1 rewrote Soldier 5a IFF filter 7992 | -6/Proximity Caves | Entered Factory 7992 | -6/Factory | Accompanied by 1 ally (Warbot) 7995 | -6/Factory | Loaded intel: 318 machine locations 7995 | -6/Factory | X0-1V1 sent you to a vault 7996 | -6/Factory | Loaded intel: 26 terminal locations 7996 | -6/Factory | Upgraded with Propulsion slot (x1) 8016 | -6/Factory | Discovered new exit (range 9) 8016 | -6/Factory | X0-1V1 activates XOMVISION 8040 | -6/Factory | Allied Derelicts emerged from ambush trap array 8056 | -6/Factory | Watched by a mysterious "MATRIX" hacker 8153 | -6/Factory | Discovered new exit (range 13) 8203 | -6/Factory | Identified exit to Factory 8203 | -6/Factory | X0-1V1 revealed exit location to -5/Factory 8229 | -6/Factory | Discovered exit to Factory (range 4) 8262 | -6/Factory | Sensors blinded by X0-1V1 8266 | -6/Factory | System corruption reached 10% 8272 | -6/Factory | Reached level 21 8282 | -6/Factory | X0-1V1 mutated your Weapon slot to Propulsion slot 8295 | -6/Factory | X0-1V1 sent hostile S-27 Virus (x4) 8312 | -6/Factory | Identified exit to Lower Caves 8312 | -6/Factory | X0-1V1 revealed exit location to -6/Lower Caves 8382 | -6/Factory | X0-1V1 activates XOMVISION 8419 | -6/Factory | Intercept squad dispatched 8431 | -6/Factory | Spotted Tracker 8437 | -6/Factory | Destroyed Tracker 8504 | -6/Factory | Spotted Combat Programmer 8512 | -6/Factory | Destroyed Combat Programmer 8545 | -6/Factory | X0-1V1 activates XOMVISION 8571 | -6/Factory | Destroyed 8 combat bots 8594 | -6/Factory | Garrison activated, responded to threat 8626 | -6/Factory | Spotted B-75 Beast 8631 | -6/Factory | Destroyed 9 combat bots 8660 | -6/Factory | Discovered exit to Factory (range 18) 8682 | -6/Factory | X0-1V1 activates XOMVISION 8692 | -6/Factory | First assault squad dispatched 8718 | -6/Factory | Destroyed B-75 Beast 8759 | -6/Factory | X0-1V1 upgraded hostiles (x2) 8795 | -6/Factory | Destroyed 17 combat bots 8869 | -6/Factory | High security lockdown imminent 8888 | -6/Factory | X0-1V1 activates XOMVISION 8899 | -6/Factory | Intercept squad dispatched 8902 | -6/Factory | Spotted Tracker 8910 | -6/Factory | Destroyed Tracker 8910 | -6/Factory | Spotted Combat Programmer 8915 | -6/Factory | Destroyed Combat Programmer 8949 | -6/Factory | High security lockdown engaged 8955 | -6/Factory | X0-1V1 vaporized surrounding terrain (radius 17) 8979 | -6/Factory | X0-1V1 sent allied H-71 Marshal (x1) 9005 | -6/Factory | Reached level 22 9059 | -6/Factory | Destroyed 10 combat bots 9111 | -6/Factory | X0-1V1 activates XOMVISION 9293 | -6/Factory | Sterilization system engaged 9293 | -6/Factory | Non-combat units ordered to evacuate 9393 | -6/Factory | Combat units ordered to evacuate 9408 | -6/Factory | Destroyed 53 combat bots 9410 | -6/Factory | Entered Lower Caves 9444 | -6/Lower Caves | Learned Factory emergency access door positions 9459 | -6/Lower Caves | Attracted the attention of an 0b10 base 9468 | -6/Lower Caves | Identified exit to Lower Caves 9468 | -6/Lower Caves | Learned location of 1 exit from Lower Caves 9468 | -6/Lower Caves | Learned Armory trap positions 9489 | -6/Lower Caves | Destroyed 7 combat bots 9490 | -6/Lower Caves | X0-1V1 activates XOMVISION 9549 | -6/Lower Caves | X0-1V1 activates XOMVISION 9563 | -6/Lower Caves | Spotted B-75 Beast 9569 | -6/Lower Caves | Destroyed B-75 Beast 9638 | -6/Lower Caves | Entered another Lower Caves area 9644 | -6/Lower Caves | Attacked by a delusional Derelict stockpiling parts 9655 | -6/Lower Caves | X0-1V1 sent hostile H-66 Slayer (x3) 9711 | -6/Lower Caves | Destroyed 8 combat bots 9717 | -6/Lower Caves | Learned Factory stockpile data 9775 | -6/Lower Caves | Attracted the attention of an 0b10 base 9789 | -6/Lower Caves | X0-1V1 whisked you away to safety 9794 | -6/Lower Caves | Identified exit to Zion 9794 | -6/Lower Caves | X0-1V1 revealed exit location to -6/Zion 9801 | -6/Lower Caves | Encountered a Warlord checkpoint 9842 | -6/Lower Caves | Destroyed 13 combat bots 9844 | -6/Lower Caves | Learned location of 1 exit from Factory 9853 | -6/Lower Caves | Entered a destroyed Warlord outpost 9914 | -6/Lower Caves | Entered Zion 9915 | -6/Zion | Identified exit to Proximity Caves 9916 | -6/Zion | Reached level 23 9998 | -6/Zion | Learned Factory terminal intel 10032 | -6/Zion | Discovered new exit (range 3) 10032 | -6/Zion | Saw the warning signs outside the Deep Caves entrance 10064 | -6/Zion | Met Imprinter 10090 | -6/Zion | Attacked by Zionites 10107 | -6/Zion | Entered Deep Caves 10140 | -6/Deep Caves | X0-1V1 poked a wall 10149 | -6/Deep Caves | Attacked by Z-Imprinter 10157 | -6/Deep Caves | Destroyed Z-Imprinter 10283 | -6/Deep Caves | Spotted Assembler 10324 | -6/Deep Caves | Spotted Assembler 10326 | -6/Deep Caves | Destroyed Assembler 10327 | -6/Deep Caves | Destroyed Assembler 10374 | -6/Deep Caves | Destroyed 56 combat bots 10432 | -6/Deep Caves | Spotted Golem 10436 | -6/Deep Caves | Spotted Golem 10451 | -6/Deep Caves | Destroyed 25 combat bots 10457 | -6/Deep Caves | Upgraded with Utility slot (x1) 10486 | -6/Deep Caves | Found PSU Rigger 10500 | -6/Deep Caves | Found Surveybot 24 Scanner 10501 | -6/Deep Caves | Found Surveybot 24 Chip 10530 | -6/Deep Caves | Found Prototype Protection 10530 | -6/Deep Caves | Identified Zio. Weapon Casing 10567 | -6/Deep Caves | Discovered new exit (range 7) 10618 | -6/Deep Caves | Z-Facility disabled 10654 | -6/Deep Caves | Entered Proximity Caves 10684 | -5/Proximity Caves | Attracted the attention of an 0b10 checkpoint 10720 | -5/Proximity Caves | Destroyed 9 combat bots 10722 | -5/Proximity Caves | Spotted B-75 Beast 10727 | -5/Proximity Caves | Destroyed B-75 Beast 10758 | -5/Proximity Caves | Attracted the attention of an 0b10 base 10773 | -5/Proximity Caves | Learned 8 Factory zone layouts 10773 | -5/Proximity Caves | Learned Research garrison access intel 10786 | -5/Proximity Caves | Destroyed 7 combat bots 10832 | -5/Proximity Caves | Destroyed 9 combat bots 10879 | -5/Proximity Caves | Learned Factory garrison access intel 10894 | -5/Proximity Caves | X0-1V1 activates XOMVISION 10937 | -5/Proximity Caves | Entered Factory 10937 | -5/Factory | Identified exit to Upper Caves 10937 | -5/Factory | X0-1V1 revealed exit location to -5/Upper Caves 10939 | -5/Factory | Identified exit to Factory 10943 | -5/Factory | Loaded intel: 213 machine locations 10944 | -5/Factory | Loaded intel: 26 terminal locations 10945 | -5/Factory | Loaded intel: 4 garrison access locations 10957 | -5/Factory | X0-1V1 activates XOMVISION 11005 | -5/Factory | X0-1V1 sent you to a vault 11077 | -5/Factory | Reached level 24 11078 | -5/Factory | Garrison activated, responded to threat 11168 | -5/Factory | Garrison activated, responded to threat 11183 | -5/Factory | Upgraded with Weapon slot (x1) 11212 | -5/Factory | X0-1V1 revealed exit location to -4/Factory 11224 | -5/Factory | Destroyed 8 combat bots 11237 | -5/Factory | First assault squad dispatched 11306 | -5/Factory | Garrison activated, responded to threat 11335 | -5/Factory | Intercept squad dispatched 11335 | -5/Factory | X0-1V1 sent hostile B-60 Warrior (x2) 11344 | -5/Factory | Spotted Tracker 11347 | -5/Factory | Destroyed Tracker 11379 | -5/Factory | Spotted Combat Programmer 11382 | -5/Factory | X0-1V1 enhanced Transport squad support 11385 | -5/Factory | Destroyed 8 combat bots 11388 | -5/Factory | Destroyed Combat Programmer 11539 | -5/Factory | High security lockdown imminent 11547 | -5/Factory | X0-1V1 sent allied Fireman (x2) 11554 | -5/Factory | Reached level 25 11578 | -5/Factory | X0-1V1 revealed exit location to -4/Factory 11590 | -5/Factory | Destroyed 14 combat bots 11619 | -5/Factory | High security lockdown engaged 11664 | -5/Factory | X0-1V1 sent you into danger 11733 | -5/Factory | Destroyed 8 combat bots 11774 | -5/Factory | Garrison activated, responded to threat 11787 | -5/Factory | Intercept squad dispatched 11803 | -5/Factory | Spotted Tracker 11805 | -5/Factory | Destroyed Tracker 11806 | -5/Factory | Sensors blinded by X0-1V1 11821 | -5/Factory | Spotted Combat Programmer 11826 | -5/Factory | Destroyed 7 combat bots 11828 | -5/Factory | Destroyed Combat Programmer 11836 | -5/Factory | X0-1V1 vaporized surrounding terrain (radius 24) 11886 | -5/Factory | Destroyed 8 combat bots 11969 | -5/Factory | Sterilization system engaged 11969 | -5/Factory | Non-combat units ordered to evacuate 12018 | -5/Factory | Destroyed 43 combat bots 12050 | -5/Factory | X0-1V1 upgraded hostiles (x3) 12054 | -5/Factory | X0-1V1 sent allied Fireman (x5) 12069 | -5/Factory | Combat units ordered to evacuate 12077 | -5/Factory | Destroyed 10 combat bots 12183 | -5/Factory | System corruption reached 10% 12194 | -5/Factory | X0-1V1 mutated your Propulsion slot to Utility slot 12195 | -5/Factory | Entered Upper Caves 12195 | -5/Upper Caves | Accompanied by 5 allies 12207 | -5/Upper Caves | Attracted the attention of an 0b10 checkpoint 12220 | -5/Upper Caves | X0-1V1 sent you into danger 12220 | -5/Upper Caves | Reached level 26 12221 | -5/Upper Caves | Attracted the attention of an 0b10 outpost 12221 | -5/Upper Caves | X0-1V1 whisked you away to safety 12241 | -5/Upper Caves | Destroyed 11 combat bots 12318 | -5/Upper Caves | Discovered new exit (range 11) 12329 | -5/Upper Caves | Sensors blinded by X0-1V1 12460 | -5/Upper Caves | Sensors blinded by X0-1V1 12568 | -5/Upper Caves | Entered another Upper Caves area 12568 | -5/Upper Caves | Accompanied by 6 allies 12568 | -5/Upper Caves | Discovered exit to Factory (range 10) 12607 | -5/Upper Caves | Attracted the attention of an 0b10 outpost 12630 | -5/Upper Caves | Destroyed 13 combat bots 12669 | -5/Upper Caves | Discovered new exit (range 24) 12704 | -5/Upper Caves | Destroyed 11 combat bots 12723 | -5/Upper Caves | Learned location of 1 exit from Factory 12743 | -5/Upper Caves | Attracted the attention of an 0b10 checkpoint 12782 | -5/Upper Caves | Learned Factory stockpile data 12802 | -5/Upper Caves | X0-1V1 activates XOMVISION 12867 | -5/Upper Caves | Build established: Scavenger-Scout 12867 | -5/Upper Caves | Entered Zhirov 12867 | -5/Zhirov | Accompanied by 8 allies 12867 | -5/Zhirov | Discovered new exit (range 4) 12871 | -5/Zhirov | Met Zhirov 12879 | -5/Zhirov | Zhirov requested help retrieving the SGEMP Prototype 12884 | -5/Zhirov | Found Alien Artifact 12884 | -5/Zhirov | Identified Integrated Dissipator 12884 | -5/Zhirov | Installed Integrated Dissipator, increased core heat dissipation (+20) 12926 | -5/Zhirov | Attacked by Zhirov 12929 | -5/Zhirov | Allies destroyed Zhirov 12930 | -5/Zhirov | Found Zhirov Special 12932 | -5/Zhirov | Allies destroyed Svarog 12941 | -5/Zhirov | Zhirov detonated his lab 12941 | -5/Zhirov | Cloak Generator disabled 12951 | -5/Zhirov | Enhanced Grunts warped into view 13010 | -5/Zhirov | Destroyed 9 combat bots 13094 | -5/Zhirov | Entered Proximity Caves 13107 | -4/Proximity Caves | X0-1V1 activates XOMVISION 13192 | -4/Proximity Caves | Destroyed 9 combat bots 13197 | -4/Proximity Caves | Discovered exit to Factory (range 17) 13214 | -4/Proximity Caves | Found Chaos Jack 13225 | -4/Proximity Caves | X0-1V1 activates XOMVISION 13434 | -4/Proximity Caves | Received a Behemoth hack from an annoying Tinkerer 13541 | -4/Proximity Caves | Entered Factory 13541 | -4/Factory | Accompanied by 2 allies 13542 | -4/Factory | Identified exit to Research 13542 | -4/Factory | Identified exit to Armory 13545 | -4/Factory | Loaded intel: 332 machine locations 13613 | -4/Factory | Discovered new exit (range 9) 13616 | -4/Factory | Sensors blinded by X0-1V1 13637 | -4/Factory | System corruption reached 10% 13639 | -4/Factory | Reached level 27 13701 | -4/Factory | X0-1V1 enhanced Transport squad support 13701 | -4/Factory | Upgraded with Weapon slot (x1) 13715 | -4/Factory | X0-1V1 sent you to a vault 13716 | -4/Factory | Found Prototype Slashing Weapon 13716 | -4/Factory | Identified Hvy. Scimitar of Distortion 13720 | -4/Factory | Found PL-3XN's Ring of Power 13722 | -4/Factory | Found Chaos Jack 13724 | -4/Factory | Found Chaos Jack 13734 | -4/Factory | Destroyed 17 combat bots 13762 | -4/Factory | Discovered new exit (range 13) 13828 | -4/Factory | Discovered exit to Research (range 20) 13853 | -4/Factory | X0-1V1 redirected Transport squads to designated parking area 13866 | -4/Factory | Spotted B-86 Titan 13876 | -4/Factory | Destroyed B-86 Titan 13903 | -4/Factory | Destroyed 15 combat bots 13964 | -4/Factory | Intercept squad dispatched 13964 | -4/Factory | Spotted Tracker 13964 | -4/Factory | Spotted Tracker 13965 | -4/Factory | Destroyed Tracker 13966 | -4/Factory | Destroyed Tracker 13967 | -4/Factory | Spotted Combat Programmer 13969 | -4/Factory | Destroyed Combat Programmer 13991 | -4/Factory | Spotted Combat Programmer 13996 | -4/Factory | Destroyed Combat Programmer 14012 | -4/Factory | X0-1V1 activates XOMVISION 14026 | -4/Factory | Destroyed 9 combat bots 14041 | -4/Factory | First assault squad dispatched 14155 | -4/Factory | Destroyed 7 combat bots 14210 | -4/Factory | Identified exit to Extension 14210 | -4/Factory | X0-1V1 revealed exit location to -4/Extension 14231 | -4/Factory | X0-1V1 announced a LAN party 14236 | -4/Factory | X0-1V1 sent you into danger 14241 | -4/Factory | Garrison activated, responded to threat 14243 | -4/Factory | Reached level 28 14311 | -4/Factory | Destroyed 16 combat bots 14320 | -4/Factory | X0-1V1 activates XOMVISION 14341 | -4/Factory | Intercept squad dispatched 14360 | -4/Factory | Spotted Tracker 14361 | -4/Factory | Spotted Tracker 14363 | -4/Factory | Destroyed Tracker 14364 | -4/Factory | Destroyed Tracker 14387 | -4/Factory | Spotted Combat Programmer 14390 | -4/Factory | Destroyed Combat Programmer 14426 | -4/Factory | Spotted Combat Programmer 14427 | -4/Factory | Destroyed Combat Programmer 14451 | -4/Factory | High security lockdown imminent 14464 | -4/Factory | Spotted Striker 14464 | -4/Factory | Spotted Executioner 14465 | -4/Factory | Cargo convoy interrupted 14467 | -4/Factory | Destroyed Executioner 14468 | -4/Factory | Destroyed Striker 14495 | -4/Factory | Destroyed 12 combat bots 14507 | -4/Factory | Garrison activated, responded to threat 14516 | -4/Factory | Spotted B-86 Titan 14516 | -4/Factory | X0-1V1 sent you into danger 14531 | -4/Factory | High security lockdown engaged 14532 | -4/Factory | Found Prototype Processor 14532 | -4/Factory | Identified Exp. Core Analyzer 14570 | -4/Factory | Destroyed B-86 Titan 14591 | -4/Factory | Destroyed 20 combat bots 14594 | -4/Factory | Found Exp. Core Analyzer 14597 | -4/Factory | X0-1V1 added 0b10 threat records associated with you (considerable) 14606 | -4/Factory | X0-1V1 sent hostile P-70 Sage (x2) 14615 | -4/Factory | Intercept squad dispatched 14630 | -4/Factory | Sterilization system engaged 14630 | -4/Factory | Non-combat units ordered to evacuate 14640 | -4/Factory | Destroyed 8 combat bots 14640 | -4/Factory | X0-1V1 activates XOMVISION 14641 | -4/Factory | Spotted Tracker 14642 | -4/Factory | Destroyed Tracker 14705 | -4/Factory | Destroyed 12 combat bots 14730 | -4/Factory | Combat units ordered to evacuate 14750 | -4/Factory | Destroyed 15 combat bots 14825 | -4/Factory | X0-1V1 activates XOMVISION 14826 | -4/Factory | Build established: Scavenger-Sprinter 14832 | -4/Factory | Destroyed 10 combat bots 14850 | -4/Factory | Entered Upper Caves 14857 | -4/Upper Caves | Reached level 29 14861 | -4/Upper Caves | X0-1V1 sent hostile Y-64 Sentinel (x1) 14908 | -4/Upper Caves | X0-1V1 mutated your Propulsion slot to Utility slot 14923 | -4/Upper Caves | Destroyed 10 combat bots 15002 | -4/Upper Caves | Discovered new exit (range 15) 15033 | -4/Upper Caves | X0-1V1 mutated your Utility slot to Weapon slot 15137 | -4/Upper Caves | Attracted the attention of an 0b10 checkpoint 15206 | -4/Upper Caves | Build established: Scavenger-Executioner 15213 | -4/Upper Caves | X0-1V1 activates XOMVISION 15304 | -4/Upper Caves | Spotted B-86 Titan 15316 | -4/Upper Caves | Destroyed B-86 Titan 15444 | -4/Upper Caves | Learned Research non-interactive machine intel 15445 | -4/Upper Caves | Attracted the attention of an 0b10 outpost 15468 | -4/Upper Caves | Destroyed 7 combat bots 15578 | -4/Upper Caves | Sensors blinded by X0-1V1 15670 | -4/Upper Caves | Entered another Upper Caves area 15670 | -4/Upper Caves | Accompanied by 2 allies 15680 | -4/Upper Caves | Discovered exit to Research (range 16) 15795 | -4/Upper Caves | Found Alien Artifact 15795 | -4/Upper Caves | Identified Core Expander 15795 | -4/Upper Caves | Installed Core Expander, added new Power slot 15815 | -4/Upper Caves | X0-1V1 sent hostile Y-64 Sentinel (x2) 15849 | -4/Upper Caves | Entered an active Warlord outpost 15856 | -4/Upper Caves | X0-1V1 activates XOMVISION 15863 | -4/Upper Caves | Learned Factory stockpile data 15863 | -4/Upper Caves | Learned Factory security intel 15863 | -4/Upper Caves | Learned Research garrison access intel 16064 | -4/Upper Caves | Identified exit to Warlord 16064 | -4/Upper Caves | X0-1V1 revealed exit location to -4/Warlord 16122 | -4/Upper Caves | X0-1V1 activates XOMVISION 16304 | -4/Upper Caves | Attracted the attention of an 0b10 outpost 16327 | -4/Upper Caves | Destroyed 7 combat bots 16655 | -4/Upper Caves | Entered Warlord 16655 | -4/Warlord | Accompanied by 4 allies 16691 | -4/Warlord | Discovered new exit (range 15) 16750 | -4/Warlord | Opened side exit 16751 | -4/Warlord | Warlord's base attacked by MAIN.C 16835 | -4/Warlord | Destroyed 9 combat bots 16903 | -4/Warlord | X0-1V1 mutated your Weapon slot to Utility slot 16916 | -4/Warlord | Met Warlord 16920 | -4/Warlord | Attacked by Warlord forces 16920 | -4/Warlord | Spotted 8J-FBU(K) 16920 | -4/Warlord | Spotted XP-W5X(K) 16931 | -4/Warlord | Destroyed 8J-FBU(K) 16932 | -4/Warlord | Destroyed XP-W5X(K) 16937 | -4/Warlord | Destroyed Fake God Mode 16947 | -4/Warlord | Destroyed Warlord 16954 | -4/Warlord | Found Prototype Processor 16954 | -4/Warlord | Identified Exp. Melee Analysis Suite 16966 | -4/Warlord | Spotted C4-5SV(g) 16967 | -4/Warlord | Destroyed C4-5SV(g) 16969 | -4/Warlord | Spotted 2P-D00(B) 16996 | -4/Warlord | Destroyed 21 combat bots 16997 | -4/Warlord | X0-1V1 sent hostile Guerrilla (x1) 17011 | -4/Warlord | Destroyed 2P-D00(B) 17012 | -4/Warlord | Spotted 5D-E7R(g) 17016 | -4/Warlord | Destroyed 5D-E7R(g) 17027 | -4/Warlord | Spotted WU-EKH(B) 17029 | -4/Warlord | Destroyed WU-EKH(B) 17044 | -4/Warlord | Warlord forces counterattacked 17062 | -4/Warlord | Spotted Executioner 17063 | -4/Warlord | Spotted Striker 17069 | -4/Warlord | Destroyed Executioner 17073 | -4/Warlord | Destroyed Striker 17098 | -4/Warlord | Spotted HP-18H(g) 17100 | -4/Warlord | Destroyed HP-18H(g) 17119 | -4/Warlord | Spotted RW-ZII(g) 17120 | -4/Warlord | Destroyed RW-ZII(g) 17153 | -4/Warlord | Destroyed 65 combat bots 17179 | -4/Warlord | Spotted Striker 17188 | -4/Warlord | Destroyed Striker 17205 | -4/Warlord | Build established: Scavenger-Sprinter 17212 | -4/Warlord | Destroyed 12 combat bots 17251 | -4/Warlord | Spotted Executioner 17252 | -4/Warlord | Spotted B-86 Titan 17252 | -4/Warlord | Destroyed Executioner 17253 | -4/Warlord | Destroyed B-86 Titan 17257 | -4/Warlord | Destroyed B-90 Cyclops 17278 | -4/Warlord | Destroyed 7 combat bots 17352 | -4/Warlord | Destroyed Executioner 17353 | -4/Warlord | Spotted Striker 17353 | -4/Warlord | Destroyed Striker 17389 | -4/Warlord | Destroyed 12 combat bots 17426 | -4/Warlord | Warlord base infiltrated, sounded retreat 17452 | -4/Warlord | Spotted Executioner 17453 | -4/Warlord | Spotted Striker 17453 | -4/Warlord | Destroyed Striker 17458 | -4/Warlord | Destroyed Executioner 17482 | -4/Warlord | Destroyed 18 combat bots 17485 | -4/Warlord | Spotted Striker 17487 | -4/Warlord | Destroyed Striker 17551 | -4/Warlord | Destroyed B-86 Titan 17552 | -4/Warlord | Reached level 30 17553 | -4/Warlord | Upgraded with Propulsion slot (x1) 17553 | -4/Warlord | Spotted Striker 17555 | -4/Warlord | Destroyed B-90 Cyclops 17555 | -4/Warlord | Destroyed Striker 17585 | -4/Warlord | Destroyed 12 combat bots 17651 | -4/Warlord | Spotted Striker 17652 | -4/Warlord | Spotted Striker 17652 | -4/Warlord | Destroyed Striker 17653 | -4/Warlord | Destroyed Striker 17673 | -4/Warlord | Spotted Executioner 17679 | -4/Warlord | Destroyed 16 combat bots 17690 | -4/Warlord | Destroyed Executioner 17704 | -4/Warlord | X0-1V1 activates XOMVISION 17743 | -4/Warlord | Destroyed 16 combat bots 17753 | -4/Warlord | X0-1V1 sent allied Martyr (x2) 17754 | -4/Warlord | Spotted Striker 17754 | -4/Warlord | Spotted Executioner 17756 | -4/Warlord | Destroyed Executioner 17757 | -4/Warlord | Destroyed Striker 17772 | -4/Warlord | X0-1V1 mutated your Utility slot to Propulsion slot 17778 | -4/Warlord | Destroyed 13 combat bots 17806 | -4/Warlord | Spotted Executioner 17823 | -4/Warlord | Destroyed Executioner 17846 | -4/Warlord | Destroyed 9 combat bots 17860 | -4/Warlord | Spotted B-90 Cyclops 17860 | -4/Warlord | Destroyed B-90 Cyclops 17861 | -4/Warlord | Spotted Striker 17861 | -4/Warlord | Spotted Striker 17863 | -4/Warlord | Destroyed Striker 17865 | -4/Warlord | Destroyed Striker 17888 | -4/Warlord | Destroyed 15 combat bots 17926 | -4/Warlord | Destroyed 8 combat bots 17971 | -4/Warlord | X0-1V1 activates XOMVISION 17977 | -4/Warlord | Destroyed 17 combat bots 18007 | -4/Warlord | Spotted Striker 18009 | -4/Warlord | Destroyed Striker 18031 | -4/Warlord | Destroyed 8 combat bots 18036 | -4/Warlord | X0-1V1 activates XOMVISION 18053 | -4/Warlord | Spotted Striker 18055 | -4/Warlord | Destroyed Striker 18076 | -4/Warlord | Destroyed 19 combat bots 18076 | -4/Warlord | Spotted Striker 18080 | -4/Warlord | Destroyed Striker 18114 | -4/Warlord | Forcibly received Sfc. Transmogifier from X0-1V1 18151 | -4/Warlord | Spotted B-90 Cyclops 18153 | -4/Warlord | Destroyed B-90 Cyclops 18164 | -4/Warlord | Found Adv. Kinecellerator 18175 | -4/Warlord | Destroyed 10 combat bots 18203 | -4/Warlord | X0-1V1 activates XOMVISION 18208 | -4/Warlord | Destroyed 12 combat bots 18260 | -4/Warlord | Found Vortex Chain Reactor 18311 | -4/Warlord | X0-1V1 activates XOMVISION 18311 | -4/Warlord | Spotted Executioner 18311 | -4/Warlord | Spotted Striker 18311 | -4/Warlord | X0-1V1 sent you into danger 18313 | -4/Warlord | Destroyed Striker 18318 | -4/Warlord | Destroyed Executioner 18343 | -4/Warlord | Destroyed 10 combat bots 18386 | -4/Warlord | Found Prototype Energy Gun 18386 | -4/Warlord | Identified Vortex Shotgun 18388 | -4/Warlord | Found Vortex Shotgun 18431 | -4/Warlord | X0-1V1 activates XOMVISION 18467 | -4/Warlord | Entered Proximity Caves 18471 | -3/Proximity Caves | Attracted the attention of an 0b10 checkpoint 18550 | -3/Proximity Caves | Destroyed 9 combat bots 18567 | -3/Proximity Caves | Discovered exit to Research (range 3) 18688 | -3/Proximity Caves | Entered Research 18689 | -3/Research | Loaded intel: 109 machine locations 18690 | -3/Research | Loaded intel: 64 non-interactive machine locations 18690 | -3/Research | Reached level 31 18691 | -3/Research | Loaded intel: 3 garrison access locations 18748 | -3/Research | Spotted B-86 Titan 18751 | -3/Research | Destroyed B-86 Titan 18795 | -3/Research | X0-1V1 sent allied Elite (x3) 18795 | -3/Research | Destroyed 12 combat bots 18840 | -3/Research | X0-1V1 added 0b10 threat records associated with you (considerable) 18878 | -3/Research | Intercept squad dispatched 18886 | -3/Research | Spotted Tracker 18887 | -3/Research | Destroyed Tracker 18913 | -3/Research | Garrison activated, responded to threat 18924 | -3/Research | Spotted Combat Programmer 18926 | -3/Research | Destroyed Combat Programmer 19037 | -3/Research | Identified exit to Testing 19037 | -3/Research | X0-1V1 revealed exit location to -3/Testing 19134 | -3/Research | Garrison activated, responded to threat 19160 | -3/Research | Found Exp. Hacking Suite 19173 | -3/Research | Destroyed 9 combat bots 19174 | -3/Research | X0-1V1 sent you to a vault 19176 | -3/Research | Found Prototype Device 19176 | -3/Research | Identified Active Sensor Suite 19188 | -3/Research | First assault squad dispatched 19201 | -3/Research | X0-1V1 revealed exit location to -3/Testing 19216 | -3/Research | X0-1V1 activates XOMVISION 19231 | -3/Research | Intercept squad dispatched 19248 | -3/Research | Spotted Tracker 19249 | -3/Research | Spotted Tracker 19250 | -3/Research | Destroyed Tracker 19251 | -3/Research | Destroyed Tracker 19261 | -3/Research | Spotted Combat Programmer 19262 | -3/Research | Spotted Combat Programmer 19262 | -3/Research | Destroyed Combat Programmer 19262 | -3/Research | Destroyed Combat Programmer 19270 | -3/Research | Spotted B-86 Titan 19270 | -3/Research | Destroyed B-86 Titan 19289 | -3/Research | X0-1V1 vaporized surrounding terrain (radius 18) 19291 | -3/Research | Destroyed 9 combat bots 19335 | -3/Research | Destroyed 7 combat bots 19367 | -3/Research | X0-1V1 activates XOMVISION 19398 | -3/Research | Spotted B-86 Titan 19399 | -3/Research | High security lockdown imminent 19399 | -3/Research | Destroyed B-86 Titan 19431 | -3/Research | Intercept squad dispatched 19432 | -3/Research | Cargo convoy interrupted 19433 | -3/Research | Spotted Executioner 19433 | -3/Research | Destroyed Executioner 19449 | -3/Research | Spotted Tracker 19452 | -3/Research | Spotted Tracker 19452 | -3/Research | Spotted Tracker 19452 | -3/Research | Destroyed Tracker 19452 | -3/Research | Destroyed Tracker 19453 | -3/Research | Destroyed Tracker 19472 | -3/Research | Spotted Combat Programmer 19473 | -3/Research | X0-1V1 sent allied Executioner (x1) 19473 | -3/Research | Spotted Combat Programmer 19474 | -3/Research | Destroyed Combat Programmer 19474 | -3/Research | Destroyed Combat Programmer 19478 | -3/Research | Reached level 32 19479 | -3/Research | High security lockdown engaged 19516 | -3/Research | Destroyed 19 combat bots 19547 | -3/Research | Garrison activated, responded to threat 19598 | -3/Research | Destroyed 14 combat bots 19628 | -3/Research | X0-1V1 activates XOMVISION 19635 | -3/Research | X0-1V1 redirected Transport squads to designated parking area 19663 | -3/Research | Intercept squad dispatched 19691 | -3/Research | Spotted Tracker 19691 | -3/Research | Spotted Tracker 19691 | -3/Research | Destroyed Tracker 19692 | -3/Research | Destroyed Tracker 19694 | -3/Research | Spotted Tracker 19695 | -3/Research | Destroyed Tracker 19730 | -3/Research | Spotted Combat Programmer 19735 | -3/Research | Spotted Combat Programmer 19736 | -3/Research | Destroyed Combat Programmer 19739 | -3/Research | Destroyed Combat Programmer 19761 | -3/Research | Spotted Combat Programmer 19762 | -3/Research | Destroyed Combat Programmer 19785 | -3/Research | Spotted Striker 19787 | -3/Research | Destroyed Striker 19801 | -3/Research | Sterilization system engaged 19801 | -3/Research | Non-combat units ordered to evacuate 19810 | -3/Research | Destroyed 20 combat bots 19811 | -3/Research | X0-1V1 enhanced Transport squad support 19901 | -3/Research | Combat units ordered to evacuate 19923 | -3/Research | Entered Testing 19924 | -3/Testing | Loaded intel: 48 machine locations 19934 | -3/Testing | X0-1V1 activates XOMVISION 19989 | -3/Testing | Found Prototype Energy Cannon 19989 | -3/Testing | Identified Potential Cannon 20007 | -3/Testing | Rewired PG-DIE2GSOT11 20050 | -3/Testing | High security lockdown imminent 20058 | -3/Testing | Discovered new exit (range 17) 20059 | -3/Testing | X0-1V1 enhanced Transport squad support 20071 | -3/Testing | Destroyed 7 combat bots 20086 | -3/Testing | Intercept squad dispatched 20088 | -3/Testing | Spotted Alpha 7 20088 | -3/Testing | X0-1V1 sent you into danger 20089 | -3/Testing | Destroyed Alpha 7 20090 | -3/Testing | Spotted Striker 20090 | -3/Testing | Spotted Striker 20090 | -3/Testing | Destroyed Striker 20090 | -3/Testing | Destroyed Striker 20121 | -3/Testing | X0-1V1 sent you to a vault 20125 | -3/Testing | Found Prototype Reactor 20125 | -3/Testing | Identified Zero-point Reactor 20130 | -3/Testing | High security lockdown engaged 20131 | -3/Testing | Found Vortex Chain Reactor 20135 | -3/Testing | Destroyed 8 combat bots 20137 | -3/Testing | X0-1V1 sent hostile G-67 Veteran (x3) 20153 | -3/Testing | Sensors blinded by X0-1V1 20229 | -3/Testing | Spotted Tracker 20231 | -3/Testing | Destroyed Tracker 20232 | -3/Testing | Spotted Tracker 20234 | -3/Testing | Destroyed Tracker 20251 | -3/Testing | Destroyed Investigator 20286 | -3/Testing | Destroyed 45 combat bots 20344 | -3/Testing | Intercept squad dispatched 20351 | -3/Testing | Spotted Tracker 20351 | -3/Testing | Spotted Tracker 20351 | -3/Testing | Destroyed Tracker 20351 | -3/Testing | Destroyed Tracker 20352 | -3/Testing | Spotted Tracker 20353 | -3/Testing | Destroyed Tracker 20353 | -3/Testing | Spotted Combat Programmer 20353 | -3/Testing | Spotted Combat Programmer 20355 | -3/Testing | Destroyed Combat Programmer 20355 | -3/Testing | Spotted Combat Programmer 20356 | -3/Testing | Destroyed Combat Programmer 20356 | -3/Testing | Destroyed Combat Programmer 20377 | -3/Testing | Destroyed 7 combat bots 20400 | -3/Testing | Spotted Striker 20400 | -3/Testing | Spotted Executioner 20400 | -3/Testing | Spotted Striker 20400 | -3/Testing | Reached level 33 20401 | -3/Testing | Destroyed Striker 20402 | -3/Testing | Destroyed Striker 20408 | -3/Testing | Destroyed Executioner 20412 | -3/Testing | Found Prototype Launcher 20413 | -3/Testing | Sensors blinded by X0-1V1 20430 | -3/Testing | Destroyed 24 combat bots 20435 | -3/Testing | X0-1V1 announced a LAN party 20574 | -3/Testing | X0-1V1 activates XOMVISION 20606 | -3/Testing | Scanned by Researcher 20608 | -3/Testing | Spotted Executioner 20608 | -3/Testing | Spotted Investigator 20608 | -3/Testing | Spotted Executioner 20608 | -3/Testing | Spotted Executioner 20609 | -3/Testing | Destroyed Investigator 20612 | -3/Testing | Destroyed Executioner 20614 | -3/Testing | Destroyed Executioner 20616 | -3/Testing | Destroyed Executioner 20639 | -3/Testing | Destroyed 20 combat bots 20643 | -3/Testing | Found Prototype Launcher 20663 | -3/Testing | Core integrity restored by X0-1V1 (+120) 20772 | -3/Testing | X0-1V1 activates XOMVISION 20857 | -3/Testing | Spotted Executioner 20857 | -3/Testing | Spotted Executioner 20873 | -3/Testing | Destroyed Executioner 20876 | -3/Testing | Spotted Executioner 20877 | -3/Testing | Destroyed Executioner 20886 | -3/Testing | Destroyed Executioner 20887 | -3/Testing | Sterilization system engaged 20887 | -3/Testing | Non-combat units ordered to evacuate 20887 | -3/Testing | Spotted Striker 20887 | -3/Testing | Spotted Striker 20892 | -3/Testing | Destroyed Striker 20892 | -3/Testing | Destroyed Striker 20902 | -3/Testing | Spotted Striker 20902 | -3/Testing | Spotted Striker 20905 | -3/Testing | Destroyed Striker 20905 | -3/Testing | Destroyed Striker 20909 | -3/Testing | Spotted Executioner 20909 | -3/Testing | Spotted Striker 20915 | -3/Testing | Destroyed Striker 20917 | -3/Testing | Destroyed Executioner 20939 | -3/Testing | Destroyed 41 combat bots 20946 | -3/Testing | Entered Research 20947 | -2/Research | Loaded intel: 113 machine locations 20948 | -2/Research | Loaded intel: 4 garrison access locations 20980 | -2/Research | X0-1V1 enhanced Transport squad support 21011 | -2/Research | X0-1V1 announced a LAN party 21024 | -2/Research | Destroyed 10 combat bots 21028 | -2/Research | Identified exit to Quarantine 21028 | -2/Research | X0-1V1 revealed exit location to -2/Quarantine 21028 | -2/Research | Spotted B-90 Cyclops 21030 | -2/Research | High security lockdown imminent 21030 | -2/Research | Destroyed B-90 Cyclops 21049 | -2/Research | Discovered new exit (range 8) 21072 | -2/Research | Destroyed 12 combat bots 21085 | -2/Research | X0-1V1 sent you to a vault 21087 | -2/Research | Reached level 34 21095 | -2/Research | Discovered exit to Quarantine (range 12) 21110 | -2/Research | High security lockdown engaged 21115 | -2/Research | Intercept squad dispatched 21133 | -2/Research | Spotted Tracker 21136 | -2/Research | Spotted Tracker 21137 | -2/Research | Destroyed Tracker 21137 | -2/Research | Destroyed Tracker 21161 | -2/Research | Spotted Combat Programmer 21164 | -2/Research | Destroyed Combat Programmer 21167 | -2/Research | Spotted Combat Programmer 21168 | -2/Research | Destroyed Combat Programmer 21189 | -2/Research | Destroyed 25 combat bots 21206 | -2/Research | X0-1V1 activates XOMVISION 21232 | -2/Research | X0-1V1 sent hostile Savage (x1) 21275 | -2/Research | Destroyed 13 combat bots 21283 | -2/Research | X0-1V1 sent hostile S-43 Plague (x4) 21287 | -2/Research | Destroyed Investigator 21309 | -2/Research | Destroyed 9 combat bots 21332 | -2/Research | Garrison activated, responded to threat 21359 | -2/Research | X0-1V1 turns hostiles against one another 21388 | -2/Research | Sensors blinded by X0-1V1 21393 | -2/Research | Intercept squad dispatched 21397 | -2/Research | Destroyed 26 combat bots 21417 | -2/Research | Spotted Tracker 21417 | -2/Research | Spotted Tracker 21418 | -2/Research | Destroyed Tracker 21418 | -2/Research | Destroyed Tracker 21461 | -2/Research | Spotted Combat Programmer 21462 | -2/Research | Destroyed Combat Programmer 21477 | -2/Research | Spotted Combat Programmer 21478 | -2/Research | Destroyed Combat Programmer 21501 | -2/Research | Spotted Investigator 21503 | -2/Research | Destroyed Investigator 21514 | -2/Research | Reached level 35 21527 | -2/Research | Sterilization system engaged 21527 | -2/Research | Non-combat units ordered to evacuate 21545 | -2/Research | Destroyed 33 combat bots 21566 | -2/Research | Entered Quarantine 21567 | -2/Quarantine | Loaded intel: 79 machine locations 21590 | -2/Quarantine | Cryocooling Duct disabled 21605 | -2/Quarantine | Ambient heat levels rising (+20) 21605 | -2/Quarantine | Non-combat units ordered to evacuate 21611 | -2/Quarantine | Met incapacitated Sigix Warrior 21611 | -2/Quarantine | Lockdown squad dispatched 21611 | -2/Quarantine | X0-1V1 activates XOMVISION 21625 | -2/Quarantine | Found Alien Artifact 21645 | -2/Quarantine | Discovered new exit (range 11) 21660 | -2/Quarantine | Spotted Fortress 21666 | -2/Quarantine | Destroyed Fortress 21693 | -2/Quarantine | Identified exit to Protoforge 21693 | -2/Quarantine | X0-1V1 revealed exit location to -2/Protoforge 21716 | -2/Quarantine | Destroyed 9 combat bots 21721 | -2/Quarantine | Intercept squad dispatched 21738 | -2/Quarantine | Spotted Tracker 21739 | -2/Quarantine | Destroyed Tracker 21739 | -2/Quarantine | Spotted Tracker 21741 | -2/Quarantine | Destroyed Tracker 21772 | -2/Quarantine | Spotted Combat Programmer 21773 | -2/Quarantine | Destroyed Combat Programmer 21773 | -2/Quarantine | Spotted Combat Programmer 21775 | -2/Quarantine | Destroyed Combat Programmer 21816 | -2/Quarantine | First assault squad dispatched 21824 | -2/Quarantine | X0-1V1 sent you to a vault 21829 | -2/Quarantine | Found Prototype Device 21829 | -2/Quarantine | Identified Exp. Actuator Array 21833 | -2/Quarantine | Found Chronowheel 21884 | -2/Quarantine | Garrison activated, responded to threat 21887 | -2/Quarantine | X0-1V1 activates XOMVISION 21911 | -2/Quarantine | Spotted Alpha 7 21912 | -2/Quarantine | Destroyed Alpha 7 21953 | -2/Quarantine | Destroyed 22 combat bots 21957 | -2/Quarantine | Spotted Lightning 21957 | -2/Quarantine | Spotted Lightning 21957 | -2/Quarantine | Spotted Lightning 21957 | -2/Quarantine | Destroyed Lightning 21958 | -2/Quarantine | Destroyed Lightning 21958 | -2/Quarantine | Destroyed Lightning 21967 | -2/Quarantine | Intercept squad dispatched 21977 | -2/Quarantine | Spotted Tracker 21978 | -2/Quarantine | Spotted Tracker 21978 | -2/Quarantine | Destroyed Tracker 21979 | -2/Quarantine | Destroyed Tracker 21988 | -2/Quarantine | Spotted Combat Programmer 21988 | -2/Quarantine | Spotted Combat Programmer 21989 | -2/Quarantine | Destroyed Combat Programmer 21991 | -2/Quarantine | Destroyed Combat Programmer 22007 | -2/Quarantine | Cryocooling Duct disabled 22007 | -2/Quarantine | Cryocooling Duct disabled 22007 | -2/Quarantine | Cryocooling Duct disabled 22007 | -2/Quarantine | Cryocooling Duct disabled 22010 | -2/Quarantine | X0-1V1 announced a LAN party 22012 | -2/Quarantine | Destroyed 8 combat bots 22022 | -2/Quarantine | Ambient heat levels rising (+80) 22022 | -2/Quarantine | Combat units ordered to evacuate 22062 | -2/Quarantine | X0-1V1 sent you into danger 22109 | -2/Quarantine | High security lockdown imminent 22114 | -2/Quarantine | Spotted Striker 22114 | -2/Quarantine | Destroyed Striker 22122 | -2/Quarantine | Quarantine Guard activated 22122 | -2/Quarantine | Spotted Quarantine Guard 22122 | -2/Quarantine | Spotted Quarantine Guard 22122 | -2/Quarantine | Spotted Quarantine Guard 22122 | -2/Quarantine | Spotted Quarantine Guard 22122 | -2/Quarantine | Spotted Quarantine Guard 22122 | -2/Quarantine | Spotted Quarantine Guard 22125 | -2/Quarantine | Destroyed Quarantine Guard 22128 | -2/Quarantine | Destroyed Quarantine Guard 22129 | -2/Quarantine | Destroyed Quarantine Guard 22130 | -2/Quarantine | Destroyed Quarantine Guard 22130 | -2/Quarantine | Destroyed Quarantine Guard 22131 | -2/Quarantine | Destroyed Quarantine Guard 22141 | -2/Quarantine | X0-1V1 activates XOMVISION 22152 | -2/Quarantine | Destroyed 20 combat bots 22189 | -2/Quarantine | High security lockdown engaged 22236 | -2/Quarantine | Spotted Quarantine Guard 22245 | -2/Quarantine | Spotted Quarantine Guard 22245 | -2/Quarantine | Destroyed Quarantine Guard 22255 | -2/Quarantine | Destroyed Quarantine Guard 22297 | -2/Quarantine | Identified exit to Section 7 22297 | -2/Quarantine | X0-1V1 revealed exit location to -2/Section 7 22667 | -2/Quarantine | X0-1V1 added 0b10 threat records associated with you (minor) 22722 | -2/Quarantine | X0-1V1 added 0b10 threat records associated with you (minor) 22767 | -2/Quarantine | Spotted Executioner 22768 | -2/Quarantine | Destroyed Executioner 22798 | -2/Quarantine | Destroyed 14 combat bots 22921 | -2/Quarantine | Sensors blinded by X0-1V1 22924 | -2/Quarantine | System corruption reached 10% 22928 | -2/Quarantine | Spotted Striker 22931 | -2/Quarantine | Destroyed Striker 22936 | -2/Quarantine | Spotted Executioner 22950 | -2/Quarantine | Reached level 36 22951 | -2/Quarantine | Spotted Striker 22951 | -2/Quarantine | Spotted Striker 22951 | -2/Quarantine | Destroyed Striker 22951 | -2/Quarantine | Destroyed Striker 22951 | -2/Quarantine | Destroyed Executioner 22963 | -2/Quarantine | Spotted Executioner 22964 | -2/Quarantine | Destroyed Executioner 22964 | -2/Quarantine | Spotted Investigator 22965 | -2/Quarantine | Destroyed Investigator 22971 | -2/Quarantine | Found Prototype Launcher 22996 | -2/Quarantine | Destroyed 26 combat bots 23007 | -2/Quarantine | X0-1V1 added 0b10 threat records associated with you (major) 23209 | -2/Quarantine | Spotted Executioner 23209 | -2/Quarantine | Spotted Striker 23209 | -2/Quarantine | Spotted Executioner 23209 | -2/Quarantine | Spotted Executioner 23216 | -2/Quarantine | Destroyed Striker 23217 | -2/Quarantine | Sterilization system engaged 23217 | -2/Quarantine | Non-combat units ordered to evacuate 23217 | -2/Quarantine | Destroyed Executioner 23230 | -2/Quarantine | Destroyed Executioner 23231 | -2/Quarantine | Destroyed Executioner 23235 | -2/Quarantine | Destroyed Executioner 23242 | -2/Quarantine | Spotted Executioner 23247 | -2/Quarantine | Destroyed Executioner 23268 | -2/Quarantine | X0-1V1 sent hostile Thug (x4) 23297 | -2/Quarantine | Destroyed 48 combat bots 23305 | -2/Quarantine | Activated Chronowheel 23305 | -2/Quarantine | Spacetime reconverged on an earlier point 23307 | -2/Quarantine | Entered Protoforge 23308 | -2/Protoforge | Loaded intel: 399 machine locations 23315 | -2/Protoforge | Sensors blinded by X0-1V1 23371 | -2/Protoforge | Superfortress began startup sequence 23405 | -2/Protoforge | Forge Plexus network access discovered 23413 | -2/Protoforge | Spotted Hotshot 23413 | -2/Protoforge | Spotted Hotshot 23413 | -2/Protoforge | Spotted Hotshot 23413 | -2/Protoforge | Spotted Hotshot 23421 | -2/Protoforge | Discovered new exit (range 16) 23430 | -2/Protoforge | Spotted Decapitator 23463 | -2/Protoforge | Spotted Immortal 23463 | -2/Protoforge | Spotted Immortal 23464 | -2/Protoforge | Spotted Decapitator 23464 | -2/Protoforge | Spotted Decapitator 23464 | -2/Protoforge | Spotted Decapitator 23464 | -2/Protoforge | Spotted Decapitator 23464 | -2/Protoforge | Destroyed Decapitator 23465 | -2/Protoforge | Destroyed Decapitator 23465 | -2/Protoforge | Destroyed Decapitator 23467 | -2/Protoforge | Destroyed Decapitator 23488 | -2/Protoforge | Found Cep. Network Penetrator 23492 | -2/Protoforge | X0-1V1 sent hostile Fireman (x2) 23505 | -2/Protoforge | Destroyed 16 combat bots 23531 | -2/Protoforge | Destroyed Immortal 23532 | -2/Protoforge | Destroyed Immortal 23552 | -2/Protoforge | Found Exp. Kinecellerator 23555 | -2/Protoforge | Found Cep. Melee Reflex Suite 23557 | -2/Protoforge | First assault squad dispatched 23560 | -2/Protoforge | Found Faulty Cep. Networked Targeting System 23575 | -2/Protoforge | Found Crosscalibrator 23599 | -2/Protoforge | Intercept squad dispatched 23631 | -2/Protoforge | Spotted Tracker 23631 | -2/Protoforge | Spotted Tracker 23631 | -2/Protoforge | Destroyed Tracker 23633 | -2/Protoforge | Destroyed Tracker 23702 | -2/Protoforge | Spotted Combat Programmer 23706 | -2/Protoforge | Spotted Combat Programmer 23710 | -2/Protoforge | Destroyed Combat Programmer 23711 | -2/Protoforge | Destroyed Combat Programmer 23810 | -2/Protoforge | Destroyed 13 combat bots 23868 | -2/Protoforge | X0-1V1 sent hostile G-67 Veteran (x3) 23871 | -2/Protoforge | X0-1V1 mutated your Utility slot to Weapon slot 23898 | -2/Protoforge | Intercept squad dispatched 23929 | -2/Protoforge | X0-1V1 vaporized surrounding terrain (radius 23) 23929 | -2/Protoforge | Additional patrols dispatched to research labs 23929 | -2/Protoforge | Spotted Tracker 23929 | -2/Protoforge | Spotted Tracker 23930 | -2/Protoforge | Destroyed Tracker 23933 | -2/Protoforge | Destroyed Tracker 23934 | -2/Protoforge | Spotted Tracker 23944 | -2/Protoforge | Destroyed Tracker 24005 | -2/Protoforge | Spotted Combat Programmer 24007 | -2/Protoforge | Spotted Combat Programmer 24010 | -2/Protoforge | Destroyed Combat Programmer 24010 | -2/Protoforge | Spotted Combat Programmer 24013 | -2/Protoforge | Destroyed Combat Programmer 24015 | -2/Protoforge | Destroyed Combat Programmer 24046 | -2/Protoforge | Destroyed 19 combat bots 24046 | -2/Protoforge | Identified Containment Facilitator (x2) 24051 | -2/Protoforge | Spotted V214-h 24051 | -2/Protoforge | Spotted V512-t 24058 | -2/Protoforge | Destroyed V214-h 24058 | -2/Protoforge | Destroyed V512-t 24068 | -2/Protoforge | Found Cep. Zero-point Core 24070 | -2/Protoforge | Found Cep. Zero-point Core 24103 | -2/Protoforge | Spotted Decapitator 24103 | -2/Protoforge | Spotted Decapitator 24103 | -2/Protoforge | Spotted V636-v 24103 | -2/Protoforge | Spotted V456-w 24103 | -2/Protoforge | Spotted Decapitator 24110 | -2/Protoforge | Found Faulty Cep. Matter Streamer 24119 | -2/Protoforge | Found Faulty Cep. Matter Streamer 24168 | -2/Protoforge | Intercept squad dispatched 24171 | -2/Protoforge | Destroyed V636-v 24172 | -2/Protoforge | Destroyed V456-w 24183 | -2/Protoforge | Destroyed Decapitator 24183 | -2/Protoforge | Destroyed Decapitator 24184 | -2/Protoforge | Destroyed Decapitator 24191 | -2/Protoforge | Spotted Tracker 24192 | -2/Protoforge | Destroyed Tracker 24192 | -2/Protoforge | Spotted Tracker 24192 | -2/Protoforge | Destroyed Tracker 24193 | -2/Protoforge | Spotted Tracker 24193 | -2/Protoforge | Destroyed Tracker 24214 | -2/Protoforge | Destroyed 8 combat bots 24215 | -2/Protoforge | Sensors blinded by X0-1V1 24257 | -2/Protoforge | Spotted Combat Programmer 24258 | -2/Protoforge | Destroyed Combat Programmer 24258 | -2/Protoforge | Spotted Combat Programmer 24258 | -2/Protoforge | Spotted Combat Programmer 24259 | -2/Protoforge | Destroyed Combat Programmer 24259 | -2/Protoforge | Destroyed Combat Programmer 24286 | -2/Protoforge | X0-1V1 sent you into danger 24320 | -2/Protoforge | Found Cep. Fieldthrust Drive 24326 | -2/Protoforge | Found Faulty Cep. Fieldthrust Drive 24333 | -2/Protoforge | Found Faulty Cep. Fieldthrust Drive 24438 | -2/Protoforge | Spotted AP7-3 24438 | -2/Protoforge | Spotted AP7-3 24438 | -2/Protoforge | X0-1V1 sent you into danger 24441 | -2/Protoforge | Destroyed AP7-3 24447 | -2/Protoforge | Destroyed AP7-3 24575 | -2/Protoforge | Destroyed 14 combat bots 24577 | -2/Protoforge | Build established: Generator-Sprinter 24598 | -2/Protoforge | Spotted Decapitator 24598 | -2/Protoforge | Spotted Decapitator 24598 | -2/Protoforge | Spotted Decapitator 24598 | -2/Protoforge | Spotted Decapitator 24621 | -2/Protoforge | X0-1V1 activates XOMVISION 24656 | -2/Protoforge | Reached level 37 24656 | -2/Protoforge | High security lockdown imminent 24656 | -2/Protoforge | Destroyed Superfortress 24690 | -2/Protoforge | Destroyed 8 combat bots 24710 | -2/Protoforge | Intercept squad dispatched 24717 | -2/Protoforge | X0-1V1 sent you to a vault 24718 | -2/Protoforge | Spotted Hotshot 24718 | -2/Protoforge | Spotted Hotshot 24718 | -2/Protoforge | Spotted Hotshot 24718 | -2/Protoforge | Spotted Hotshot 24718 | -2/Protoforge | Spotted Hotshot 24718 | -2/Protoforge | Spotted B-90 Cyclops 24719 | -2/Protoforge | Spotted AP7-3 24720 | -2/Protoforge | Spotted AP7-3 24736 | -2/Protoforge | High security lockdown engaged 24759 | -2/Protoforge | Spotted Tracker 24759 | -2/Protoforge | Spotted Tracker 24760 | -2/Protoforge | Spotted Tracker 24761 | -2/Protoforge | Destroyed Decapitator 24761 | -2/Protoforge | Destroyed Decapitator 24762 | -2/Protoforge | Destroyed Decapitator 24762 | -2/Protoforge | Destroyed Decapitator 24783 | -2/Protoforge | Destroyed 31 combat bots 24818 | -2/Protoforge | X0-1V1 activates XOMVISION 24839 | -2/Protoforge | Identified Subatomic Replicator 24839 | -2/Protoforge | Used Subatomic Replicator to create Prototype Device 24840 | -2/Protoforge | Identified Supercharged Navigation Harness 24843 | -2/Protoforge | Found Cep. Nanofilaments [Tensile] 24843 | -2/Protoforge | Installed Cep. Nanofilaments [Tensile], 3 resistances modified: KI +20%, TH -10%, I +20% 24877 | -2/Protoforge | Destroyed Hotshot 24877 | -2/Protoforge | Destroyed Hotshot 24878 | -2/Protoforge | Destroyed Hotshot 24878 | -2/Protoforge | Destroyed Hotshot 24879 | -2/Protoforge | Destroyed Hotshot 24900 | -2/Protoforge | Destroyed AP7-3 24915 | -2/Protoforge | X0-1V1 activates XOMVISION 24921 | -2/Protoforge | Destroyed 10 combat bots 24924 | -2/Protoforge | Intercept squad dispatched 24933 | -2/Protoforge | Destroyed B-90 Cyclops 24936 | -2/Protoforge | X0-1V1 mutated your Weapon slot to Utility slot 24941 | -2/Protoforge | Spotted Hotshot 24941 | -2/Protoforge | Spotted Hotshot 24941 | -2/Protoforge | Spotted Hotshot 24941 | -2/Protoforge | Destroyed Hotshot 24941 | -2/Protoforge | Spotted Hotshot 24942 | -2/Protoforge | Destroyed Hotshot 24944 | -2/Protoforge | Spotted Hotshot 24944 | -2/Protoforge | Destroyed Hotshot 24944 | -2/Protoforge | Destroyed Hotshot 24945 | -2/Protoforge | Destroyed Hotshot 24947 | -2/Protoforge | Spotted Overlord 24948 | -2/Protoforge | Destroyed Overlord 24971 | -2/Protoforge | Destroyed Tracker 25011 | -2/Protoforge | Spotted Investigator 25023 | -2/Protoforge | Destroyed Investigator 25052 | -2/Protoforge | Destroyed 54 combat bots 25064 | -2/Protoforge | Spotted V861-c 25064 | -2/Protoforge | Spotted V671-j 25064 | -2/Protoforge | Spotted V641-w 25066 | -2/Protoforge | Destroyed V671-j 25066 | -2/Protoforge | X0-1V1 mutated your Utility slot to Weapon slot 25070 | -2/Protoforge | Destroyed V641-w 25071 | -2/Protoforge | Destroyed V861-c 25117 | -2/Protoforge | Sensors blinded by X0-1V1 25121 | -2/Protoforge | Spotted Immortal 25121 | -2/Protoforge | Spotted Immortal 25122 | -2/Protoforge | Destroyed Immortal 25123 | -2/Protoforge | Destroyed Immortal 25154 | -2/Protoforge | Found Cep. Core Analysis Suite 25156 | -2/Protoforge | Found Cld. Directed Potential Cannon 25169 | -2/Protoforge | Spotted V028-k 25174 | -2/Protoforge | Destroyed V028-k 25217 | -2/Protoforge | X0-1V1 sent allied X-82 Rainmaker (x3) 25220 | -2/Protoforge | Spotted Executioner 25220 | -2/Protoforge | Spotted Executioner 25222 | -2/Protoforge | Destroyed Executioner 25223 | -2/Protoforge | Destroyed Executioner 25265 | -2/Protoforge | Destroyed 16 combat bots 25268 | -2/Protoforge | Found Exp. Weapon Cycler 25271 | -2/Protoforge | Spotted Executioner 25278 | -2/Protoforge | Spotted Hotshot 25280 | -2/Protoforge | X0-1V1 sent hostile S-43 Plague (x3) 25331 | -2/Protoforge | Spotted Decapitator 25331 | -2/Protoforge | Spotted Decapitator 25331 | -2/Protoforge | Spotted Decapitator 25331 | -2/Protoforge | Spotted Decapitator 25332 | -2/Protoforge | Destroyed Decapitator 25332 | -2/Protoforge | Destroyed Decapitator 25332 | -2/Protoforge | Destroyed Decapitator 25332 | -2/Protoforge | Destroyed Decapitator 25332 | -2/Protoforge | Destroyed Decapitator 25341 | -2/Protoforge | Spotted Striker 25341 | -2/Protoforge | Destroyed Executioner 25341 | -2/Protoforge | Destroyed Striker 25343 | -2/Protoforge | Spotted Striker 25343 | -2/Protoforge | Spotted Striker 25343 | -2/Protoforge | Spotted Executioner 25344 | -2/Protoforge | Destroyed Executioner 25345 | -2/Protoforge | Destroyed Striker 25346 | -2/Protoforge | Destroyed Striker 25346 | -2/Protoforge | Destroyed Hotshot 25346 | -2/Protoforge | Destroyed Hotshot 25356 | -2/Protoforge | Destroyed Hotshot 25356 | -2/Protoforge | Destroyed Hotshot 25357 | -2/Protoforge | Destroyed Hotshot 25405 | -2/Protoforge | Destroyed 33 combat bots 25416 | -2/Protoforge | Spotted EXE-6 25418 | -2/Protoforge | Spotted EXE-6 25418 | -2/Protoforge | Spotted SKR-2 25418 | -2/Protoforge | Spotted SKR-2 25418 | -2/Protoforge | Destroyed EXE-6 25419 | -2/Protoforge | Destroyed EXE-6 25419 | -2/Protoforge | Spotted SKR-2 25422 | -2/Protoforge | Destroyed SKR-2 25422 | -2/Protoforge | Destroyed SKR-2 25423 | -2/Protoforge | Destroyed SKR-2 25424 | -2/Protoforge | Sensors blinded by X0-1V1 25429 | -2/Protoforge | Spotted EXE-6 25429 | -2/Protoforge | Spotted EXE-6 25430 | -2/Protoforge | Destroyed EXE-6 25431 | -2/Protoforge | Destroyed EXE-6 25451 | -2/Protoforge | Destroyed Executioner 25456 | -2/Protoforge | Spotted Striker 25458 | -2/Protoforge | Destroyed Striker 25467 | -2/Protoforge | X0-1V1 announced a LAN party 25479 | -2/Protoforge | Found Mni. Quantum Capacitor 25483 | -2/Protoforge | X0-1V1 activates XOMVISION 25514 | -2/Protoforge | Found Exp. Kinecellerator 25519 | -2/Protoforge | Destroyed 35 combat bots 25592 | -2/Protoforge | X0-1V1 activates XOMVISION 25688 | -2/Protoforge | Spotted Executioner 25689 | -2/Protoforge | Destroyed Executioner 25698 | -2/Protoforge | Destroyed Striker 25702 | -2/Protoforge | Destroyed Striker 25704 | -2/Protoforge | Destroyed Striker 25712 | -2/Protoforge | Spotted Striker 25717 | -2/Protoforge | Destroyed Striker 25718 | -2/Protoforge | Spotted Striker 25719 | -2/Protoforge | Destroyed Striker 25720 | -2/Protoforge | Spotted Executioner 25726 | -2/Protoforge | Destroyed Executioner 25733 | -2/Protoforge | Spotted Striker 25735 | -2/Protoforge | Destroyed Striker 25752 | -2/Protoforge | X0-1V1 activates XOMVISION 25756 | -2/Protoforge | Destroyed 36 combat bots 25772 | -2/Protoforge | X0-1V1 mutated your Propulsion slot to Utility slot 25815 | -2/Protoforge | X0-1V1 sent hostile S-43 Plague (x3) 25816 | -2/Protoforge | X0-1V1 whisked you away to safety 25923 | -2/Protoforge | Spotted Striker 25924 | -2/Protoforge | Destroyed Striker 25928 | -2/Protoforge | Destroyed Striker 25942 | -2/Protoforge | Spotted V086-h 25943 | -2/Protoforge | Destroyed V086-h 25946 | -2/Protoforge | Found Prototype Device 25946 | -2/Protoforge | Identified Exp. Cloaking Device 25954 | -2/Protoforge | X0-1V1 activates XOMVISION 25964 | -2/Protoforge | Destroyed 12 combat bots 25978 | -2/Protoforge | Spotted Executioner 25979 | -2/Protoforge | Destroyed Executioner 25996 | -2/Protoforge | X0-1V1 mutated your Utility slot to Weapon slot 26002 | -2/Protoforge | Destroyed 13 combat bots 26011 | -2/Protoforge | Found Cep. Smart ZDS 26019 | -2/Protoforge | Spotted Executioner 26030 | -2/Protoforge | X0-1V1 turns hostiles against one another 26038 | -2/Protoforge | Spotted Striker 26042 | -2/Protoforge | Destroyed Investigator 26048 | -2/Protoforge | Destroyed Striker 26083 | -2/Protoforge | X0-1V1 activates XOMVISION 26092 | -2/Protoforge | Destroyed 13 combat bots 26092 | -2/Protoforge | X0-1V1 downgraded hostiles (x2) 26142 | -2/Protoforge | Found Faulty Cep. Tactical Fusion Warhead 26143 | -2/Protoforge | Found Faulty Cep. Tactical Fusion Warhead 26253 | -2/Protoforge | Found Cep. Gyrokinetic System 26255 | -2/Protoforge | Found Cep. Combat Aerolev Unit 26267 | -2/Protoforge | Found Cep. Gyrokinetic System 26269 | -2/Protoforge | Found Faulty Cep. Gyrokinetic System 26271 | -2/Protoforge | Found Faulty Cep. Gyrokinetic System 26325 | -2/Protoforge | X0-1V1 activates XOMVISION 26453 | -2/Protoforge | Found Faulty Cld. Directed Potential Cannon 26555 | -2/Protoforge | Destroyed Striker 26560 | -2/Protoforge | Build established: Generator-Executioner 26573 | -2/Protoforge | Destroyed Striker 26576 | -2/Protoforge | Spotted Executioner 26579 | -2/Protoforge | Spotted Striker 26587 | -2/Protoforge | Destroyed Executioner 26595 | -2/Protoforge | Destroyed Striker 26620 | -2/Protoforge | X0-1V1 activates XOMVISION 26674 | -2/Protoforge | Destroyed 38 combat bots 26715 | -2/Protoforge | Destroyed Executioner 26726 | -2/Protoforge | Destroyed Investigator 26732 | -2/Protoforge | Spotted Striker 26732 | -2/Protoforge | Spotted Striker 26732 | -2/Protoforge | Destroyed Striker 26743 | -2/Protoforge | Spotted Striker 26743 | -2/Protoforge | Destroyed Striker 26749 | -2/Protoforge | Destroyed Striker 26753 | -2/Protoforge | Destroyed Striker 26759 | -2/Protoforge | Spotted Striker 26760 | -2/Protoforge | Destroyed Executioner 26761 | -2/Protoforge | Destroyed Striker 26806 | -2/Protoforge | Destroyed 59 combat bots 26832 | -2/Protoforge | Found Cep. Phase Shift Module 26839 | -2/Protoforge | Found Cep. Reaction Jets 26891 | -2/Protoforge | Spotted Hotshot 26891 | -2/Protoforge | Spotted Hotshot 26891 | -2/Protoforge | Spotted Hotshot 26892 | -2/Protoforge | Spotted Hotshot 26893 | -2/Protoforge | Destroyed Hotshot 26894 | -2/Protoforge | Destroyed Hotshot 26895 | -2/Protoforge | Destroyed Hotshot 26895 | -2/Protoforge | Destroyed Hotshot 26964 | -2/Protoforge | Spotted Tracker 26965 | -2/Protoforge | Spotted Tracker 26969 | -2/Protoforge | Destroyed Tracker 26970 | -2/Protoforge | Destroyed Tracker 26970 | -2/Protoforge | Destroyed Tracker 26986 | -2/Protoforge | Spotted Striker 26986 | -2/Protoforge | Spotted Executioner 26986 | -2/Protoforge | Spotted Executioner 26986 | -2/Protoforge | Spotted Executioner 26986 | -2/Protoforge | Destroyed Executioner 26987 | -2/Protoforge | Destroyed Executioner 26987 | -2/Protoforge | Destroyed Executioner 26988 | -2/Protoforge | Spotted Striker 26993 | -2/Protoforge | Destroyed Striker 26994 | -2/Protoforge | Destroyed Striker 27019 | -2/Protoforge | Spotted Striker 27019 | -2/Protoforge | Spotted Executioner 27020 | -2/Protoforge | Spotted Executioner 27024 | -2/Protoforge | Destroyed Striker 27025 | -2/Protoforge | Destroyed Executioner 27025 | -2/Protoforge | Destroyed Executioner 27039 | -2/Protoforge | Spotted Tracker 27043 | -2/Protoforge | Destroyed Tracker 27044 | -2/Protoforge | Spotted Striker 27046 | -2/Protoforge | Spotted Executioner 27046 | -2/Protoforge | Spotted Executioner 27047 | -2/Protoforge | Spotted Executioner 27051 | -2/Protoforge | Destroyed Striker 27053 | -2/Protoforge | Spotted Executioner 27053 | -2/Protoforge | Spotted Executioner 27056 | -2/Protoforge | Destroyed Executioner 27060 | -2/Protoforge | Destroyed Executioner 27085 | -2/Protoforge | Destroyed Executioner 27091 | -2/Protoforge | Destroyed Executioner 27104 | -2/Protoforge | X0-1V1 sent allied Executioner (x1) 27116 | -2/Protoforge | Intercept squad dispatched 27119 | -2/Protoforge | Spotted Tracker 27119 | -2/Protoforge | Spotted Tracker 27122 | -2/Protoforge | Spotted Tracker 27124 | -2/Protoforge | Destroyed Tracker 27124 | -2/Protoforge | Spotted Tracker 27124 | -2/Protoforge | Destroyed Tracker 27124 | -2/Protoforge | Destroyed Tracker 27125 | -2/Protoforge | Destroyed Tracker 27127 | -2/Protoforge | Spotted Combat Programmer 27133 | -2/Protoforge | Spotted Combat Programmer 27133 | -2/Protoforge | Spotted Combat Programmer 27135 | -2/Protoforge | Destroyed Combat Programmer 27136 | -2/Protoforge | Spotted Combat Programmer 27136 | -2/Protoforge | Destroyed Combat Programmer 27136 | -2/Protoforge | Destroyed Combat Programmer 27137 | -2/Protoforge | Destroyed Combat Programmer 27141 | -2/Protoforge | Destroyed Tracker 27162 | -2/Protoforge | Destroyed 83 combat bots 27254 | -2/Protoforge | Spotted Tracker 27255 | -2/Protoforge | Destroyed Tracker 27558 | -2/Protoforge | Intercept squad dispatched 27567 | -2/Protoforge | Found Cep. Dimensional Manipulator 27572 | -2/Protoforge | Found Faulty Cep. Thermoelectric Network 27575 | -2/Protoforge | Found Faulty Cep. Thermoelectric Network 27598 | -2/Protoforge | Spotted Tracker 27600 | -2/Protoforge | Spotted Tracker 27600 | -2/Protoforge | Spotted Tracker 27600 | -2/Protoforge | Destroyed Tracker 27600 | -2/Protoforge | Destroyed Tracker 27601 | -2/Protoforge | Destroyed Tracker 27601 | -2/Protoforge | Spotted Tracker 27602 | -2/Protoforge | Destroyed Tracker 27681 | -2/Protoforge | Spotted Combat Programmer 27681 | -2/Protoforge | Destroyed Combat Programmer 27682 | -2/Protoforge | Spotted Combat Programmer 27683 | -2/Protoforge | Spotted Combat Programmer 27683 | -2/Protoforge | Spotted Combat Programmer 27684 | -2/Protoforge | Destroyed Combat Programmer 27684 | -2/Protoforge | Destroyed Combat Programmer 27685 | -2/Protoforge | Destroyed Combat Programmer 27714 | -2/Protoforge | Found Transdimensional Reconstructor 27790 | -2/Protoforge | Found Exp. Kinecellerator 27800 | -2/Protoforge | Intercept squad dispatched 27826 | -2/Protoforge | Spotted Tracker 27827 | -2/Protoforge | Spotted Tracker 27827 | -2/Protoforge | Spotted Tracker 27827 | -2/Protoforge | Destroyed Tracker 27827 | -2/Protoforge | Destroyed Tracker 27827 | -2/Protoforge | Destroyed Tracker 27828 | -2/Protoforge | Spotted Tracker 27828 | -2/Protoforge | Spotted Tracker 27828 | -2/Protoforge | Destroyed Tracker 27828 | -2/Protoforge | Destroyed Tracker 27832 | -2/Protoforge | Destroyed Striker 27832 | -2/Protoforge | Destroyed Striker 27848 | -2/Protoforge | Spotted Executioner 27850 | -2/Protoforge | Destroyed Executioner 27872 | -2/Protoforge | Destroyed Executioner 27879 | -2/Protoforge | Spotted Combat Programmer 27879 | -2/Protoforge | Spotted Combat Programmer 27880 | -2/Protoforge | Spotted Combat Programmer 27880 | -2/Protoforge | Spotted Striker 27880 | -2/Protoforge | Spotted Executioner 27882 | -2/Protoforge | Destroyed Striker 27882 | -2/Protoforge | Destroyed Combat Programmer 27883 | -2/Protoforge | Destroyed Combat Programmer 27885 | -2/Protoforge | Destroyed Combat Programmer 27885 | -2/Protoforge | Destroyed Executioner 27885 | -2/Protoforge | Spotted Combat Programmer 27886 | -2/Protoforge | Destroyed Combat Programmer 27900 | -2/Protoforge | Destroyed Striker 27921 | -2/Protoforge | Destroyed 39 combat bots 27944 | -2/Protoforge | Spotted Striker 27944 | -2/Protoforge | Spotted Striker 27944 | -2/Protoforge | Spotted Executioner 27951 | -2/Protoforge | Destroyed Striker 27953 | -2/Protoforge | Destroyed Striker 27959 | -2/Protoforge | X0-1V1 sent you into danger 27959 | -2/Protoforge | Destroyed Executioner 27972 | -2/Protoforge | Destroyed Striker 27972 | -2/Protoforge | Destroyed Executioner 28000 | -2/Protoforge | Destroyed 48 combat bots 28161 | -2/Protoforge | Destroyed Executioner 28161 | -2/Protoforge | Destroyed Executioner 28170 | -2/Protoforge | Destroyed Striker 28170 | -2/Protoforge | Destroyed Executioner 28172 | -2/Protoforge | Destroyed Striker 28173 | -2/Protoforge | Destroyed Executioner 28175 | -2/Protoforge | Spotted Striker 28175 | -2/Protoforge | Spotted Striker 28175 | -2/Protoforge | Spotted Executioner 28176 | -2/Protoforge | Destroyed Executioner 28177 | -2/Protoforge | Destroyed Striker 28184 | -2/Protoforge | Destroyed Striker 28202 | -2/Protoforge | Destroyed Striker 28205 | -2/Protoforge | Destroyed Striker 28206 | -2/Protoforge | Destroyed Striker 28211 | -2/Protoforge | Spotted Striker 28214 | -2/Protoforge | Destroyed Striker 28244 | -2/Protoforge | Destroyed 83 combat bots 28337 | -2/Protoforge | X0-1V1 downgraded hostiles (x2) 28616 | -2/Protoforge | Spotted Investigator 28616 | -2/Protoforge | Spotted Executioner 28617 | -2/Protoforge | Spotted Striker 28617 | -2/Protoforge | Spotted Executioner 28623 | -2/Protoforge | Destroyed Striker 28624 | -2/Protoforge | Reached level 38 28624 | -2/Protoforge | Destroyed Executioner 28638 | -2/Protoforge | Spotted Striker 28640 | -2/Protoforge | Destroyed Striker 28645 | -2/Protoforge | Spotted Striker 28645 | -2/Protoforge | Destroyed Striker 28649 | -2/Protoforge | Destroyed Executioner 28649 | -2/Protoforge | Destroyed Investigator 28652 | -2/Protoforge | Destroyed Striker 28652 | -2/Protoforge | Destroyed Striker 28656 | -2/Protoforge | Spotted Executioner 28656 | -2/Protoforge | Spotted Executioner 28656 | -2/Protoforge | Spotted Striker 28659 | -2/Protoforge | Spotted Executioner 28659 | -2/Protoforge | Destroyed Striker 28662 | -2/Protoforge | Destroyed Executioner 28663 | -2/Protoforge | Destroyed Executioner 28668 | -2/Protoforge | Destroyed Executioner 28704 | -2/Protoforge | Destroyed 86 combat bots 28743 | -2/Protoforge | Intercept squad dispatched 28755 | -2/Protoforge | Spotted Tracker 28756 | -2/Protoforge | Spotted Tracker 28756 | -2/Protoforge | Spotted Tracker 28757 | -2/Protoforge | Destroyed Tracker 28757 | -2/Protoforge | Destroyed Tracker 28757 | -2/Protoforge | Spotted Tracker 28757 | -2/Protoforge | Destroyed Tracker 28758 | -2/Protoforge | Destroyed Tracker 28758 | -2/Protoforge | Spotted Tracker 28760 | -2/Protoforge | Destroyed Tracker 28786 | -2/Protoforge | Spotted Combat Programmer 28788 | -2/Protoforge | Destroyed Combat Programmer 28790 | -2/Protoforge | Spotted Combat Programmer 28791 | -2/Protoforge | Destroyed Combat Programmer 28792 | -2/Protoforge | Spotted Combat Programmer 28794 | -2/Protoforge | Spotted Combat Programmer 28794 | -2/Protoforge | Destroyed Combat Programmer 28794 | -2/Protoforge | Spotted Combat Programmer 28795 | -2/Protoforge | Destroyed Combat Programmer 28796 | -2/Protoforge | Destroyed Combat Programmer 29016 | -2/Protoforge | Intercept squad dispatched 29016 | -2/Protoforge | Spotted Tracker 29016 | -2/Protoforge | Spotted Tracker 29016 | -2/Protoforge | Destroyed Tracker 29016 | -2/Protoforge | Destroyed Tracker 29016 | -2/Protoforge | Destroyed Tracker 29016 | -2/Protoforge | Spotted Tracker 29017 | -2/Protoforge | Spotted Combat Programmer 29017 | -2/Protoforge | Spotted Combat Programmer 29018 | -2/Protoforge | Destroyed Tracker 29018 | -2/Protoforge | Destroyed Tracker 29031 | -2/Protoforge | Destroyed Combat Programmer 29032 | -2/Protoforge | Destroyed Combat Programmer 29050 | -2/Protoforge | X0-1V1 activates XOMVISION 29053 | -2/Protoforge | Destroyed 7 combat bots 29258 | -2/Protoforge | Spotted Executioner 29259 | -2/Protoforge | Destroyed Executioner 29259 | -2/Protoforge | Spotted Striker 29259 | -2/Protoforge | Spotted Executioner 29259 | -2/Protoforge | Spotted Executioner 29259 | -2/Protoforge | Destroyed Striker 29259 | -2/Protoforge | Destroyed Executioner 29259 | -2/Protoforge | Destroyed Executioner 29260 | -2/Protoforge | Spotted Striker 29261 | -2/Protoforge | Destroyed Striker 29261 | -2/Protoforge | Destroyed Executioner 29261 | -2/Protoforge | Destroyed Striker 29261 | -2/Protoforge | Destroyed Executioner 29262 | -2/Protoforge | Spotted Striker 29263 | -2/Protoforge | Destroyed Striker 29263 | -2/Protoforge | Destroyed Striker 29263 | -2/Protoforge | Destroyed Striker 29265 | -2/Protoforge | Destroyed Executioner 29265 | -2/Protoforge | Destroyed Executioner 29267 | -2/Protoforge | Destroyed Striker 29267 | -2/Protoforge | Destroyed Striker 29267 | -2/Protoforge | Destroyed Striker 29302 | -2/Protoforge | Destroyed 102 combat bots 29485 | -2/Protoforge | X0-1V1 activates XOMVISION 29958 | -2/Protoforge | Destroyed Investigator 29959 | -2/Protoforge | Spotted Striker 29959 | -2/Protoforge | Spotted Striker 29959 | -2/Protoforge | Spotted Executioner 29960 | -2/Protoforge | Destroyed Striker 29960 | -2/Protoforge | Destroyed Striker 29962 | -2/Protoforge | Spotted Executioner 29962 | -2/Protoforge | Destroyed Executioner 29962 | -2/Protoforge | Destroyed Executioner 29962 | -2/Protoforge | Destroyed Striker 29963 | -2/Protoforge | Spotted Striker 29964 | -2/Protoforge | Spotted Executioner 29964 | -2/Protoforge | Destroyed Striker 29964 | -2/Protoforge | Destroyed Striker 29964 | -2/Protoforge | Destroyed Executioner 29965 | -2/Protoforge | Spotted Striker 29966 | -2/Protoforge | Spotted Striker 29966 | -2/Protoforge | Destroyed Striker 29966 | -2/Protoforge | Destroyed Striker 29966 | -2/Protoforge | Destroyed Executioner 29966 | -2/Protoforge | Destroyed Executioner 29966 | -2/Protoforge | Destroyed Striker 29966 | -2/Protoforge | Destroyed Executioner 29966 | -2/Protoforge | Destroyed Striker 29968 | -2/Protoforge | Destroyed Striker 29968 | -2/Protoforge | Destroyed Executioner 29968 | -2/Protoforge | Destroyed Executioner 29989 | -2/Protoforge | Destroyed 110 combat bots 30205 | -2/Protoforge | Sensors blinded by X0-1V1 30391 | -2/Protoforge | X0-1V1 activates XOMVISION 30656 | -2/Protoforge | X0-1V1 activates XOMVISION 30708 | -2/Protoforge | Spotted Executioner 30708 | -2/Protoforge | Spotted Striker 30709 | -2/Protoforge | Destroyed Executioner 30709 | -2/Protoforge | Destroyed Striker 30709 | -2/Protoforge | Destroyed Executioner 30709 | -2/Protoforge | Destroyed Executioner 30709 | -2/Protoforge | Destroyed Executioner 30710 | -2/Protoforge | Spotted Striker 30711 | -2/Protoforge | Destroyed Striker 30711 | -2/Protoforge | Destroyed Executioner 30711 | -2/Protoforge | Destroyed Striker 30711 | -2/Protoforge | Destroyed Striker 30711 | -2/Protoforge | Destroyed Executioner 30713 | -2/Protoforge | Destroyed Striker 30715 | -2/Protoforge | Destroyed Executioner 30717 | -2/Protoforge | Destroyed Executioner 30717 | -2/Protoforge | Destroyed Striker 30717 | -2/Protoforge | Destroyed Striker 30738 | -2/Protoforge | Destroyed 107 combat bots 30745 | -2/Protoforge | X0-1V1 mutated your Weapon slot to Propulsion slot 30834 | -2/Protoforge | Sensors blinded by X0-1V1 30840 | -2/Protoforge | X0-1V1 added 0b10 threat records associated with you (major) 30845 | -2/Protoforge | Found Cep. NT7 Matterbank 30847 | -2/Protoforge | Found Cep. NT7 Matterbank 30848 | -2/Protoforge | Found Cep. NT7 Matterbank 30851 | -2/Protoforge | Found Cep. NT7 Matterbank 30955 | -2/Protoforge | Intercept squad dispatched 30965 | -2/Protoforge | Spotted Tracker 30965 | -2/Protoforge | Spotted Tracker 30966 | -2/Protoforge | Destroyed Tracker 30966 | -2/Protoforge | Spotted Tracker 30967 | -2/Protoforge | Destroyed Tracker 30968 | -2/Protoforge | Destroyed Tracker 30968 | -2/Protoforge | Spotted Tracker 30968 | -2/Protoforge | Spotted Tracker 30969 | -2/Protoforge | Spotted Tracker 30970 | -2/Protoforge | Destroyed Tracker 30971 | -2/Protoforge | Destroyed Tracker 30972 | -2/Protoforge | Destroyed Tracker 30988 | -2/Protoforge | Spotted Combat Programmer 30989 | -2/Protoforge | Spotted Combat Programmer 30990 | -2/Protoforge | Spotted Combat Programmer 30991 | -2/Protoforge | Destroyed Combat Programmer 30991 | -2/Protoforge | Spotted Combat Programmer 30992 | -2/Protoforge | Spotted Combat Programmer 30993 | -2/Protoforge | Destroyed Combat Programmer 30993 | -2/Protoforge | Spotted Combat Programmer 30995 | -2/Protoforge | Destroyed Combat Programmer 30998 | -2/Protoforge | Core integrity fell below 50% 31003 | -2/Protoforge | Core integrity fell below 20% 31003 | -2/Protoforge | Destroyed Combat Programmer 31009 | -2/Protoforge | Destroyed Combat Programmer 31011 | -2/Protoforge | Destroyed Combat Programmer 31032 | -2/Protoforge | Destroyed 12 combat bots 31087 | -2/Protoforge | X0-1V1 sent hostile H-88 Terminator (x3) 31288 | -2/Protoforge | X0-1V1 mutated your Weapon slot to Utility slot 31479 | -2/Protoforge | X0-1V1 vaporized surrounding terrain (radius 21) 31485 | -2/Protoforge | X0-1V1 activates XOMVISION 31508 | -2/Protoforge | Spotted Striker 31508 | -2/Protoforge | Spotted Striker 31509 | -2/Protoforge | Spotted Striker 31509 | -2/Protoforge | Spotted Executioner 31509 | -2/Protoforge | Destroyed Executioner 31509 | -2/Protoforge | Destroyed Striker 31509 | -2/Protoforge | Destroyed Striker 31509 | -2/Protoforge | Destroyed Executioner 31509 | -2/Protoforge | Destroyed Striker 31509 | -2/Protoforge | Destroyed Striker 31509 | -2/Protoforge | Destroyed Striker 31511 | -2/Protoforge | Destroyed Executioner 31511 | -2/Protoforge | Destroyed Striker 31512 | -2/Protoforge | Spotted Striker 31513 | -2/Protoforge | Spotted Striker 31513 | -2/Protoforge | Spotted Striker 31513 | -2/Protoforge | Destroyed Striker 31513 | -2/Protoforge | Destroyed Executioner 31513 | -2/Protoforge | Destroyed Executioner 31513 | -2/Protoforge | Destroyed Executioner 31513 | -2/Protoforge | Destroyed Striker 31515 | -2/Protoforge | Spotted Executioner 31519 | -2/Protoforge | Spotted Striker 31523 | -2/Protoforge | Spotted Executioner 31524 | -2/Protoforge | Destroyed Striker 31525 | -2/Protoforge | Destroyed Executioner 31525 | -2/Protoforge | Destroyed Striker 31525 | -2/Protoforge | Destroyed Executioner 31547 | -2/Protoforge | Destroyed 118 combat bots 32153 | -2/Protoforge | X0-1V1 activates XOMVISION 32358 | -2/Protoforge | Spotted Executioner 32358 | -2/Protoforge | Spotted Executioner 32358 | -2/Protoforge | Spotted Striker 32359 | -2/Protoforge | Spotted Striker 32360 | -2/Protoforge | Spotted Executioner 32360 | -2/Protoforge | Spotted Striker 32361 | -2/Protoforge | Spotted Striker 32361 | -2/Protoforge | Destroyed Executioner 32361 | -2/Protoforge | Destroyed Striker 32361 | -2/Protoforge | Destroyed Striker 32362 | -2/Protoforge | Spotted Executioner 32364 | -2/Protoforge | Destroyed Executioner 32364 | -2/Protoforge | Destroyed Executioner 32364 | -2/Protoforge | Destroyed Executioner 32364 | -2/Protoforge | Destroyed Striker 32364 | -2/Protoforge | Destroyed Executioner 32364 | -2/Protoforge | Destroyed Executioner 32364 | -2/Protoforge | Destroyed Executioner 32364 | -2/Protoforge | Spotted Striker 32366 | -2/Protoforge | Destroyed Striker 32366 | -2/Protoforge | Destroyed Investigator 32366 | -2/Protoforge | Destroyed Striker 32368 | -2/Protoforge | Spotted Executioner 32368 | -2/Protoforge | Destroyed Striker 32368 | -2/Protoforge | Destroyed Striker 32368 | -2/Protoforge | Destroyed Striker 32368 | -2/Protoforge | Destroyed Executioner 32368 | -2/Protoforge | Destroyed Striker 32369 | -2/Protoforge | Destroyed Executioner 32371 | -2/Protoforge | Destroyed Executioner 32405 | -2/Protoforge | Destroyed 130 combat bots 32522 | -2/Protoforge | Sensors blinded by X0-1V1 32560 | -2/Protoforge | Intercept squad dispatched 32574 | -2/Protoforge | Spotted Tracker 32576 | -2/Protoforge | Spotted Tracker 32577 | -2/Protoforge | Spotted Tracker 32578 | -2/Protoforge | Destroyed Tracker 32578 | -2/Protoforge | Spotted Tracker 32578 | -2/Protoforge | Destroyed Tracker 32579 | -2/Protoforge | Spotted Tracker 32579 | -2/Protoforge | Destroyed Tracker 32581 | -2/Protoforge | Spotted Tracker 32581 | -2/Protoforge | Destroyed Tracker 32582 | -2/Protoforge | Destroyed Tracker 32583 | -2/Protoforge | Destroyed Tracker 32605 | -2/Protoforge | Spotted Combat Programmer 32607 | -2/Protoforge | Spotted Combat Programmer 32608 | -2/Protoforge | Destroyed Combat Programmer 32608 | -2/Protoforge | Spotted Combat Programmer 32609 | -2/Protoforge | Spotted Combat Programmer 32610 | -2/Protoforge | Destroyed Combat Programmer 32611 | -2/Protoforge | Destroyed Combat Programmer 32612 | -2/Protoforge | Spotted Combat Programmer 32613 | -2/Protoforge | Spotted Combat Programmer 32613 | -2/Protoforge | Destroyed Combat Programmer 32614 | -2/Protoforge | Destroyed Combat Programmer 32615 | -2/Protoforge | Destroyed Combat Programmer 32760 | -2/Protoforge | X0-1V1 added 0b10 threat records associated with you (minor) 33256 | -2/Protoforge | Destroyed Striker 33256 | -2/Protoforge | Destroyed Executioner 33257 | -2/Protoforge | Spotted Executioner 33257 | -2/Protoforge | Spotted Striker 33258 | -2/Protoforge | Spotted Striker 33258 | -2/Protoforge | Spotted Striker 33258 | -2/Protoforge | Destroyed Executioner 33258 | -2/Protoforge | Destroyed Striker 33258 | -2/Protoforge | Destroyed Executioner 33260 | -2/Protoforge | Destroyed Executioner 33260 | -2/Protoforge | Destroyed Executioner 33262 | -2/Protoforge | Spotted Striker 33262 | -2/Protoforge | Destroyed Striker 33262 | -2/Protoforge | Destroyed Striker 33262 | -2/Protoforge | Destroyed Striker 33262 | -2/Protoforge | Destroyed Striker 33262 | -2/Protoforge | Destroyed Striker 33262 | -2/Protoforge | Destroyed Investigator 33264 | -2/Protoforge | Destroyed Executioner 33266 | -2/Protoforge | Destroyed Executioner 33266 | -2/Protoforge | Destroyed Striker 33266 | -2/Protoforge | Destroyed Striker 33268 | -2/Protoforge | Destroyed Executioner 33289 | -2/Protoforge | Destroyed 125 combat bots 33329 | -2/Protoforge | X0-1V1 added 0b10 threat records associated with you (major) 33853 | -2/Protoforge | X0-1V1 added 0b10 threat records associated with you (major) 33883 | -2/Protoforge | X0-1V1 mutated your Propulsion slot to Utility slot 33899 | -2/Protoforge | Sensors blinded by X0-1V1 34207 | -2/Protoforge | Destroyed Striker 34207 | -2/Protoforge | Spotted Striker 34208 | -2/Protoforge | Spotted Striker 34209 | -2/Protoforge | Destroyed Striker 34209 | -2/Protoforge | Destroyed Executioner 34209 | -2/Protoforge | Spotted Executioner 34211 | -2/Protoforge | Spotted Striker 34211 | -2/Protoforge | Spotted Striker 34211 | -2/Protoforge | Destroyed Striker 34211 | -2/Protoforge | Destroyed Striker 34211 | -2/Protoforge | Destroyed Investigator 34211 | -2/Protoforge | Destroyed Executioner 34211 | -2/Protoforge | Destroyed Striker 34211 | -2/Protoforge | Destroyed Executioner 34211 | -2/Protoforge | Destroyed Executioner 34211 | -2/Protoforge | Destroyed Striker 34211 | -2/Protoforge | Destroyed Striker 34211 | -2/Protoforge | Destroyed Striker 34211 | -2/Protoforge | Destroyed Executioner 34213 | -2/Protoforge | Destroyed Striker 34213 | -2/Protoforge | Destroyed Executioner 34213 | -2/Protoforge | Destroyed Striker 34213 | -2/Protoforge | Destroyed Executioner 34213 | -2/Protoforge | Destroyed Executioner 34215 | -2/Protoforge | Destroyed Executioner 34215 | -2/Protoforge | Destroyed Striker 34215 | -2/Protoforge | Destroyed Striker 34215 | -2/Protoforge | Destroyed Striker 34215 | -2/Protoforge | Destroyed Executioner 34215 | -2/Protoforge | Destroyed Executioner 34217 | -2/Protoforge | Spotted Executioner 34217 | -2/Protoforge | Destroyed Executioner 34217 | -2/Protoforge | Destroyed Striker 34219 | -2/Protoforge | Destroyed Striker 34237 | -2/Protoforge | X0-1V1 sent you into danger 34244 | -2/Protoforge | Sensors blinded by X0-1V1 34264 | -2/Protoforge | Destroyed 124 combat bots 34283 | -2/Protoforge | X0-1V1 added 0b10 threat records associated with you (considerable) 34360 | -2/Protoforge | X0-1V1 mutated your Utility slot to Weapon slot 34575 | -2/Protoforge | Found Gamma Bomb Array 34591 | -2/Protoforge | X0-1V1 activates XOMVISION 34594 | -2/Protoforge | X0-1V1 added 0b10 threat records associated with you (considerable) 35113 | -2/Protoforge | Sensors blinded by X0-1V1 35209 | -2/Protoforge | Destroyed Executioner 35209 | -2/Protoforge | Destroyed Striker 35211 | -2/Protoforge | Spotted Striker 35211 | -2/Protoforge | Destroyed Executioner 35211 | -2/Protoforge | Destroyed Striker 35211 | -2/Protoforge | Destroyed Striker 35211 | -2/Protoforge | Destroyed Executioner 35211 | -2/Protoforge | Destroyed Striker 35211 | -2/Protoforge | Destroyed Executioner 35213 | -2/Protoforge | Destroyed Striker 35213 | -2/Protoforge | Destroyed Executioner 35213 | -2/Protoforge | Destroyed Striker 35213 | -2/Protoforge | Destroyed Executioner 35215 | -2/Protoforge | Spotted Striker 35217 | -2/Protoforge | Destroyed Striker 35217 | -2/Protoforge | Destroyed Executioner 35217 | -2/Protoforge | Destroyed Striker 35217 | -2/Protoforge | Destroyed Executioner 35217 | -2/Protoforge | Destroyed Striker 35219 | -2/Protoforge | Destroyed Striker 35219 | -2/Protoforge | Destroyed Executioner 35221 | -2/Protoforge | Destroyed Executioner 35224 | -2/Protoforge | Destroyed Striker 35245 | -2/Protoforge | Destroyed 148 combat bots 35306 | -2/Protoforge | X0-1V1 added 0b10 threat records associated with you (major) 35513 | -2/Protoforge | Sensors blinded by X0-1V1 35580 | -2/Protoforge | X0-1V1 mutated your Utility slot to Propulsion slot 35796 | -2/Protoforge | Intercept squad dispatched 35796 | -2/Protoforge | Spotted Tracker 35796 | -2/Protoforge | Spotted Combat Programmer 35796 | -2/Protoforge | Spotted Tracker 35796 | -2/Protoforge | Spotted Tracker 35796 | -2/Protoforge | Spotted Tracker 35796 | -2/Protoforge | Spotted Tracker 35796 | -2/Protoforge | Spotted Combat Programmer 35796 | -2/Protoforge | Spotted Tracker 35796 | -2/Protoforge | Spotted Combat Programmer 35796 | -2/Protoforge | Spotted Combat Programmer 35796 | -2/Protoforge | Spotted Combat Programmer 35797 | -2/Protoforge | Destroyed Tracker 35797 | -2/Protoforge | Destroyed Tracker 35797 | -2/Protoforge | Spotted Combat Programmer 35799 | -2/Protoforge | Destroyed Tracker 35799 | -2/Protoforge | Destroyed Tracker 35799 | -2/Protoforge | Destroyed Tracker 35799 | -2/Protoforge | Destroyed Tracker 35817 | -2/Protoforge | Destroyed by Combat Programmer with EMDS Last Messages --------------- 35804_ Penetrated by EMDS Slug. 35805_ The unstable cave ceiling collapses. 35805_ Penetrated by EMDS Slug. 35806_ The unstable cave ceiling collapses. 35810_ EMDS Slug penetrates Earth. 35810_ Penetrated by EMDS Slug. 35810_ EMDS Slug penetrates Earth. 35810_ EMDS Slug penetrates Combat Programmer. 35811_ The unstable cave ceiling collapses. 35811_ Penetrated by EMDS Slug. 35812_ The unstable cave ceiling collapses. 35812_ Penetrated by EMDS Slug. 35812_ Dropped Protomatter-55. 35812_ Penetrated by EMDS Slug. 35814_ EMDS Slug penetrates Earth. 35814_ Combat Programmer resets Combat Programmer, system corruption cleaned. 35815_ The unstable cave ceiling collapses. 35815_ Penetrated by EMDS Slug. 35817_ X0-1V1 giggles madly! Map ----- +----------------------------------------------------+ | ???????????????????????????????# # | | ??????????########### ????????# # | | ??????????# ######??????# +! | | ??????????# # #??#???# # | | ??????????# "" # ##? #??# # | | ??????????# < ## ### =## | | ??????????# " #### ?# | | ????????? # # #####??# | | ???????? #??????# | | ??????# ## # ###??????# | | ??????? # ###?????# | | ???????# # # # ###?????# | | ??????## ## # # ## ##???# | | ??????# # # # # = ##### | | ??????# # # # ##= | | ?????## # # # # ## | | ????## # # p # # | | ????# ## # | | ???## # # p p ## | | ???# # # " | | ??## ## [p[ " | | ??# ##### [p [ | | ?## ### ## = ! | | ?# ## # p=* | | ?# # # [ | | ?# # @! [ | | ?# = ! | | ?# == | | ?# * !! | | # =[![ | | ?# !]] | | ?# ! | | ?# | | ?# | | ?# ; ; | | ? ; ; | | ?## ! ; | | ??# !; ; | | ??## ! ; ; | | ???# ; ; | | ???##;;;;;;;;;;;; ; ;"""" # | | ???# ;;;;;/=;;;; " " # | | ???# =!*[=!/! " "### | | ???# """" ## *![;]!" "### | | ???# "" = * ### | | ???# " ## """"/""""" "## | | ???# " # " """ "% ### | | ???# "" " #?# | | ???# # = ! " ### | | ???# ! "" """ """ = % %##" | +----------------------------------------------------+ Best States ------------- Heat Dissipation 357 Coolant Potential 100 Energy Generation 125 Energy Capacity 4340 Matter Stores 2500 Matter Capacity 2500 Sight Range 25 Terrain Scan Range 24 Terrain Scan Density 510 Additional Mass Support 30 Base Temperature (-) 200 Armor Coverage 950 Resistance: KI 100 Resistance: TH 48 Resistance: I 20 Core Shielding 40 Utility Shielding 90 Weapon Cycling 30 Phase Shifting 25 Evasion (%) 99 Targeting Accuracy 20 Launcher Accuracy 40 Core Analysis 8 Armor Integrity Analysis 40 Kinecelleration 66 Salvage Targeting 2 Offensive Hacking 50 Item Schematics ----------------- Imp. Light Armor Plating | -8/Materials | Extracted Hacking Suite | -8/Materials | Extracted Imp. Heat Sink | -8/Materials | Extracted Com. Battery | -8/Materials | Extracted Shock Rifle | -8/Materials | Extracted Lgt. Treads | -8/Materials | Extracted Carbon-fiber Leg | -8/Materials | Extracted Imp. Grenade Launcher | -8/Materials | Extracted Mining Laser | -8/Materials | Extracted Particle Charger | -8/Materials | Extracted Lgt. Nuclear Core | -7/Factory | Extracted Imp. Terrain Scan Processor | -7/Factory | Extracted Imp. Field Recycling Unit | -7/Factory | Extracted Combat Drone Bay | -7/Data Miner | Free Cld. Cesium-ion Thruster | -7/Data Miner | Free Lgt. Regenerative Plating | -7/Data Miner | Free Exp. Targeting Computer | -7/Data Miner | Free Field Propulsion Drive | -7/Data Miner | Free Shock Maul | -7/Data Miner | Free Adv. Trap Extractor | -7/Data Miner | Free Hyp. Coil Gun | -7/Data Miner | Free Adv. Shield Generator | -7/Data Miner | Free Adv. Heat Sink | -7/Data Miner | Free Imp. Thermal Shield | -7/Data Miner | Free Imp. Armor Integrity Analyzer | -7/Data Miner | Free Adv. Cryofiber Web | -7/Data Miner | Free Hyp. Gauss Rifle | -6/Zion | Archive Arm. Leg | -6/Zion | Archive Antigrav System | -6/Zion | Archive Adv. Signal Interpreter | -6/Zion | Archive Plasma Rifle | -6/Zion | Archive Imp. Component Analysis Suite | -6/Zion | Archive Adv. Reaction Control System | -6/Zion | Archive Neutrino Core | -6/Zion | Archive Hardcell Cannon | -6/Zion | Archive Tesla Rifle | -6/Zion | Archive Hpw. Shock Rifle | -6/Zion | Archive EM Shield | -6/Zion | Archive Assault Drone Bay | -5/Zhirov | Free Exp. Optical Array | -5/Zhirov | Free Exp. Heat Sink | -5/Zhirov | Free Imp. Arc Thrower | -5/Zhirov | Free Exp. Myomer Leg | -3/Testing | Archive Hvy. Neutron Cannon | -3/Testing | Archive Imp. Energy Well | -3/Testing | Archive Hvy. Gatling Laser | -3/Testing | Archive Centrium Light Armor Plating | -3/Testing | Archive Gravity Flail | -3/Testing | Archive Spectral Analyzer | -3/Testing | Archive Hvy. Tesla Rifle | -3/Testing | Archive Lgt. Antimatter Cannon | -3/Testing | Archive Smartbomb Launcher | -3/Testing | Archive Adv. Myomer Leg | -3/Testing | Archive Quantum Shading Machine | -3/Testing | Archive Tactical Quantum Warhead | -3/Testing | Archive Gravity Neutralizer | -3/Testing | Archive Electron Diverter | -3/Testing | Archive Imp. Lightning Gun | -3/Testing | Archive Cld. Plasma Rifle | -3/Testing | Archive Prc. Matter Filter | -3/Testing | Archive Helical Railgun | -3/Testing | Archive Hvy. Antimatter Reactor | -3/Testing | Archive Exp. EM Disruption Field | -3/Testing | Archive Enh. Armored Medium Treads | -3/Testing | Archive Exp. Signal Interpreter | -3/Testing | Archive Imp. Matter Compressor | -3/Testing | Archive Imp. Diametric Drive | -3/Testing | Archive Hvy. Wave Gun | -3/Testing | Archive Exp. Flexi-carbon Leg | -3/Testing | Archive Enh. Coil Gun | -3/Testing | Archive Exp. Gyrokinetic Inverter | -2/Quarantine | Archive Exp. Coolant Injector | -2/Quarantine | Archive Exp. EM Shield | -2/Quarantine | Archive Adv. Plasma Rifle | -2/Quarantine | Archive Hvy. Dispersion Rifle | -2/Protoforge | Archive Enh. Biometal Leg | -2/Protoforge | Archive Exp. Hacking Suite | -2/Protoforge | Archive Imp. Q-thruster | -2/Protoforge | Archive Exp. Power Amplifier | -2/Protoforge | Archive Com. Linear Accelerator | -2/Protoforge | Archive Adv. Remote Shield | -2/Protoforge | Archive Singularity Reactor | -2/Protoforge | Archive Exp. Thermal Shield | -2/Protoforge | Archive Exp. Focal Shield | -2/Protoforge | Archive Robot Schematics ------------------ H-55 Commando | -7/Data Miner | Free G-47 Trooper | -7/Data Miner | Free R-10 Processor | -7/Data Miner | Free L-41 Fighter | -7/Data Miner | Free Y-54 Guardian | -7/Data Miner | Free Y-64 Sentinel | -7/Data Miner | Free A-15 Conveyor | -7/Data Miner | Free A-02 Transporter | -6/Zion | Archive K-01 Serf | -6/Zion | Archive A-27 Freighter | -3/Testing | Archive T-07 Excavator | -3/Testing | Archive B-74 Champion | -2/Protoforge | Archive G-73 Enforcer | -2/Protoforge | Archive Fabricated ------------ Nothing Repaired ---------- Nothing Studied --------- None Alien Tech Used ----------------- Integrated Dissipator Core Expander Subatomic Replicator Concept Nanofilaments [Tensile] Achievements -------------- None Challenges ------------ None RPGLIKE | -11 -10 -10 -9 -9 -9 -8 -8 -7 -7 -7 -7 -7 -7 -6 -6 -6 -6 -6 -6 -5 -5 -5 -5 -5 -4 -4 -4 -4 -4 -3 -3 -3 -2 -2 -2 --------- Run | Yrd Mat Min Mat Min Exi Min Mat Fac Was Fac Low Low Dat Pro Fac Low Low Zio Dee Pro Fac Upp Upp Zhi Pro Fac Upp Upp War Pro Res Tes Res Qua Frg Levels Raised 37 | . 5 1 3 . . 1 3 2 . 3 . . . 1 2 . . 1 . . 2 1 . . . 2 1 . 1 . 2 1 2 1 2 XP Earned 59612 | 3000 8318 1048 4149 564 117 1746 4020 3569 67 3788 301 326 250 645 3549 216 298 68 120 835 3370 232 252 50 457 3550 319 211 2036 421 2109 1413 2702 1722 3774 XP Spent 58435 | 2660 7800 1510 1400 2700 . . 6160 3250 . 4430 . . . . 2200 . . . 2900 . 3950 . 650 . . 3820 390 . 2540 . 2820 1080 . 5010 3165 Upgrades 87 | 9 14 3 2 2 . . 10 4 . 4 . . . . 2 . . . 1 . 7 . 5 . . 4 1 . 3 . 5 2 . 6 3 Power Slot 1 | . . . . . . . . . . 1 . . . . . . . . . . . . . . . . . . . . . . . . . Propulsion Slot 5 | . 2 . 1 . . . . . . . . . . . 1 . . . . . . . . . . . . . 1 . . . . . . Utility Slot 9 | 1 3 . . 1 . . 2 . . 1 . . . . . . . . 1 . . . . . . . . . . . . . . . . Weapon Slot 6 | 1 1 . . . . . 1 1 . . . . . . . . . . . . 1 . . . . 1 . . . . . . . . . Core Integrity 5 | . . . . . . . 4 . . . . . . . . . . . . . . . . . . . . . . . . . . . 1 Heat Dissipation 28 | 3 5 1 . . . . . . . 1 . . . . . . . . . . 5 . . . . 2 1 . 2 . 4 2 . 2 . Energy Generation 3 | . . . 1 . . . . 1 . . . . . . . . . . . . 1 . . . . . . . . . . . . . . Mass Support 4 | 2 . . . . . . . . . 1 . . . . . . . . . . . . . . . . . . . . . . . . 1 Inventory Capacity 6 | 2 1 . . 1 . . . . . . . . . . . . . . . . . . . . . . . . . . . . . 1 1 Sight Range 3 | . . . . . . . 2 . . . . . . . . . . . . . . . . . . . . . . . . . . 1 . Terrain Scan Density 5 | . . . . . . . . . . . . . . . . . . . . . . . 5 . . . . . . . . . . . . Ranged Accuracy 8 | . 2 2 . . . . . 1 . . . . . . . . . . . . . . . . . . . . . . 1 . . 2 . KI Damage % 4 | . . . . . . . 1 1 . . . . . . 1 . . . . . . . . . . 1 . . . . . . . . . Protomatter Created 62586 | . 777 225 191 41 7 88 982 428 91 2401 348 134 86 148 2161 184 424 . 306 591 2318 272 556 348 172 3585 453 563 6802 213 2635 3437 2779 4093 24747 Integrity Restored 32903 | . 1076 323 207 . 221 264 1385 648 . 2301 547 311 189 295 2732 245 234 . 835 498 2193 120 319 511 66 2180 186 153 2544 26 1033 1179 1015 925 8142 Core 24951 | . 738 174 103 . 185 264 1077 456 . 1739 451 57 53 176 2080 195 195 . 686 327 1677 96 263 379 55 1616 146 117 1914 19 763 915 806 744 6485 Parts 7952 | . 338 149 104 . 36 . 308 192 . 562 96 254 136 119 652 50 39 . 149 171 516 24 56 132 11 564 40 36 630 7 270 264 209 181 1657 Protomatter Decayed 25733 | . 212 112 53 . 20 34 288 214 182 1481 . 27 . 47 1164 196 296 . 34 304 1140 230 459 10 149 1729 386 509 2254 201 1971 1123 1780 3513 5615 Game ------ Seed GlidesysLightProtomatter Manual? 0 Play Time 09:59:55 Cumulative 624.4 hours Start 2026.06.23 @ 18:58:47 End 2026.06.25 @ 10:25:22 Sessions 9 Manual Loads 0 Difficulty Rogue Special Mode Winter2019/RPGLIKE Game No. 244 Rogue 90 Adventurer 154 Explorer 0 Win Type - Total 21 Types 4/4/4/3/2/1/0/1/1/1 Lore% 95 Gallery% 87 Achievement% 61 Wizard Run 0 Options --------- Layout 0 ASCII 0 Keyboard 0 Movement Numpad Keybinds 0 Fullscreen 2 Font 18/SmallcapsGlow Map View 76x50 Zoom Use 0% Tactical HUD 1 Map Filters NONE Filters NONE Steam 1 RUN: 0afcea78-4969-4f10-b0ad-3a76b97861f4